Workbook

Sheet Disclaimer
B2: Disclaimer
B5: Disclaimer Excel-tool, presentatie en handleiding ten behoeve van het gebruik van de Tool Gewogen Factor Methode.
B7: • Deze Excel-tool, inclusief de daarbij behorende presentatie en handleiding, ten behoeve van het gebruik van de gunningsmethodiek Gewogen Factor Methode bij (Europese) aanbestedingen en (nadere) offerteaanvragen (hierna gezamenlijk te noemen de ‘Excel-tool’), is ontwikkeld door het Inkoopuitvoeringscentrum (IUC) Belastingdienst en wordt u kosteloos ter beschikking gesteld.
B9: • Deze Excel-tool mag vrij gebruikt worden, zoals deze wordt aangeboden door het IUC Belastingdienst. Het is derhalve niet toegestaan om inhoudelijke wijzigingen aan te brengen in de Excel-tool.
B10: • Het intellectuele eigendomsrecht op deze Excel-tool berust bij het IUC Belastingdienst. Aanwezige aanduidingen van copyright mogen niet worden verwijderd.
B11: • Het IUC Belastingdienst behoudt zich te allen tijde het recht voor om de Excel-tool te wijzigen.
B12: • Het IUC Belastingdienst kan niet garanderen dat deze Excel-tool foutloos en ononderbroken functioneert; wel doen wij daarvoor ons uiterste best.
B13: • De Excel-tool maakt gebruik van macro’s die zijn geschreven in VBA. Voor instructies over het inschakelen en gebruiken van deze macro’s, zie hoofdstuk 3 van de handleiding. Let op: Zonder het activeren van VBA-macro’s functioneert de Excel-tool niet correct!
B14: • Het gebruik van deze Excel-tool geschiedt geheel voor eigen rekening en risico.
B15: • Het IUC Belastingdienst aanvaardt geen aansprakelijkheid voor schade, van welke aard ook, die uit het gebruik van deze Excel-tool zou kunnen voortvloeien.
B16: • U kunt contact met ons opnemen indien u vragen heeft over het gebruik, de werkwijze en/of als u tegen (technische) problemen aanloopt bij het gebruik van deze Excel-tool. Dit geldt ook voor wijzigingsverzoeken. De contactgegevens staan hieronder en in de handleiding bij de Excel-tool.
B18: • De actuele versie van de Tool Gewogen Factor Methode is te downloaden via
E20: © 2021-2025 | G20: © 2021-2025
E21: IUC-Belastingdienst | G21: IUC-Belastingdienst
E22: procurement.economics@belastingdienst.nl | G22: Versie 10-2025

Sheet Dashboard
B2: ="Uitgangspunten Gewogen Factor Methode" -> Uitgangspunten Gewogen Factor Methode
D3: = invoervelden
D6: Naam inkooptraject | F6: Formule voor prijs
D7: Kenmerk | F7: Machtsformule
D9: Uitgangspunten voor de Gewogen Factor Methode
C10: 1 | D10: Totaal aantal punten dat aan de wensen wordt toegekend. | H10: 500 | J10: = SQwensen
D11: Totaal aantal punten dat aan de prijs wordt toegekend. | H11: =(H10/H12)*H13 -> 500 | J11: = SPmax | K11: =IF(ISERROR(H11),1,IF(H11<>ROUND(H11,0),1,0)) -> 0
C12: 2 | D12: Gewicht voor het aandeel van de kwaliteit (gunningscriteria). | H12: 0.5 | J12: = Wq
D13: Gewicht voor het aandeel van de prijs. | H13: =1-H12 -> 0.5 | J13: = Wp
C14: 3 | D14: Hoogst verwachte vergelijkingswaarde (wensen maximaal ingevuld). | H14: 500000 | I14: =IF(H14<=H15,"!","") ->  | J14: = Pmax
C15: 4 | D15: Laagste verwachte vergelijkingswaarde (geen invulling van wensen). | H15: 300000 | I15: =IF(H15>=H14,"!","") ->  | J15: = Pmin
C16: 5 | D16: Exponentwaarde voor kromming prijs. | H16: 1 | J16: = n
D17: Voorbeeldinschrijving (vbi)
C18: A | D18: Voorbeeldprijs (Pvbi). | H18: 400000 | I18: =IF(OR(H18<=H15,H18>=H14),"!","") ->  | J18: = Pvbi
C19: B | D19: Voorbeeldkwaliteit Qvbi | in % van SQmax = 500 | G19: 0.5 | H19: =+G19*H10 -> 250 | J19: = SQvbi
D20: Indicatie BPK-score van Voorbeeldinschrijving (Pvbi, Qvbi). | H20: =+'HULP-velden'!M16 -> 500 | J20: = Svbi
D21: Optioneel
C22: X | D22: ="Lowest Acceptable Quality (maximaal " & 0.4*H10 & " punten van SQmax)" -> Lowest Acceptable Quality (maximaal 200 punten van SQmax) | G22: =0.4*H10 -> 200 | J22: = Qknockout
C23: Y | D23: Scenarioanalyse tonen (zie ook tabblad "Scenarioanalyse"). | G23: Nee | H23: =IF(G23="Ja","Zichtbaar","Onzichtbaar") -> Onzichtbaar

Sheet Scoregraph Prijs
B2: Scoregraph voor Prijs
D6: Naam inkooptraject | E6: =IF(ISBLANK(Dashboard!E6),"",Dashboard!E6) ->  | F6: Formule voor prijs
D7: Kenmerk | E7: =IF(ISBLANK(Dashboard!E7),"",Dashboard!E7) ->  | F7: =Dashboard!F7 -> Machtsformule
D9: Uitgangspunten voor Gewogen Factor Methode
C10: 1 | D10: Totaal aantal punten dat aan de wensen wordt toegekend. | H10: =+Dashboard!H10 -> 500 | J10: = SQmax
D11: Totaal aantal punten dat aan de prijs wordt toegekend. | H11: =+Dashboard!H11 -> 500 | J11: = SPmax
C12: 2 | D12: Gewicht voor het aandeel van de kwaliteit (gunningscriteria). | H12: =+Dashboard!H12 -> 0.5 | J12: = Wq
D13: Gewicht voor het aandeel van de prijs. | H13: =+Dashboard!H13 -> 0.5 | J13: = Wp
C14: 3 | D14: Hoogst verwachte vergelijkingswaarde (wensen maximaal ingevuld). | H14: =+Dashboard!H14 -> 500000 | J14: = Pmax
C15: 4 | D15: Laagste verwachte vergelijkingswaarde (geen invulling van wensen). | H15: =+Dashboard!H15 -> 300000 | J15: = Pmin
C16: 5 | D16: Exponentiële voor n=waarde. | H16: =+Dashboard!H16 -> 1 | J16: = n
D17: Voorbeeld inschrijving
C18: A | D18: Voorbeeldprijs inschrijver (Pvbi). | H18: =+Dashboard!H18 -> 400000 | J18: = Pvbi
C19: B | D19: Voorbeeld score inschrijver (SPvbi). | H19: =+'HULP-velden'!C164 -> 250 | J19: = SPvbi
C21: NB | D21: Bij stap 5 op het ‘Dashboard’ kunt u de kromming van de scoregrafiek voor prijs aanpassen. De kromming staat voor een afnemende meerwaarde van extra kwaliteitspunten. Een waarde van 1 resulteert in een lineair verloop van kwaliteitswaarde, terwijl een hogere n-waarde de meerwaarde laat afnemen cq. een kromming geeft.

Sheet Info BD
B2: Informatie voor Beschrijvend Document
D6: Uitgangspunten | H6: Waarde | I6: Voorbeeld (winnaar) | L6: Waarde
B7: Tekst voor het beschrijvend document wordt gegenereerd. Even geduld a.u.b. | D7: Aantal punten voor de wensen (Qwensen) | H7: =+'HULP-velden'!C6 -> 500 | I7: Winnaar | L7: =IF(ISERROR(VLOOKUP(1,C$19:L$23,2,FALSE)),"geen",VLOOKUP(1,C$19:L$23,2,FALSE)) -> 4
D8: Lowest Acceptable Quality (LAQ = knock-out) | H8: =IF(+'HULP-velden'!C15<0,"n.v.t.",+'HULP-velden'!D16) -> n.v.t. | I8: Inschrijfprijs | L8: =IF(ISERROR(VLOOKUP(1,C$19:L$23,7,FALSE)),"",VLOOKUP(1,C$19:L$23,7,FALSE)) -> 379000
D9: Kwaliteit voorbeeldinschrijving (Qvbi) | H9: =+'HULP-velden'!C12 -> 250 | I9: Kwaliteitscore (SPi) | L9: =L11-L10 -> 302.5
D10: Prijs voorbeeld inschrijving (Pvbi) | H10: =+'HULP-velden'!C8 -> 400000 | I10: Kwaliteitscore (SQi) | L10: =IF(ISERROR(VLOOKUP(1,C$19:L$23,8,FALSE)),"",VLOOKUP(1,C$19:L$23,8,FALSE)) -> 425
D11: Gewicht voor kwaliteit (Wq) | H11: =Dashboard!H12 -> 0.5 | I11: BPK-Score | L11: =IF(ISERROR(VLOOKUP(1,C$19:L$23,9,FALSE)),"",VLOOKUP(1,C$19:L$23,9,FALSE)) -> 727.5
D12: Gewicht voor prijs (Wp) | H12: =Dashboard!H13 -> 0.5
D13: n-waarde voor kromming scoregraph prijs | H13: =Dashboard!H16 -> 1
D14: Bovengrens vergelijkingswaarde (Pmax) | H14: =Dashboard!H14 -> 500000
D15: Ondergrens vergelijkingswaarde (Pmin) | H15: =Dashboard!H15 -> 300000
D17: Legenda voorbeeld inschrijvingen | I17: Gegevens voor grafiek
D18: # | E18: Pi | F18: Pi | G18: Qi | H18: Qi | I18: Pi | J18: Qi | K18: Scorei | L18: Rang
C19: =L19 -> 5 | D19: 1 | E19: =ROUND('HULP-velden'!$C$8 - 0.15 * ('HULP-velden'!$C$17-'HULP-velden'!$C$8),1) -> 385000 | G19: =ROUND('HULP-velden'!$C$12 + 0.35 * ('HULP-velden'!$C$6-'HULP-velden'!$C$12),0) -> 338 | I19: =IF(F19="",E19,F19) -> 385000 | J19: =IF(H19="",G19,H19) -> 338 | K19: ='HULP-velden'!F41 -> 625.5 | L19: =+'HULP-velden'!I41 -> 5
C20: =L20 -> 2 | D20: 2 | E20: =ROUND('HULP-velden'!$C$8 - 0.4 * ('HULP-velden'!$C$17-'HULP-velden'!$C$8),1) -> 360000 | G20: =ROUND('HULP-velden'!$C$12 + 0.45 * ('HULP-velden'!$C$6-'HULP-velden'!$C$12),0) -> 363 | I20: =IF(F20="",E20,F20) -> 360000 | J20: =IF(H20="",G20,H20) -> 363 | K20: ='HULP-velden'!F42 -> 713 | L20: =+'HULP-velden'!I42 -> 2
C21: =L21 -> 3 | D21: 3 | E21: =ROUND('HULP-velden'!$C$8 + 0.05 * ('HULP-velden'!$C$17-'HULP-velden'!$C$8),1) -> 405000 | G21: =ROUND('HULP-velden'!$C$12 + 0.8 * ('HULP-velden'!$C$6-'HULP-velden'!$C$12),0) -> 450 | I21: =IF(F21="",E21,F21) -> 405000 | J21: =IF(H21="",G21,H21) -> 450 | K21: ='HULP-velden'!F43 -> 687.5 | L21: =+'HULP-velden'!I43 -> 3
C22: =L22 -> 1 | D22: 4 | E22: =ROUND('HULP-velden'!$C$8 - 0.21* ('HULP-velden'!$C$17-'HULP-velden'!$C$8),1) -> 379000 | G22: =ROUND('HULP-velden'!$C$12 + 0.7 * ('HULP-velden'!$C$6-'HULP-velden'!$C$12),0) -> 425 | I22: =IF(F22="",E22,F22) -> 379000 | J22: =IF(H22="",G22,H22) -> 425 | K22: ='HULP-velden'!F44 -> 727.5 | L22: =+'HULP-velden'!I44 -> 1
C23: =L23 -> 4 | D23: 5 | E23: =ROUND('HULP-velden'!$C$8 - 0 * ('HULP-velden'!$C$17-'HULP-velden'!$C$8),1) -> 400000 | G23: =ROUND('HULP-velden'!$C$12 + 0.55 * ('HULP-velden'!$C$6-'HULP-velden'!$C$12),0) -> 388 | I23: =IF(F23="",E23,F23) -> 400000 | J23: =IF(H23="",G23,H23) -> 388 | K23: ='HULP-velden'!F45 -> 638 | L23: =+'HULP-velden'!I45 -> 4

Sheet Scenarioanalyse
B2: ="Scenarioanalyse voor Gewogen Factor Methode" -> Scenarioanalyse voor Gewogen Factor Methode
G6: Alternatief Pi | H6: Qi | I6: Alternatief Qi | J6: Qi in %
D7: Scenario | E7: Tonen | F7: Pi | K7: Si | L7: Rang- orde
C8: 1 | D8: ="Combinatie P/Q (" & C8 & ")" -> Combinatie P/Q (1) | E8: ja | F8: =IF(ISERROR(+'HULP-velden'!D124),"",+'HULP-velden'!D124) -> 500000 | H8: =+'HULP-velden'!I124 -> 475 | J8: =IF(ISBLANK(H8),"",+'HULP-velden'!L124) -> 95 | K8: =+'HULP-velden'!K124 -> 475 | L8: =IF(E8="nee","",+'HULP-velden'!N124) -> 12 | N8: =+'HULP-velden'!F124 -> 500000
C9: 2 | D9: Combinatie P/Q (2) | E9: ja | F9: =IF(ISERROR(+'HULP-velden'!D125),"",+'HULP-velden'!D125) -> 481818.1818 | H9: =+'HULP-velden'!I125 -> 450 | J9: =IF(ISBLANK(H9),"",+'HULP-velden'!L125) -> 90 | K9: =+'HULP-velden'!K125 -> 495.5 | L9: =IF(E9="nee","",+'HULP-velden'!N125) -> 11 | N9: =+'HULP-velden'!F125 -> 481818.1818
C10: 3 | D10: Combinatie P/Q (3) | E10: ja | F10: =IF(ISERROR(+'HULP-velden'!D126),"",+'HULP-velden'!D126) -> 463636.3636 | H10: =+'HULP-velden'!I126 -> 425 | J10: =IF(ISBLANK(H10),"",+'HULP-velden'!L126) -> 85 | K10: =+'HULP-velden'!K126 -> 515.9 | L10: =IF(E10="nee","",+'HULP-velden'!N126) -> 10 | N10: =+'HULP-velden'!F126 -> 463636.3636
C11: 4 | D11: Combinatie P/Q (4) | E11: ja | F11: =IF(ISERROR(+'HULP-velden'!D127),"",+'HULP-velden'!D127) -> 445454.5455 | H11: =+'HULP-velden'!I127 -> 400 | J11: =IF(ISBLANK(H11),"",+'HULP-velden'!L127) -> 80 | K11: =+'HULP-velden'!K127 -> 536.4 | L11: =IF(E11="nee","",+'HULP-velden'!N127) -> 9 | N11: =+'HULP-velden'!F127 -> 445454.5455
C12: 5 | D12: Combinatie P/Q (5) | E12: ja | F12: =IF(ISERROR(+'HULP-velden'!D128),"",+'HULP-velden'!D128) -> 427272.7273 | H12: =+'HULP-velden'!I128 -> 375 | J12: =IF(ISBLANK(H12),"",+'HULP-velden'!L128) -> 75 | K12: =+'HULP-velden'!K128 -> 556.8 | L12: =IF(E12="nee","",+'HULP-velden'!N128) -> 8 | N12: =+'HULP-velden'!F128 -> 427272.7273
C13: 6 | D13: Combinatie P/Q (6) | E13: ja | F13: =IF(ISERROR(+'HULP-velden'!D129),"",+'HULP-velden'!D129) -> 409090.9091 | H13: =+'HULP-velden'!I129 -> 350 | J13: =IF(ISBLANK(H13),"",+'HULP-velden'!L129) -> 70 | K13: =+'HULP-velden'!K129 -> 577.3 | L13: =IF(E13="nee","",+'HULP-velden'!N129) -> 7 | N13: =+'HULP-velden'!F129 -> 409090.9091
C14: 7 | D14: Combinatie P/Q (7) | E14: ja | F14: =IF(ISERROR(+'HULP-velden'!D130),"",+'HULP-velden'!D130) -> 390909.0909 | H14: =+'HULP-velden'!I130 -> 325 | J14: =IF(ISBLANK(H14),"",+'HULP-velden'!L130) -> 65 | K14: =+'HULP-velden'!K130 -> 597.7 | L14: =IF(E14="nee","",+'HULP-velden'!N130) -> 6 | N14: =+'HULP-velden'!F130 -> 390909.0909
C15: 8 | D15: Combinatie P/Q (8) | E15: ja | F15: =IF(ISERROR(+'HULP-velden'!D131),"",+'HULP-velden'!D131) -> 372727.2727 | H15: =+'HULP-velden'!I131 -> 300 | J15: =IF(ISBLANK(H15),"",+'HULP-velden'!L131) -> 60 | K15: =+'HULP-velden'!K131 -> 618.2 | L15: =IF(E15="nee","",+'HULP-velden'!N131) -> 5 | N15: =+'HULP-velden'!F131 -> 372727.2727
C16: 9 | D16: Combinatie P/Q (9) | E16: ja | F16: =IF(ISERROR(+'HULP-velden'!D132),"",+'HULP-velden'!D132) -> 354545.4545 | H16: =+'HULP-velden'!I132 -> 275 | J16: =IF(ISBLANK(H16),"",+'HULP-velden'!L132) -> 55 | K16: =+'HULP-velden'!K132 -> 638.6 | L16: =IF(E16="nee","",+'HULP-velden'!N132) -> 4 | N16: =+'HULP-velden'!F132 -> 354545.4545
C17: 10 | D17: Combinatie P/Q (10) | E17: ja | F17: =IF(ISERROR(+'HULP-velden'!D133),"",+'HULP-velden'!D133) -> 336363.6364 | H17: =+'HULP-velden'!I133 -> 250 | J17: =IF(ISBLANK(H17),"",+'HULP-velden'!L133) -> 50 | K17: =+'HULP-velden'!K133 -> 659.1 | L17: =IF(E17="nee","",+'HULP-velden'!N133) -> 3 | N17: =+'HULP-velden'!F133 -> 336363.6364
C18: 11 | D18: Combinatie P/Q (11) | E18: ja | F18: =IF(ISERROR(+'HULP-velden'!D134),"",+'HULP-velden'!D134) -> 318181.8182 | H18: =+'HULP-velden'!I134 -> 225 | J18: =IF(ISBLANK(H18),"",+'HULP-velden'!L134) -> 45 | K18: =+'HULP-velden'!K134 -> 679.5 | L18: =IF(E18="nee","",+'HULP-velden'!N134) -> 2 | N18: =+'HULP-velden'!F134 -> 318181.8182
C19: 12 | D19: Combinatie P/Q (12) | E19: ja | F19: =IF(ISERROR(+'HULP-velden'!D135),"",+'HULP-velden'!D135) -> 300000 | H19: =+'HULP-velden'!I135 -> 200 | J19: =IF(ISBLANK(H19),"",+'HULP-velden'!L135) -> 40 | K19: =+'HULP-velden'!K135 -> 700 | L19: =IF(E19="nee","",+'HULP-velden'!N135) -> 1 | N19: =+'HULP-velden'!F135 -> 300000
D20: Voorbeeld P/Q-combinatie | F20: =+'HULP-velden'!$C$8 -> 400000 | H20: =+'HULP-velden'!$C$12 -> 250 | J20: =IF(ISBLANK(H20),"",+'HULP-velden'!$I$63) -> 50 | K20: =+'HULP-velden'!K136 -> 500
C22: A | D22: ="Start aanbodlijn in punten." -> Start aanbodlijn in punten. | H22: 200
D23: Totaal aantal punten dat aan de wensen wordt toegekend. | H23: =Dashboard!H10 -> 500 | I23: = SQwensen

Sheet Evaluatie
B2: ="Evaluatie voor " & DATA!C35 & " " & DATA!C34 -> Evaluatie voor
G6: Qi
D7: # | E7: Inschrijver | F7: Pi | H7: in % | I7: SCOREi | J7: Rang- orde
D8: 1 | H8: =DATA!E61 ->  | I8: =DATA!F61 ->  | J8: =IF(I8="","",DATA!G61) -> 
D9: 2 | H9: =DATA!E62 ->  | I9: =DATA!F62 ->  | J9: =IF(I9="","",DATA!G62) -> 
D10: 3 | H10: =DATA!E63 ->  | I10: =DATA!F63 ->  | J10: =IF(I10="","",DATA!G63) -> 
D11: 4 | H11: =DATA!E64 ->  | I11: =DATA!F64 ->  | J11: =IF(I11="","",DATA!G64) -> 
D12: 5 | H12: =DATA!E65 ->  | I12: =DATA!F65 ->  | J12: =IF(I12="","",DATA!G65) -> 
D13: 6 | H13: =DATA!E66 ->  | I13: =DATA!F66 ->  | J13: =IF(I13="","",DATA!G66) -> 
D14: 7 | H14: =DATA!E67 ->  | I14: =DATA!F67 ->  | J14: =IF(I14="","",DATA!G67) -> 
D15: 8 | H15: =DATA!E68 ->  | I15: =DATA!F68 ->  | J15: =IF(I15="","",DATA!G68) -> 
D16: 9 | H16: =DATA!E69 ->  | I16: =DATA!F69 ->  | J16: =IF(I16="","",DATA!G69) -> 
D17: 10 | H17: =DATA!E70 ->  | I17: =DATA!F70 ->  | J17: =IF(I17="","",DATA!G70) -> 
D18: 11 | H18: =DATA!E71 ->  | I18: =DATA!F71 ->  | J18: =IF(I18="","",DATA!G71) -> 
D19: 12 | H19: =DATA!E72 ->  | I19: =DATA!F72 ->  | J19: =IF(I19="","",DATA!G72) -> 
E20: Referentie | F20: =+'HULP-velden'!$C$8 -> 400000 | G20: =+'HULP-velden'!$C$12 -> 250 | H20: =IF(ISBLANK(G20),"",+'HULP-velden'!$I$63) -> 50 | I20: =IF(ISBLANK(G20),"",'HULP-velden'!H63) -> 500

Sheet TBV Onderzoek
B2: ="Data voor onderzoek Gewogen Factor Methode" -> Data voor onderzoek Gewogen Factor Methode
B6: Naam inkooptraject | D6: =Dashboard!E6 ->  | G6: Naam organisatie | O6: Contactpersoon
B7: Kenmerk | D7: =Dashboard!E7 ->  | G7: Datum Publicatie | O7: Telefoonnummer
B8: Methodiek | D8: =Dashboard!F7 -> Machtsformule | G8: CPV-code
B10: N.B. Onderstaande gegevens worden gedeeld met het IUC Belastingienst voor onderzoek. De namen van de inschrijvers zijn geannonimiseerd.
B11: # | C11: Kenmerk | D11: Naam inkooptraject | E11: CPV-code | F11: Datum Publicatie | G11: Formule | H11: Pref | I11: Qref | J11: Qwensen | K11: Wq | L11: Wp | M11: Ondergrens | N11: Bovengrens | O11: LAQ | P11: n-waarde | Q11: Naam Inschrijver | R11: P(inschrijver) | S11: Qi | T11: Score | U11: Rang
B12: 1 | C12: =$D$7 ->  | D12: =$D$6 ->  | E12: =$I$8 -> 0 | F12: =$I$7 -> 00:00:00 | G12: =Dashboard!$F$7 -> Machtsformule | H12: ='HULP-velden'!$C$8 -> 400000 | I12: ='HULP-velden'!$M$15 -> 250 | J12: ='HULP-velden'!$C$6 -> 500 | K12: ='HULP-velden'!$C$10 -> 0.5 | L12: =+'HULP-velden'!$C$11 -> 0.5 | M12: =+'HULP-velden'!$C$14 -> 300000 | N12: =+'HULP-velden'!$C$17 -> 500000 | O12: =+'HULP-velden'!$C$15 -> -1000 | P12: =+'HULP-velden'!$C$16 -> 1 | Q12: Inschrijver 1 | R12: =+Evaluatie!F8 -> 0 | S12: =+Evaluatie!G8 -> 0 | T12: =+Evaluatie!I8 ->  | U12: =+Evaluatie!J8 -> 
B13: 2 | E13: 0 | F13: 00:00:00 | G13: =Dashboard!$F$7 -> Machtsformule | H13: ='HULP-velden'!$C$8 -> 400000 | I13: ='HULP-velden'!$M$15 -> 250 | J13: ='HULP-velden'!$C$6 -> 500 | K13: ='HULP-velden'!$C$10 -> 0.5 | L13: =+'HULP-velden'!$C$11 -> 0.5 | M13: =+'HULP-velden'!$C$14 -> 300000 | N13: =+'HULP-velden'!$C$17 -> 500000 | O13: =+'HULP-velden'!$C$15 -> -1000 | P13: =+'HULP-velden'!$C$16 -> 1 | Q13: Inschrijver 2 | R13: =+Evaluatie!F9 -> 0 | S13: =+Evaluatie!G9 -> 0 | T13: =+Evaluatie!I9 ->  | U13: =+Evaluatie!J9 -> 
B14: 3 | E14: 0 | F14: 00:00:00 | G14: =Dashboard!$F$7 -> Machtsformule | H14: ='HULP-velden'!$C$8 -> 400000 | I14: ='HULP-velden'!$M$15 -> 250 | J14: ='HULP-velden'!$C$6 -> 500 | K14: ='HULP-velden'!$C$10 -> 0.5 | L14: =+'HULP-velden'!$C$11 -> 0.5 | M14: =+'HULP-velden'!$C$14 -> 300000 | N14: =+'HULP-velden'!$C$17 -> 500000 | O14: =+'HULP-velden'!$C$15 -> -1000 | P14: =+'HULP-velden'!$C$16 -> 1 | Q14: Inschrijver 3 | R14: =+Evaluatie!F10 -> 0 | S14: =+Evaluatie!G10 -> 0 | T14: =+Evaluatie!I10 ->  | U14: =+Evaluatie!J10 -> 
B15: 4 | E15: 0 | F15: 00:00:00 | G15: =Dashboard!$F$7 -> Machtsformule | H15: ='HULP-velden'!$C$8 -> 400000 | I15: ='HULP-velden'!$M$15 -> 250 | J15: ='HULP-velden'!$C$6 -> 500 | K15: ='HULP-velden'!$C$10 -> 0.5 | L15: =+'HULP-velden'!$C$11 -> 0.5 | M15: =+'HULP-velden'!$C$14 -> 300000 | N15: =+'HULP-velden'!$C$17 -> 500000 | O15: =+'HULP-velden'!$C$15 -> -1000 | P15: =+'HULP-velden'!$C$16 -> 1 | Q15: Inschrijver 4 | R15: =+Evaluatie!F11 -> 0 | S15: =+Evaluatie!G11 -> 0 | T15: =+Evaluatie!I11 ->  | U15: =+Evaluatie!J11 -> 
B16: 5 | E16: 0 | F16: 00:00:00 | G16: =Dashboard!$F$7 -> Machtsformule | H16: ='HULP-velden'!$C$8 -> 400000 | I16: ='HULP-velden'!$M$15 -> 250 | J16: ='HULP-velden'!$C$6 -> 500 | K16: ='HULP-velden'!$C$10 -> 0.5 | L16: =+'HULP-velden'!$C$11 -> 0.5 | M16: =+'HULP-velden'!$C$14 -> 300000 | N16: =+'HULP-velden'!$C$17 -> 500000 | O16: =+'HULP-velden'!$C$15 -> -1000 | P16: =+'HULP-velden'!$C$16 -> 1 | Q16: Inschrijver 5 | R16: =+Evaluatie!F12 -> 0 | S16: =+Evaluatie!G12 -> 0 | T16: =+Evaluatie!I12 ->  | U16: =+Evaluatie!J12 -> 
B17: 6 | E17: 0 | F17: 00:00:00 | G17: =Dashboard!$F$7 -> Machtsformule | H17: ='HULP-velden'!$C$8 -> 400000 | I17: ='HULP-velden'!$M$15 -> 250 | J17: ='HULP-velden'!$C$6 -> 500 | K17: ='HULP-velden'!$C$10 -> 0.5 | L17: =+'HULP-velden'!$C$11 -> 0.5 | M17: =+'HULP-velden'!$C$14 -> 300000 | N17: =+'HULP-velden'!$C$17 -> 500000 | O17: =+'HULP-velden'!$C$15 -> -1000 | P17: =+'HULP-velden'!$C$16 -> 1 | Q17: Inschrijver 6 | R17: =+Evaluatie!F13 -> 0 | S17: =+Evaluatie!G13 -> 0 | T17: =+Evaluatie!I13 ->  | U17: =+Evaluatie!J13 -> 
B18: 7 | E18: 0 | F18: 00:00:00 | G18: =Dashboard!$F$7 -> Machtsformule | H18: ='HULP-velden'!$C$8 -> 400000 | I18: ='HULP-velden'!$M$15 -> 250 | J18: ='HULP-velden'!$C$6 -> 500 | K18: ='HULP-velden'!$C$10 -> 0.5 | L18: =+'HULP-velden'!$C$11 -> 0.5 | M18: =+'HULP-velden'!$C$14 -> 300000 | N18: =+'HULP-velden'!$C$17 -> 500000 | O18: =+'HULP-velden'!$C$15 -> -1000 | P18: =+'HULP-velden'!$C$16 -> 1 | Q18: Inschrijver 7 | R18: =+Evaluatie!F14 -> 0 | S18: =+Evaluatie!G14 -> 0 | T18: =+Evaluatie!I14 ->  | U18: =+Evaluatie!J14 -> 
B19: 8 | E19: 0 | F19: 00:00:00 | G19: =Dashboard!$F$7 -> Machtsformule | H19: ='HULP-velden'!$C$8 -> 400000 | I19: ='HULP-velden'!$M$15 -> 250 | J19: ='HULP-velden'!$C$6 -> 500 | K19: ='HULP-velden'!$C$10 -> 0.5 | L19: =+'HULP-velden'!$C$11 -> 0.5 | M19: =+'HULP-velden'!$C$14 -> 300000 | N19: =+'HULP-velden'!$C$17 -> 500000 | O19: =+'HULP-velden'!$C$15 -> -1000 | P19: =+'HULP-velden'!$C$16 -> 1 | Q19: Inschrijver 8 | R19: =+Evaluatie!F15 -> 0 | S19: =+Evaluatie!G15 -> 0 | T19: =+Evaluatie!I15 ->  | U19: =+Evaluatie!J15 -> 
B20: 9 | E20: 0 | F20: 00:00:00 | G20: =Dashboard!$F$7 -> Machtsformule | H20: ='HULP-velden'!$C$8 -> 400000 | I20: ='HULP-velden'!$M$15 -> 250 | J20: ='HULP-velden'!$C$6 -> 500 | K20: ='HULP-velden'!$C$10 -> 0.5 | L20: =+'HULP-velden'!$C$11 -> 0.5 | M20: =+'HULP-velden'!$C$14 -> 300000 | N20: =+'HULP-velden'!$C$17 -> 500000 | O20: =+'HULP-velden'!$C$15 -> -1000 | P20: =+'HULP-velden'!$C$16 -> 1 | Q20: Inschrijver 9 | R20: =+Evaluatie!F16 -> 0 | S20: =+Evaluatie!G16 -> 0 | T20: =+Evaluatie!I16 ->  | U20: =+Evaluatie!J16 -> 
B21: 10 | E21: 0 | F21: 00:00:00 | G21: =Dashboard!$F$7 -> Machtsformule | H21: ='HULP-velden'!$C$8 -> 400000 | I21: ='HULP-velden'!$M$15 -> 250 | J21: ='HULP-velden'!$C$6 -> 500 | K21: ='HULP-velden'!$C$10 -> 0.5 | L21: =+'HULP-velden'!$C$11 -> 0.5 | M21: =+'HULP-velden'!$C$14 -> 300000 | N21: =+'HULP-velden'!$C$17 -> 500000 | O21: =+'HULP-velden'!$C$15 -> -1000 | P21: =+'HULP-velden'!$C$16 -> 1 | Q21: Inschrijver 10 | R21: =+Evaluatie!F17 -> 0 | S21: =+Evaluatie!G17 -> 0 | T21: =+Evaluatie!I17 ->  | U21: =+Evaluatie!J17 -> 
B22: 11 | E22: 0 | F22: 00:00:00 | G22: =Dashboard!$F$7 -> Machtsformule | H22: ='HULP-velden'!$C$8 -> 400000 | I22: ='HULP-velden'!$M$15 -> 250 | J22: ='HULP-velden'!$C$6 -> 500 | K22: ='HULP-velden'!$C$10 -> 0.5 | L22: =+'HULP-velden'!$C$11 -> 0.5 | M22: =+'HULP-velden'!$C$14 -> 300000 | N22: =+'HULP-velden'!$C$17 -> 500000 | O22: =+'HULP-velden'!$C$15 -> -1000 | P22: =+'HULP-velden'!$C$16 -> 1 | Q22: Inschrijver 11 | R22: =+Evaluatie!F18 -> 0 | S22: =+Evaluatie!G18 -> 0 | T22: =+Evaluatie!I18 ->  | U22: =+Evaluatie!J18 -> 
B23: 12 | E23: 0 | F23: 00:00:00 | G23: =Dashboard!$F$7 -> Machtsformule | H23: ='HULP-velden'!$C$8 -> 400000 | I23: ='HULP-velden'!$M$15 -> 250 | J23: ='HULP-velden'!$C$6 -> 500 | K23: ='HULP-velden'!$C$10 -> 0.5 | L23: =+'HULP-velden'!$C$11 -> 0.5 | M23: =+'HULP-velden'!$C$14 -> 300000 | N23: =+'HULP-velden'!$C$17 -> 500000 | O23: =+'HULP-velden'!$C$15 -> -1000 | P23: =+'HULP-velden'!$C$16 -> 1 | Q23: Inschrijver 12 | R23: =+Evaluatie!F19 -> 0 | S23: =+Evaluatie!G19 -> 0 | T23: =+Evaluatie!I19 ->  | U23: =+Evaluatie!J19 -> 

Sheet HULP-velden (hidden)
BB1: Voorbeeld | BP1: Aanbodcourve | BS1: 1 | BT1: 2 | BU1: 3 | BV1: 4 | BW1: 5 | BX1: 6 | BY1: 7 | BZ1: 8 | CA1: 9 | CB1: 10 | CC1: 11 | CD1: 12
B2: Hulpvelden | AT2: Voorbeeldinschrijving | AW2: =+C8 -> 400000 | AX2: =TEXT(AW2,"€#.##0,00") -> €400.000,00 | BA2: Voorbeeld | BC2: =Dashboard!H20 -> 500 | BD2: =TEXT(BC2,"#.##0,0") -> 500,0 | BF2: Winnaar | BH2: ='Info BD'!L7 -> 4 | BI2: =TEXT(BH2,"#.##0") -> 4 | BK2: LAQ | BL2: =Dashboard!H22 -> 0 | BM2: =TEXT(BL2,"#.##0") -> 0 | BO2: 1 | BP2: =IF(Scenarioanalyse!E8="nee","",F124) -> 500000 | BQ2: =IF(Scenarioanalyse!E8="nee","",L124) -> 95 | BS2: =F124 -> 500000 | BT2: =F125 -> 481818.1818 | BU2: =F126 -> 463636.3636 | BV2: =F127 -> 445454.5455 | BW2: =F128 -> 427272.7273 | BX2: =F129 -> 409090.9091 | BY2: =F130 -> 390909.0909 | BZ2: =F131 -> 372727.2727 | CA2: =F132 -> 354545.4545 | CB2: =F133 -> 336363.6364 | CC2: =F134 -> 318181.8182 | CD2: =F135 -> 300000
AT3: Qwensen | AW3: =+C6 -> 500 | AX3: =TEXT(AW3,"#.##0") -> 500 | BA3: Lijn+1 | BC3: =AN19 -> 550 | BD3: =TEXT(BC3,"#.##0,0") -> 550,0 | BF3: Inschrijfprijs | BH3: =+'Info BD'!L8 -> 379000 | BI3: =TEXT(BH3,"€#.##0,00") -> €379.000,00 | BO3: 2 | BP3: =IF(Scenarioanalyse!E9="nee","",F125) -> 481818.1818 | BQ3: =IF(Scenarioanalyse!E9="nee","",L125) -> 90 | BS3: =L124 -> 95 | BT3: =L125 -> 90 | BU3: =L126 -> 85 | BV3: =L127 -> 80 | BW3: =L128 -> 75 | BX3: =L129 -> 70 | BY3: =L130 -> 65 | BZ3: =L131 -> 60 | CA3: =L132 -> 55 | CB3: =L133 -> 50 | CC3: =L134 -> 45 | CD3: =L135 -> 40
AT4: SQvbi | AW4: =+C12 -> 250 | AX4: =TEXT(AW4,"#.##0,0") -> 250,0 | BA4: Lijn+2 | BC4: =+AO19 -> 600 | BD4: =TEXT(BC4,"#.##0,0") -> 600,0 | BF4: Kwaliteitsscore | BH4: =+'Info BD'!L10 -> 425 | BI4: =TEXT(BH4,"#.##0,0") -> 425,0 | BO4: 3 | BP4: =IF(Scenarioanalyse!E10="nee","",F126) -> 463636.3636 | BQ4: =IF(Scenarioanalyse!E10="nee","",L126) -> 85
B5: Delta | C5: =IF(Dashboard!G9="Nee",0,Dashboard!G14) -> 0 | D5: =(1+C5)*Dashboard!H15 -> 300000 | E5: Formule | G5: QSmax | H5: =C6 -> 500 | AT5: SPvbi | AW5: =C164 -> 250 | AX5: =TEXT(AW5,"#.##0,0") -> 250,0 | AY5: =+AX4+AX5 -> 500 | AZ5: =TEXT(AY5,"#.##0,0") -> 500,0 | BA5: Lijn+3 | BC5: =+AP19 -> 650 | BD5: =TEXT(BC5,"#.##0,0") -> 650,0 | BF5: Kwaliteitsscore Adapt | BK5: Score voorbeeld | BL5: =+BC2/10^AW8 -> 50 | BM5: =TEXT(BL5,"#.##0,000#########################") -> 50,000 | BO5: 4 | BP5: =IF(Scenarioanalyse!E11="nee","",F127) -> 445454.5455 | BQ5: =IF(Scenarioanalyse!E11="nee","",L127) -> 80
B6: Qwensen | C6: =Dashboard!H10 -> 500 | D6: Qwensen | E6: =Dashboard!F7 -> Machtsformule | G6: PSmax | H6: =C6/C10*C11 -> 500 | I6: =IF(H6<>ROUND(H6,0),1,0) -> 0 | AT6: Wq | AW6: =+C10 -> 0.5 | AX6: =TEXT(AW6,"#.##0%") -> 50% | BA6: Qmin | BC6: 100 | BD6: =TEXT(BC6,"#.##0") -> 100 | BF6: BPK-Score | BH6: ='Info BD'!L11 -> 727.5 | BI6: =TEXT(BH6,"#.##0,0") -> 727,5 | BK6: Pmax | BL6: =C17 -> 500000 | BM6: =TEXT(BL6,"€#.##0,00") -> €500.000,00 | BO6: 5 | BP6: =IF(Scenarioanalyse!E12="nee","",F128) -> 427272.7273 | BQ6: =IF(Scenarioanalyse!E12="nee","",L128) -> 75
B7: Stappen | C7: =+C6/20 -> 25 | G7: Macht | H7: =Dashboard!H16 -> 1 | AT7: Wp | AW7: =+C11 -> 0.5 | AX7: =TEXT(AW7,"#.##0%") -> 50% | BA7: Qmax | BC7: =BC6+(1+Dashboard!G14)*BC6 -> 200 | BD7: =TEXT(BC7,"#.##0") -> 200 | BF7: nummer 2 | BH7: =VLOOKUP(2,A$41:$F$46,6,FALSE) -> 713 | BI7: =TEXT(BH7,"#.##0,0") -> 713,0 | BK7: Pmin | BL7: =C14 -> 300000 | BM7: =TEXT(BL7,"€#.##0,00") -> €300.000,00 | BO7: 6 | BP7: =IF(Scenarioanalyse!E13="nee","",F129) -> 409090.9091 | BQ7: =IF(Scenarioanalyse!E13="nee","",L129) -> 70
B8: Ref | C8: =IF(+Dashboard!H18=0,C14,+Dashboard!H18) -> 400000 | D8: Pref | E8: Minimum percentage | F8: 0 | G8: QSvb | H8: =+C12 -> 250 | AT8: N-waarde | AW8: =C16 -> 1 | AX8: =TEXT(AW8,"#.##0,0") -> 1,0 | BA8: Qadapt | BC8: =+BC7-BC6 -> 100 | BD8: =TEXT(BC8,"#.##0") -> 100 | BF8: nummer 5 | BH8: =VLOOKUP(5,A$41:$F$46,6,FALSE) -> 625.5 | BI8: =TEXT(BH8,"#.##0,0") -> 625,5 | BK8: PSmax | BL8: =H6 -> 500 | BM8: =TEXT($BL$8,"#.##0") -> 500 | BO8: 7 | BP8: =IF(Scenarioanalyse!E14="nee","",F130) -> 390909.0909 | BQ8: =IF(Scenarioanalyse!E14="nee","",L130) -> 65
B9: Aanbodlijn | C9: TRUE | E9: Maximum percentage | F9: 0.4 | G9: PSvb | H9: =C164 -> 250 | BK9: Qsmax | BL9: =H5 -> 500 | BM9: =TEXT(BL9,"#.##0") -> 500 | BO9: 8 | BP9: =IF(Scenarioanalyse!E15="nee","",F131) -> 372727.2727 | BQ9: =IF(Scenarioanalyse!E15="nee","",L131) -> 60
B10: Wq | C10: =Dashboard!H12 -> 0.5 | H10: =SUM(H8:H9) -> 500 | L10: Hulpvelden voor opbouw van de EMVI-lijnen | AU10: Tekst voor beschrijvend document | BK10: Stotaal | BL10: =SUM(BL8:BL9) -> 1000 | BM10: =TEXT(BL10,"#.##0") -> 1.000 | BO10: 9 | BP10: =IF(Scenarioanalyse!E16="nee","",F132) -> 354545.4545 | BQ10: =IF(Scenarioanalyse!E16="nee","",L132) -> 55
B11: Wp | C11: =1-C10 -> 0.5 | E11: Delta | F11: =IF(Dashboard!G14<>0,Dashboard!G14*100,"n.v.t.") -> n.v.t. | BM11: =TEXT($BL$8,"#.##0,00") -> 500,00 | BO11: 10 | BP11: =IF(Scenarioanalyse!E17="nee","",F133) -> 336363.6364 | BQ11: =IF(Scenarioanalyse!E17="nee","",L133) -> 50
B12: Qref | C12: =C6*Dashboard!G19 -> 250 | E12: Qref = | F12: =IF(F11<>"n.v.t.",F14+(C12/C6*F11),C12/C6*C20) -> 50 | BO12: 11 | BP12: =IF(Scenarioanalyse!E18="nee","",F134) -> 318181.8182 | BQ12: =IF(Scenarioanalyse!E18="nee","",L134) -> 45
B13: Plafondprijs | C13: -100000 | D13: =TEXT(C13/1000, "€ #.###") -> -€ 100 | E13: Qmax | F13: =IF(F11<>"n.v.t.",F14+F11,C20) -> 100 | L13: Stappen | M13: =+C8/10*1.5 -> 60000 | AJ13: =ROUND(IF($E$6="Wortelformule",$H$6*((($C$17-AJ15)/($C$17-$C$14))^(1/$H$7)),$H$6-$H$6*((AJ15-$C$14)/($C$17-$C$14))^$H$7),2) -> 175 | AK13: 200 | AL13: 225 | AM13: 250 | AN13: 275 | AO13: 300 | AP13: 325 | BO13: 12 | BP13: =IF(Scenarioanalyse!E19="nee","",F135) -> 300000 | BQ13: =IF(Scenarioanalyse!E19="nee","",L135) -> 40
B14: Ondergrens | C14: =Dashboard!H15 -> 300000 | E14: Qmin | F14: =IF(F11<>"n.v.t.",100,0) -> 0 | L14: Pvbo | M14: =+C8 -> 400000 | AJ14: =AK14-$C$7 -> 175 | AK14: =AL14-$C$7 -> 200 | AL14: =AM14-$C$7 -> 225 | AM14: =H8 -> 250 | AN14: =AM14+$C$7 -> 275 | AO14: =AN14+$C$7 -> 300 | AP14: =AO14+$C$7 -> 325
B15: LAQ | C15: =IF(Dashboard!H22=0,-1000,+F15) -> -1000 | D15: =+C15 -> -1000 | E15: LAQ | F15: =IF(F11<>"n.v.t.",+F14+(Dashboard!$H$22/C6)*F11,+(Dashboard!$H$22/C6)*F13) -> 0 | G15: =E15& " = " & Dashboard!$H$22 -> LAQ = | L15: Qvbo | M15: =IF(F11<>"n.v.t.",+F12,C12) -> 250 | AA15: Basis voor | AJ15: =AK15+$D$18 -> 430000 | AK15: =AL15+$D$18 -> 420000 | AL15: =AM15+$D$18 -> 410000 | AM15: =+C8 -> 400000 | AN15: =AM15-$D$18 -> 390000 | AO15: =AN15-$D$18 -> 380000 | AP15: =AO15-$D$18 -> 370000 | AT15: Beste prijs-kwaliteitverhouding
B16: n-factor | C16: =+Dashboard!H16 -> 1 | D16: =Dashboard!H22 -> 0 | G16: =B13 & "; " & D13 -> Plafondprijs; -€ 100 | L16: Score | M16: =C163 -> 500 | O16: =+M17 -> n.v.t. | AA16: Grafiek | AJ16: BPK-Lijn -3 | AK16: BPK-Lijn -2 | AL16: BPK-Lijn -1 | AM16: BPK-lijn Ref | AN16: BPK-Lijn +1 | AO16: BPK-Lijn +2 | AP16: BPK-Lijn +3
B17: Bovengrens | C17: =Dashboard!H14 -> 500000 | D17: =+C17 -> 500000 | E17: Check_Scenario_Dashboard | F17: True | M17: =IF(ISERROR(+M15/M16^($C$10/$C$11)*10^#REF!),"n.v.t.",+M15/M16^($C$10/$C$11)*10^#REF!) -> n.v.t. | V17: Verdelen van de Qwensen in 20 stappen | AT17: De aanbestedende dienst hecht veel waarde aan een evenwichtige balans tussen prijs en kwaliteit. Om dit te waarborgen, wordt in deze aanbesteding een objectieve beoordelingsmethode gehanteerd die elke inschrijving onafhankelijk van de andere beoordeelt.
C18: =+C17-C14 -> 200000 | D18: =+C18/20 -> 10000 | L18: Basis | M18: Prijs | O18: Basis | AA18: verschoven | AB18: Waarde | AF18: Wortel | AG18: Kwadratische | AJ18: Score-lijn | AK18: Score-lijn | AL18: Score-lijn | AM18: Score-lijn | AN18: Score-lijn | AO18: Score-lijn | AP18: Score-lijn
B19: Hulpvelden | L19: voor | M19: voor | O19: voor | AA19: X-as | AB19: voor | AE19: Keuze | AF19: formule | AG19: formule | AJ19: =+AJ14+AJ13 -> 350 | AK19: 400 | AL19: 450 | AM19: 500 | AN19: 550 | AO19: 600 | AP19: 650
B20: Qmax | C20: =+C69 -> 100 | D20: =+C69 -> 100 | L20: Matrix 2x2 | M20: Y-as | O20: Matrix 2x2 | W20: % | X20: !! | AA20: Qmin+Qwensen | AB20: X-as | AD20: P-score | AE20: Y-as | AJ20: X-as | AK20: X-as | AL20: X-as | AM20: X-as | AN20: X-as | AO20: X-as | AP20: X-as
B21: Prijs | C21: 0 | D21: =D105 -> 520000 | F21: Plafondprijs | G21: =C24 -> -100000 | H21: =D24 -> -100000 | L21: Pi | O21: Qi | V21: Qwensen | W21: deel | X21: X-as | AB21: genormaliseerd | AJ21: Q-score | AK21: Q-score | AL21: Q-score | AM21: Q-score | AN21: Q-score | AO21: Q-score | AP21: Q-score | AT21: ="Een voorbeeldinschrijving (oranje stip) illustreert de werking van de beoordelingsmethode met een prijs van "&AX2&" en een prijsscore van "& AX5 & " punten en een kwaliteitsscore van "&AX4&" punten. Dit resulteert in een totaal van " &AZ5& " punten. " -> Een voorbeeldinschrijving (oranje stip) illustreert de werking van de beoordelingsmethode met een prijs van €400.000,00 en een prijsscore van 250,0 punten en een kwaliteitsscore van 250,0 punten. Dit resulteert in een totaal van 500,0 punten.
B22: Pref | C22: =+C8 -> 400000 | D22: =+C8 -> 400000 | F22: Qref | G22: 0 | H22: =+C12 -> 250 | L22: 0 | M22: =+$M$14*L22 -> 0 | N22: 0 | O22: 0 | V22: =$V$223*W22 -> 0 | W22: 0 | X22: =F14 -> 0 | AA22: =+X22 -> 0 | AD22: =0 -> 0 | AE22: =IF($E$6="Wortelformule",AF22,AG22) -> 500000 | AF22: =$C$17-(AD22^$H$7)*($C$17-$C$14)/($H$6^$H$7) -> 500000 | AG22: =$C$14+($C$17-$C$14)*(($H$6-AD22)/$H$6)^(1/$H$7) -> 500000 | AJ22: =(($AJ$19-AD22)/$H$5)*100 -> 70 | AK22: =(($AK$19-AD22)/$H$5)*100 -> 80 | AL22: =(($AL$19-AD22)/$H$5)*100 -> 90 | AM22: =(($AM$19-AD22)/$H$5)*100 -> 100 | AN22: =(($AN$19-AD22)/$H$5)*100 -> 110 | AO22: =(($AO$19-AD22)/$H$5)*100 -> 120 | AP22: =(($AP$19-AD22)/$H$5)*100 -> 130 | AT22: ="Voor Prijs en Kwaliteit kunnen respectievelijk maximaal "&BM8&" en "&BM9& " punten worden behaald, wat overeenkomt met een verhouding van " & AX7& " voor Prijs en " & AX6 & " voor Kwaliteit. " -> Voor Prijs en Kwaliteit kunnen respectievelijk maximaal 500 en 500 punten worden behaald, wat overeenkomt met een verhouding van 50% voor Prijs en 50% voor Kwaliteit.
B23: Plafondprijs x-as | C23: 0 | D23: 100 | F23: Ref lijn | G23: 0 | H23: 0 | L23: =+L22+0.1 -> 0.1 | M23: =+$M$14*L23 -> 40000 | N23: =+N22+5 -> 5 | O23: 0.1 | V23: 0.5 | W23: =+W22+0.005 -> 0.005 | X23: =+W23*($X$223-$F$14)+$X$22 -> 2.5 | AA23: =+X23 -> 2.5 | AD23: =+AD22+($H$6/200) -> 2.5 | AE23: =IF($E$6="Wortelformule",AF23,AG23) -> 499000 | AF23: =$C$17-(AD23^$H$7)*($C$17-$C$14)/($H$6^$H$7) -> 499000 | AG23: =$C$14+($C$17-$C$14)*(($H$6-AD23)/$H$6)^(1/$H$7) -> 499000 | AJ23: =(($AJ$19-AD23)/$H$5)*100 -> 69.5 | AK23: =(($AK$19-AD23)/$H$5)*100 -> 79.5 | AL23: =(($AL$19-AD23)/$H$5)*100 -> 89.5 | AM23: =(($AM$19-AD23)/$H$5)*100 -> 99.5 | AN23: =(($AN$19-AD23)/$H$5)*100 -> 109.5 | AO23: =(($AO$19-AD23)/$H$5)*100 -> 119.5 | AP23: =(($AP$19-AD23)/$H$5)*100 -> 129.5
B24: Plafondprijs y-as | C24: -100000 | D24: -100000 | F24: Ref lijn | G24: =+C8 -> 400000 | H24: =+C12 -> 250 | L24: =+L23+0.1 -> 0.2 | M24: 80000 | N24: =+N23+5 -> 10 | O24: 0.2 | V24: 1 | W24: =+W23+0.005 -> 0.01 | X24: 5 | AA24: =+X24 -> 5 | AD24: =+AD23+($H$6/200) -> 5 | AE24: 498000 | AF24: 498000 | AG24: 498000 | AJ24: 69 | AK24: 79 | AL24: 89 | AM24: 99 | AN24: 109 | AO24: 119 | AP24: 129 | AT24: ="Verdeeld over de Wensen kunnen in totaal "& BM9 & " punten voor Kwaliteit worden gescoord (Qwensen). Etc. ….." -> Verdeeld over de Wensen kunnen in totaal 500 punten voor Kwaliteit worden gescoord (Qwensen). Etc. …..
B25: Ondergrens | C25: =+C14 -> 300000 | D25: =+C14 -> 300000 | F25: Plafondprijs | G25: =C24 -> -100000 | L25: 0.3 | M25: 120000 | N25: 15 | O25: 0.3 | V25: 1.5 | W25: 0.015 | X25: 7.5 | AA25: 7.5 | AD25: 7.5 | AE25: 497000 | AF25: 497000 | AG25: 497000 | AJ25: 68.5 | AK25: 78.5 | AL25: 88.5 | AM25: 98.5 | AN25: 108.5 | AO25: 118.5 | AP25: 128.5
B26: LAQ (x-as) | C26: =C15 -> -1000 | D26: =C15 -> -1000 | F26: Referentie | G26: =+C8 -> 400000 | L26: 0.4 | M26: 160000 | N26: 20 | O26: 0.4 | V26: 2 | W26: 0.02 | X26: 10 | AA26: 10 | AD26: 10 | AE26: 496000 | AF26: 496000 | AG26: 496000 | AJ26: 68 | AK26: 78 | AL26: 88 | AM26: 98 | AN26: 108 | AO26: 118 | AP26: 128
B27: LAQ (y-as) | C27: 0 | D27: =D17 -> 500000 | F27: Referentie (Qmax) | G27: =+I23 -> 0 | H27: =+C17*1.1 -> 550000 | L27: 0.5 | M27: 200000 | N27: 25 | O27: 0.5 | V27: 2.5 | W27: 0.025 | X27: 12.5 | AA27: 12.5 | AD27: 12.5 | AE27: 495000 | AF27: 495000 | AG27: 495000 | AJ27: 67.5 | AK27: 77.5 | AL27: 87.5 | AM27: 97.5 | AN27: 107.5 | AO27: 117.5 | AP27: 127.5
B28: Qmin | C28: =IF(F7="",0,100) -> 0 | D28: =+C28 -> 0 | F28: Referentie (onder) | L28: 0.6 | M28: 240000 | N28: 30 | O28: 0.6 | V28: 3 | W28: 0.03 | X28: 15 | AA28: 15 | AD28: 15 | AE28: 494000 | AF28: 494000 | AG28: 494000 | AJ28: 67 | AK28: 77 | AL28: 87 | AM28: 97 | AN28: 107 | AO28: 117 | AP28: 127 | AT28: BPK-formule
B29: Punten Qmin | C29: 0 | L29: 0.7 | M29: 280000 | N29: 35 | O29: 0.7 | V29: 3.5 | W29: 0.035 | X29: 17.5 | AA29: 17.5 | AD29: 17.5 | AE29: 493000 | AF29: 493000 | AG29: 493000 | AJ29: 66.5 | AK29: 76.5 | AL29: 86.5 | AM29: 96.5 | AN29: 106.5 | AO29: 116.5 | AP29: 126.5 | AT29: De BPK-score wordt als volgt berekend:
B30: Punten bij Qmax | C30: =+Dashboard!H10 -> 500 | F30: Waardelijn (y-as) | G30: =IF(Dashboard!$G$9="Ja",+C25,-10000) -> -10000 | H30: =IF(Dashboard!$G$9="Ja",+C17,-10000) -> -10000 | L30: 0.8 | M30: 320000 | N30: 40 | O30: 0.8 | V30: 4 | W30: 0.04 | X30: 20 | AA30: 20 | AD30: 20 | AE30: 492000 | AF30: 492000 | AG30: 492000 | AJ30: 66 | AK30: 76 | AL30: 86 | AM30: 96 | AN30: 106 | AO30: 116 | AP30: 126
F31: Waardelijn (x-as) | G31: =+C28 -> 0 | H31: =+C20 -> 100 | L31: 0.9 | M31: 360000 | N31: 45 | O31: 0.9 | V31: 4.5 | W31: 0.045 | X31: 22.5 | AA31: 22.5 | AD31: 22.5 | AE31: 491000 | AF31: 491000 | AG31: 491000 | AJ31: 65.5 | AK31: 75.5 | AL31: 85.5 | AM31: 95.5 | AN31: 105.5 | AO31: 115.5 | AP31: 125.5
B32: Winnaar | C32: Evaluatie | D32: Winnaar INFO BD | E32: Score | L32: 1 | M32: =+M14 -> 400000 | N32: 50 | O32: 1 | P32: 50 | V32: 5 | W32: 0.05 | X32: 25 | AA32: 25 | AD32: 25 | AE32: 490000 | AF32: 490000 | AG32: 490000 | AJ32: 65 | AK32: 75 | AL32: 85 | AM32: 95 | AN32: 105 | AO32: 115 | AP32: 125
B33: =IF(ISERROR(VLOOKUP(1,B51:E62,2,FALSE)),"geen",VLOOKUP(1,B51:E62,2,FALSE)) -> geen | D33: ='Info BD'!L7 -> 4 | E33: =VLOOKUP(1,$A$41:$F$45,6,FALSE) -> 727.5 | F33: Toepassen | G33: =Dashboard!G9 -> 0 | L33: 1.1 | M33: =+$M$14*L33 -> 440000 | N33: 55 | O33: 1.1 | V33: 5.5 | W33: 0.055 | X33: 27.5 | AA33: 27.5 | AD33: 27.5 | AE33: 489000 | AF33: 489000 | AG33: 489000 | AJ33: 64.5 | AK33: 74.5 | AL33: 84.5 | AM33: 94.5 | AN33: 104.5 | AO33: 114.5 | AP33: 124.5
F34: Laagste waarde | G34: =Dashboard!H15 -> 300000 | L34: 1.2 | M34: 480000 | N34: 60 | O34: 1.2 | V34: 6 | W34: 0.06 | X34: 30 | AA34: 30 | AD34: 30 | AE34: 488000 | AF34: 488000 | AG34: 488000 | AJ34: 64 | AK34: 74 | AL34: 84 | AM34: 94 | AN34: 104 | AO34: 114 | AP34: 124 | AT34: Toelichting symbolen:
B35: Lijn X-as | C35: 0 | D35: 100 | F35: Hoogste waarde | G35: =Dashboard!H14 -> 500000 | L35: 1.3 | M35: 520000 | N35: 65 | O35: 1.3 | V35: 6.5 | W35: 0.065 | X35: 32.5 | AA35: 32.5 | AD35: 32.5 | AE35: 487000 | AF35: 487000 | AG35: 487000 | AJ35: 63.5 | AK35: 73.5 | AL35: 83.5 | AM35: 93.5 | AN35: 103.5 | AO35: 113.5 | AP35: 123.5 | AT35: Pi = Vergelijkingswaarde Inschrijver; | AX35: Qmin = minimaal aantal punten (100); | BC35: ="Pmax = bovengrens Prijs (" & BM6 & "); " -> Pmax = bovengrens Prijs (€500.000,00);
B36: Plafondprijs | C36: =+$C$8 -> 400000 | D36: =+$C$8 -> 400000 | F36: Voorbeeld Prijs | G36: =(+G34+G35)/2 -> 400000 | L36: 1.4 | M36: 560000 | N36: 70 | O36: 1.4 | V36: 7 | W36: 0.07 | X36: 35 | AA36: 35 | AD36: 35 | AE36: 486000 | AF36: 486000 | AG36: 486000 | AJ36: 63 | AK36: 73 | AL36: 83 | AM36: 93 | AN36: 103 | AO36: 113 | AP36: 123 | AT36: Qi = Kwaliteitsscore Inschrijver; | AX36: ="Qmax = maximaal aantal punten (" & BD7 & "); " -> Qmax = maximaal aantal punten (200); | BC36: ="Pmin = ondergrens Prijs (" & BM7 & "); " -> Pmin = ondergrens Prijs (€300.000,00);
B37: Bovengrens | C37: 0 | D37: =+C37 -> 0 | F37: Delta_1 | G37: 1 | H37: 0 | L37: 1.5 | M37: 600000 | N37: 75 | O37: 1.5 | V37: 7.5 | W37: 0.075 | X37: 37.5 | AA37: 37.5 | AD37: 37.5 | AE37: 485000 | AF37: 485000 | AG37: 485000 | AJ37: 62.5 | AK37: 72.5 | AL37: 82.5 | AM37: 92.5 | AN37: 102.5 | AO37: 112.5 | AP37: 122.5 | AT37: ="Wq = gewicht voor Kwaliteit (" & AX6 &"); " -> Wq = gewicht voor Kwaliteit (50%); | AX37: ="Qwensen = aantal punten voor de Wensen (" & AX3 & "); " -> Qwensen = aantal punten voor de Wensen (500); | BC37: ="SPmax = maximaal aantal punten voor Prijs ("& BM8 & "); " -> SPmax = maximaal aantal punten voor Prijs (500);
B38: Ondergrens | C38: 0 | D38: =+C38 -> 0 | F38: Qref | G38: 0.5 | L38: 1.6 | M38: 640000 | N38: 80 | O38: 1.6 | V38: 8 | W38: 0.08 | X38: 40 | AA38: 40 | AD38: 40 | AE38: 484000 | AF38: 484000 | AG38: 484000 | AJ38: 62 | AK38: 72 | AL38: 82 | AM38: 92 | AN38: 102 | AO38: 112 | AP38: 122 | AT38: ="Wp = gewicht voor Prijs (" & AX7 & "); " -> Wp = gewicht voor Prijs (50%); | AX38: Q'i = aangepaste kwaliteitsscore Inschrijver; | BC38: ="SPmin = minimaal aantal punten voor Prijs (=" -> SPmin = minimaal aantal punten voor Prijs (=
L39: 1.7 | M39: 680000 | N39: 85 | O39: 1.7 | V39: 8.5 | W39: 0.085 | X39: 42.5 | AA39: 42.5 | AD39: 42.5 | AE39: 483000 | AF39: 483000 | AG39: 483000 | AJ39: 61.5 | AK39: 71.5 | AL39: 81.5 | AM39: 91.5 | AN39: 101.5 | AO39: 111.5 | AP39: 121.5 | AT39: ="n = " & AX8 &". " -> n = 1,0. | AX39: Si = BPK-score Inschrijver; | BC39: SQi = behaalde score voor de Qwensen;
B40: Ten behoeve van BD | C40: Pi | D40: Qi | E40: Q'i (norm) | F40: BPK-score | G40: Voor grafiek | H40: KO | I40: RANG | L40: 1.8 | M40: 720000 | N40: 90 | O40: 1.8 | V40: 9 | W40: 0.09 | X40: 45 | AA40: 45 | AD40: 45 | AE40: 482000 | AF40: 482000 | AG40: 482000 | AJ40: 61 | AK40: 71 | AL40: 81 | AM40: 91 | AN40: 101 | AO40: 111 | AP40: 121
A41: =+I41 -> 5 | B41: 1 | C41: =+'Info BD'!I19 -> 385000 | D41: =+'Info BD'!J19 -> 338 | E41: =IF($F$11<>"n.v.t.",$F$14+(D41/$C$6)*$F$11,"n.v.t.") -> n.v.t. | F41: =IF(H41="KO","KO",IF(E41<>"n.v.t.",C168,C168)) -> 625.5 | G41: =IF(E41="n.v.t.",D41/$C$6*$F$13,E41) -> 67.6 | H41: =IF(AND(C41<=$C$17,C41>=$C$14,D41>=$F$49),"","KO") ->  | I41: =IF(ISERROR(RANK(F41,$F$41:$F$45)),"KO",RANK(F41,$F$41:$F$45)) -> 5 | L41: 1.9 | M41: 760000 | N41: 95 | O41: 1.9 | V41: 9.5 | W41: 0.095 | X41: 47.5 | AA41: 47.5 | AD41: 47.5 | AE41: 481000 | AF41: 481000 | AG41: 481000 | AJ41: 60.5 | AK41: 70.5 | AL41: 80.5 | AM41: 90.5 | AN41: 100.5 | AO41: 110.5 | AP41: 120.5 | AT41: De BPK-formule is ter verduidelijking in de grafiek weergegeven.
A42: =+I42 -> 2 | B42: 2 | C42: =+'Info BD'!I20 -> 360000 | D42: =+'Info BD'!J20 -> 363 | E42: =IF($F$11<>"n.v.t.",$F$14+(D42/$C$6)*$F$11,"n.v.t.") -> n.v.t. | F42: =IF(H42="KO","KO",IF(E42<>"n.v.t.",C169,C169)) -> 713 | G42: =IF(E42="n.v.t.",D42/$C$6*$F$13,E42) -> 72.6 | H42: =IF(AND(C42<=$C$17,C42>=$C$14,D42>=$F$49),"","KO") ->  | I42: =IF(ISERROR(RANK(F42,$F$41:$F$45)),"KO",RANK(F42,$F$41:$F$45)) -> 2 | L42: 2 | M42: 800000 | N42: 100 | O42: 2 | V42: 10 | W42: 0.1 | X42: 50 | AA42: 50 | AD42: 50 | AE42: 480000 | AF42: 480000 | AG42: 480000 | AJ42: 60 | AK42: 70 | AL42: 80 | AM42: 90 | AN42: 100 | AO42: 110 | AP42: 120
A43: =+I43 -> 3 | B43: 3 | C43: =+'Info BD'!I21 -> 405000 | D43: =+'Info BD'!J21 -> 450 | E43: =IF($F$11<>"n.v.t.",$F$14+(D43/$C$6)*$F$11,"n.v.t.") -> n.v.t. | F43: =IF(H43="KO","KO",IF(E43<>"n.v.t.",C170,C170)) -> 687.5 | G43: =IF(E43="n.v.t.",D43/$C$6*$F$13,E43) -> 90 | H43: =IF(AND(C43<=$C$17,C43>=$C$14,D43>=$F$49),"","KO") ->  | I43: =IF(ISERROR(RANK(F43,$F$41:$F$45)),"KO",RANK(F43,$F$41:$F$45)) -> 3 | V43: 10.5 | W43: 0.105 | X43: 52.5 | AA43: 52.5 | AD43: 52.5 | AE43: 479000 | AF43: 479000 | AG43: 479000 | AJ43: 59.5 | AK43: 69.5 | AL43: 79.5 | AM43: 89.5 | AN43: 99.5 | AO43: 109.5 | AP43: 119.5
A44: =+I44 -> 1 | B44: 4 | C44: =+'Info BD'!I22 -> 379000 | D44: =+'Info BD'!J22 -> 425 | E44: =IF($F$11<>"n.v.t.",$F$14+(D44/$C$6)*$F$11,"n.v.t.") -> n.v.t. | F44: =IF(H44="KO","KO",IF(E44<>"n.v.t.",C171,C171)) -> 727.5 | G44: =IF(E44="n.v.t.",D44/$C$6*$F$13,E44) -> 85 | H44: =IF(AND(C44<=$C$17,C44>=$C$14,D44>=$F$49),"","KO") ->  | I44: =IF(ISERROR(RANK(F44,$F$41:$F$45)),"KO",RANK(F44,$F$41:$F$45)) -> 1 | L44: Voor fixeren van de Y-as, gaat in model via macro | O44: X-as is genormaliseerd naar 0 - 100% kwaliteit | V44: 11 | W44: 0.11 | X44: 55 | AA44: 55 | AD44: 55 | AE44: 478000 | AF44: 478000 | AG44: 478000 | AJ44: 59 | AK44: 69 | AL44: 79 | AM44: 89 | AN44: 99 | AO44: 109 | AP44: 119
A45: =+I45 -> 4 | B45: 5 | C45: =+'Info BD'!I23 -> 400000 | D45: =+'Info BD'!J23 -> 388 | E45: =IF($F$11<>"n.v.t.",$F$14+(D45/$C$6)*$F$11,"n.v.t.") -> n.v.t. | F45: =IF(H45="KO","KO",IF(E45<>"n.v.t.",C172,C172)) -> 638 | G45: =IF(E45="n.v.t.",D45/$C$6*$F$13,E45) -> 77.6 | H45: =IF(AND(C45<=$C$17,C45>=$C$14,D45>=$F$49),"","KO") ->  | I45: =IF(ISERROR(RANK(F45,$F$41:$F$45)),"KO",RANK(F45,$F$41:$F$45)) -> 4 | V45: 11.5 | W45: 0.115 | X45: 57.5 | AA45: 57.5 | AD45: 57.5 | AE45: 477000 | AF45: 477000 | AG45: 477000 | AJ45: 58.5 | AK45: 68.5 | AL45: 78.5 | AM45: 88.5 | AN45: 98.5 | AO45: 108.5 | AP45: 118.5 | AT45: xxxx
F46: =COUNT(F41:F45) -> 5 | V46: 12 | W46: 0.12 | X46: 60 | AA46: 60 | AD46: 60 | AE46: 476000 | AF46: 476000 | AG46: 476000 | AJ46: 58 | AK46: 68 | AL46: 78 | AM46: 88 | AN46: 98 | AO46: 108 | AP46: 118 | AT46: ="Als voorbeeld wordt in de grafiek een inschrijving getoond (oranje punt) met een BPK-score van " &BD2 & ". " -> Als voorbeeld wordt in de grafiek een inschrijving getoond (oranje punt) met een BPK-score van 500,0.
B47: Label | C47: Gunningswaarde | V47: 12.5 | W47: 0.125 | X47: 62.5 | AA47: 62.5 | AD47: 62.5 | AE47: 475000 | AF47: 475000 | AG47: 475000 | AJ47: 57.5 | AK47: 67.5 | AL47: 77.5 | AM47: 87.5 | AN47: 97.5 | AO47: 107.5 | AP47: 117.5 | AT47: ="Deze score geldt voor de volledige doorlopende donkeroranje lijn. " -> Deze score geldt voor de volledige doorlopende donkeroranje lijn.
V48: 13 | W48: 0.13 | X48: 65 | AA48: 65 | AD48: 65 | AE48: 474000 | AF48: 474000 | AG48: 474000 | AJ48: 57 | AK48: 67 | AL48: 77 | AM48: 87 | AN48: 97 | AO48: 107 | AP48: 117 | AT48: Naar rechts toe duiden de oranje lijnen steeds betere scores aan. De BPK-scores worden afgerond op één decimaal. Indien twee inschrijvers exact dezelfde hoogste BPK-score behalen, wordt de gunning toegekend aan de inschrijver met de hoogste kwaliteitsscore.
B49: Evaluatie | D49: Budgetplafond -> | E49: =IF(+C13<0,"n.v.t.",+C13) -> n.v.t. | F49: =+Dashboard!H22 -> 0 | G49: <- Qknockout | V49: 13.5 | W49: 0.135 | X49: 67.5 | AA49: 67.5 | AD49: 67.5 | AE49: 473000 | AF49: 473000 | AG49: 473000 | AJ49: 56.5 | AK49: 66.5 | AL49: 76.5 | AM49: 86.5 | AN49: 96.5 | AO49: 106.5 | AP49: 116.5
B50: Rang | C50: lev. # | D50: lev. Naam | E50: Pi | F50: Qi | G50: Qi (norm) | H50: BPK-score | I50: Voor grafiek | J50: KO | K50: RANG | V50: 14 | W50: 0.14 | X50: 70 | AA50: 70 | AD50: 70 | AE50: 472000 | AF50: 472000 | AG50: 472000 | AJ50: 56 | AK50: 66 | AL50: 76 | AM50: 86 | AN50: 96 | AO50: 106 | AP50: 116 | AT50: Ter illustratie zijn in de grafiek de scores van vijf Inschrijvers weergegeven.
B51: =K51 -> KO | C51: 1 | D51: =IF(ISBLANK(+Evaluatie!E8),"",+Evaluatie!E8) ->  | E51: =IF(ISBLANK(+Evaluatie!F8),"",+Evaluatie!F8) ->  | F51: =IF(ISBLANK(+Evaluatie!G8),"",+Evaluatie!G8) ->  | G51: =IF($F$11<>"n.v.t.",$F$14+(F51/$C$6)*$F$11,"n.v.t.") -> n.v.t. | H51: =IF(OR(E51="",F51=""),"",IF(J51="KO","KO",IF(G51<>"n.v.t.",C175,C175))) ->  | I51: =IF(OR(E51="",F51=""),"",IF(G51="n.v.t.",F51/$C$6*$F$13,G51)) ->  | J51: =IF(AND(E51<=$C$17,E51>=$C$14,F51>=$F$49),"","KO") -> KO | K51: =IF(ISERROR(RANK(H51,$H$51:$H$62)),"KO",RANK(H51,$H$51:$H$62)) -> KO | V51: 14.5 | W51: 0.145 | X51: 72.5 | AA51: 72.5 | AD51: 72.5 | AE51: 471000 | AF51: 471000 | AG51: 471000 | AJ51: 55.5 | AK51: 65.5 | AL51: 75.5 | AM51: 85.5 | AN51: 95.5 | AO51: 105.5 | AP51: 115.5 | AT51: ="De winnende Inschrijver in dit voorbeeld is Inschrijver " & BI2 & ", met een Vergelijkingswaarde (Pi) van " & BI3 & " en een kwaliteitsscore (Qi) van "& BI4 & ". " -> De winnende Inschrijver in dit voorbeeld is Inschrijver 4, met een Vergelijkingswaarde (Pi) van €379.000,00 en een kwaliteitsscore (Qi) van 425,0.
B52: KO | C52: 2 | D52: =IF(ISBLANK(+Evaluatie!E9),"",+Evaluatie!E9) ->  | E52: =IF(ISBLANK(+Evaluatie!F9),"",+Evaluatie!F9) ->  | F52: =IF(ISBLANK(+Evaluatie!G9),"",+Evaluatie!G9) ->  | G52: n.v.t. | J52: KO | K52: KO | V52: 15 | W52: 0.15 | X52: 75 | AA52: 75 | AD52: 75 | AE52: 470000 | AF52: 470000 | AG52: 470000 | AJ52: 55 | AK52: 65 | AL52: 75 | AM52: 85 | AN52: 95 | AO52: 105 | AP52: 115 | AT52: ="Dit levert de hoogste BPK-score op van "& BI6 & ". De overige Inschrijvers hebben lagere BPK-scores variërend van " & BI7 & " tot "& BI8 & ")." -> Dit levert de hoogste BPK-score op van 727,5. De overige Inschrijvers hebben lagere BPK-scores variërend van 713,0 tot 625,5).
B53: KO | C53: 3 | D53: =IF(ISBLANK(+Evaluatie!E10),"",+Evaluatie!E10) ->  | E53: =IF(ISBLANK(+Evaluatie!F10),"",+Evaluatie!F10) ->  | F53: =IF(ISBLANK(+Evaluatie!G10),"",+Evaluatie!G10) ->  | G53: n.v.t. | J53: KO | K53: KO | V53: 15.5 | W53: 0.155 | X53: 77.5 | AA53: 77.5 | AD53: 77.5 | AE53: 469000 | AF53: 469000 | AG53: 469000 | AJ53: 54.5 | AK53: 64.5 | AL53: 74.5 | AM53: 84.5 | AN53: 94.5 | AO53: 104.5 | AP53: 114.5
B54: KO | C54: 4 | D54: =IF(ISBLANK(+Evaluatie!E11),"",+Evaluatie!E11) ->  | E54: =IF(ISBLANK(+Evaluatie!F11),"",+Evaluatie!F11) ->  | F54: =IF(ISBLANK(+Evaluatie!G11),"",+Evaluatie!G11) ->  | G54: n.v.t. | J54: KO | K54: KO | V54: =$V$223*W54 -> 16 | W54: 0.16 | X54: 80 | AA54: 80 | AD54: 80 | AE54: 468000 | AF54: 468000 | AG54: 468000 | AJ54: 54 | AK54: 64 | AL54: 74 | AM54: 84 | AN54: 94 | AO54: 104 | AP54: 114 | AT54: Ter extra ondersteuning is in bijlage X Prijzenformulier, in het tabblad ‘BPK-Grafiek’ de betreffende grafiek opgenomen. Op basis van de vergelijkingswaarde (Pi) en een eigen inschatting van de kwaliteitsscore (Qi) kan de Inschrijver zijn eigen positie indicatief in de grafiek bepalen.
B55: KO | C55: 5 | D55: =IF(ISBLANK(+Evaluatie!E12),"",+Evaluatie!E12) ->  | E55: =IF(ISBLANK(+Evaluatie!F12),"",+Evaluatie!F12) ->  | F55: =IF(ISBLANK(+Evaluatie!G12),"",+Evaluatie!G12) ->  | G55: n.v.t. | J55: KO | K55: KO | V55: 16.5 | W55: 0.165 | X55: =+W55*($X$223-$F$14)+$X$22 -> 82.5 | AA55: 82.5 | AD55: 82.5 | AE55: 467000 | AF55: 467000 | AG55: 467000 | AJ55: 53.5 | AK55: 63.5 | AL55: 73.5 | AM55: 83.5 | AN55: 93.5 | AO55: 103.5 | AP55: 113.5
B56: KO | C56: 6 | D56: =IF(ISBLANK(+Evaluatie!E13),"",+Evaluatie!E13) ->  | E56: =IF(ISBLANK(+Evaluatie!F13),"",+Evaluatie!F13) ->  | F56: =IF(ISBLANK(+Evaluatie!G13),"",+Evaluatie!G13) ->  | G56: n.v.t. | J56: KO | K56: KO | V56: 17 | W56: 0.17 | X56: 85 | AA56: 85 | AD56: 85 | AE56: 466000 | AF56: 466000 | AG56: 466000 | AJ56: 53 | AK56: 63 | AL56: 73 | AM56: 83 | AN56: 93 | AO56: 103 | AP56: 113
B57: KO | C57: 7 | D57: =IF(ISBLANK(+Evaluatie!E14),"",+Evaluatie!E14) ->  | E57: =IF(ISBLANK(+Evaluatie!F14),"",+Evaluatie!F14) ->  | F57: =IF(ISBLANK(+Evaluatie!G14),"",+Evaluatie!G14) ->  | G57: n.v.t. | J57: KO | K57: KO | V57: 17.5 | W57: 0.175 | X57: 87.5 | AA57: 87.5 | AD57: 87.5 | AE57: 465000 | AF57: 465000 | AG57: 465000 | AJ57: 52.5 | AK57: 62.5 | AL57: 72.5 | AM57: 82.5 | AN57: 92.5 | AO57: 102.5 | AP57: 112.5
B58: KO | C58: 8 | D58: =IF(ISBLANK(+Evaluatie!E15),"",+Evaluatie!E15) ->  | E58: =IF(ISBLANK(+Evaluatie!F15),"",+Evaluatie!F15) ->  | F58: =IF(ISBLANK(+Evaluatie!G15),"",+Evaluatie!G15) ->  | G58: n.v.t. | J58: KO | K58: KO | V58: 18 | W58: 0.18 | X58: 90 | AA58: 90 | AD58: 90 | AE58: 464000 | AF58: 464000 | AG58: 464000 | AJ58: 52 | AK58: 62 | AL58: 72 | AM58: 82 | AN58: 92 | AO58: 102 | AP58: 112
B59: KO | C59: 9 | D59: =IF(ISBLANK(+Evaluatie!E16),"",+Evaluatie!E16) ->  | E59: =IF(ISBLANK(+Evaluatie!F16),"",+Evaluatie!F16) ->  | F59: =IF(ISBLANK(+Evaluatie!G16),"",+Evaluatie!G16) ->  | G59: n.v.t. | J59: KO | K59: KO | V59: 18.5 | W59: 0.185 | X59: 92.5 | AA59: 92.5 | AD59: 92.5 | AE59: 463000 | AF59: 463000 | AG59: 463000 | AJ59: 51.5 | AK59: 61.5 | AL59: 71.5 | AM59: 81.5 | AN59: 91.5 | AO59: 101.5 | AP59: 111.5
B60: KO | C60: 10 | D60: =IF(ISBLANK(+Evaluatie!E17),"",+Evaluatie!E17) ->  | E60: =IF(ISBLANK(+Evaluatie!F17),"",+Evaluatie!F17) ->  | F60: =IF(ISBLANK(+Evaluatie!G17),"",+Evaluatie!G17) ->  | G60: n.v.t. | J60: KO | K60: KO | V60: 19 | W60: 0.19 | X60: 95 | AA60: 95 | AD60: 95 | AE60: 462000 | AF60: 462000 | AG60: 462000 | AJ60: 51 | AK60: 61 | AL60: 71 | AM60: 81 | AN60: 91 | AO60: 101 | AP60: 111
B61: KO | C61: 11 | D61: =IF(ISBLANK(+Evaluatie!E18),"",+Evaluatie!E18) ->  | E61: =IF(ISBLANK(+Evaluatie!F18),"",+Evaluatie!F18) ->  | F61: =IF(ISBLANK(+Evaluatie!G18),"",+Evaluatie!G18) ->  | G61: n.v.t. | J61: =IF(AND(E61<=$C$17,E61>=$C$14,F61>=$F$49),"","KO") -> KO | K61: KO | V61: 19.5 | W61: 0.195 | X61: 97.5 | AA61: 97.5 | AD61: 97.5 | AE61: 461000 | AF61: 461000 | AG61: 461000 | AJ61: 50.5 | AK61: 60.5 | AL61: 70.5 | AM61: 80.5 | AN61: 90.5 | AO61: 100.5 | AP61: 110.5
B62: KO | C62: 12 | D62: =IF(ISBLANK(+Evaluatie!E19),"",+Evaluatie!E19) ->  | E62: =IF(ISBLANK(+Evaluatie!F19),"",+Evaluatie!F19) ->  | F62: =IF(ISBLANK(+Evaluatie!G19),"",+Evaluatie!G19) ->  | G62: n.v.t. | J62: =IF(AND(E62<=$C$17,E62>=$C$14,F62>=$F$49),"","KO") -> KO | K62: KO | V62: 20 | W62: 0.2 | X62: 100 | AA62: 100 | AD62: 100 | AE62: 460000 | AF62: 460000 | AG62: 460000 | AJ62: 50 | AK62: 60 | AL62: 70 | AM62: 80 | AN62: 90 | AO62: 100 | AP62: 110 | AT62: Minimale score kwaliteit Inschrijver
D63: Referentie | E63: =+$C$8 -> 400000 | F63: =IF(ISBLANK(+Evaluatie!G20),"",+Evaluatie!G20) -> 250 | G63: n.v.t. | H63: =M16 -> 500 | I63: =IF(G63="n.v.t.",F63/$C$6*$F$13,G63) -> 50 | J63: =IF(OR(E63>$E$49,F63<$F$49),"KO","") ->  | V63: 20.5 | W63: 0.205 | X63: 102.5 | AA63: 102.5 | AD63: 102.5 | AE63: 459000 | AF63: 459000 | AG63: 459000 | AJ63: 49.5 | AK63: 59.5 | AL63: 69.5 | AM63: 79.5 | AN63: 89.5 | AO63: 99.5 | AP63: 109.5 | AT63: De Lowest Acceptable Quality (LAQ) verwijst naar het minimale aantal kwaliteitspunten dat een inschrijving moet behalen om in aanmerking te komen voor gunning.
G64: Aantal | H64: =COUNT(H51:H62) -> 0 | V64: 21 | W64: 0.21 | X64: 105 | AA64: 105 | AD64: 105 | AE64: 458000 | AF64: 458000 | AG64: 458000 | AJ64: 49 | AK64: 59 | AL64: 69 | AM64: 79 | AN64: 89 | AO64: 99 | AP64: 109 | AT64: ="Dit minimum is vastgesteld op "&BM2&" punten van de in totaal "&AX3&" te verdienen punten. " -> Dit minimum is vastgesteld op 0 punten van de in totaal 500 te verdienen punten.
V65: 21.5 | W65: 0.215 | X65: 107.5 | AA65: 107.5 | AD65: 107.5 | AE65: 457000 | AF65: 457000 | AG65: 457000 | AJ65: 48.5 | AK65: 58.5 | AL65: 68.5 | AM65: 78.5 | AN65: 88.5 | AO65: 98.5 | AP65: 108.5
V66: 22 | W66: 0.22 | X66: 110 | AA66: 110 | AD66: 110 | AE66: 456000 | AF66: 456000 | AG66: 456000 | AJ66: 48 | AK66: 58 | AL66: 68 | AM66: 78 | AN66: 88 | AO66: 98 | AP66: 108
B67: Adapted' variant | F67: Notatie Varabelen | V67: 22.5 | W67: =+W66+0.005 -> 0.225 | X67: 112.5 | AA67: 112.5 | AD67: 112.5 | AE67: 455000 | AF67: 455000 | AG67: 455000 | AJ67: 47.5 | AK67: 57.5 | AL67: 67.5 | AM67: 77.5 | AN67: 87.5 | AO67: 97.5 | AP67: 107.5
F68: Qvbi | V68: 23 | W68: 0.23 | X68: 115 | AA68: 115 | AD68: 115 | AE68: 454000 | AF68: 454000 | AG68: 454000 | AJ68: 47 | AK68: 57 | AL68: 67 | AM68: 77 | AN68: 87 | AO68: 97 | AP68: 107
B69: Maximaal in Procenten | C69: =100*(1+Dashboard!G14) -> 100 | F69: SQmax | V69: 23.5 | W69: 0.235 | X69: 117.5 | AA69: 117.5 | AD69: 117.5 | AE69: 453000 | AF69: 453000 | AG69: 453000 | AJ69: 46.5 | AK69: 56.5 | AL69: 66.5 | AM69: 76.5 | AN69: 86.5 | AO69: 96.5 | AP69: 106.5
V70: 24 | W70: 0.24 | X70: 120 | AA70: 120 | AD70: 120 | AE70: 452000 | AF70: 452000 | AG70: 452000 | AJ70: 46 | AK70: 56 | AL70: 66 | AM70: 76 | AN70: 86 | AO70: 96 | AP70: 106
V71: 24.5 | W71: 0.245 | X71: 122.5 | AA71: 122.5 | AD71: 122.5 | AE71: 451000 | AF71: 451000 | AG71: 451000 | AJ71: 45.5 | AK71: 55.5 | AL71: 65.5 | AM71: 75.5 | AN71: 85.5 | AO71: 95.5 | AP71: 105.5
V72: 25 | W72: 0.25 | X72: 125 | AA72: 125 | AD72: 125 | AE72: 450000 | AF72: 450000 | AG72: 450000 | AJ72: 45 | AK72: 55 | AL72: 65 | AM72: 75 | AN72: 85 | AO72: 95 | AP72: 105
V73: 25.5 | W73: 0.255 | X73: 127.5 | AA73: 127.5 | AD73: 127.5 | AE73: 449000 | AF73: 449000 | AG73: 449000 | AJ73: 44.5 | AK73: 54.5 | AL73: 64.5 | AM73: 74.5 | AN73: 84.5 | AO73: 94.5 | AP73: 104.5
B74: Stappen hulplijnen | V74: 26 | W74: 0.26 | X74: 130 | AA74: 130 | AD74: 130 | AE74: 448000 | AF74: 448000 | AG74: 448000 | AJ74: 44 | AK74: 54 | AL74: 64 | AM74: 74 | AN74: 84 | AO74: 94 | AP74: 104
B75: Qreferentie | C75: =+Dashboard!H19 -> 250 | V75: 26.5 | W75: 0.265 | X75: 132.5 | AA75: 132.5 | AD75: 132.5 | AE75: 447000 | AF75: 447000 | AG75: 447000 | AJ75: 43.5 | AK75: 53.5 | AL75: 63.5 | AM75: 73.5 | AN75: 83.5 | AO75: 93.5 | AP75: 103.5 | AT75: Grafiek
B76: Maximaal | C76: =+C69 -> 100 | V76: 27 | W76: 0.27 | X76: 135 | AA76: 135 | AD76: 135 | AE76: 446000 | AF76: 446000 | AG76: 446000 | AJ76: 43 | AK76: 53 | AL76: 63 | AM76: 73 | AN76: 83 | AO76: 93 | AP76: 103
C77: =+C76-C75 -> -150 | V77: 27.5 | W77: 0.275 | X77: 137.5 | AA77: 137.5 | AD77: 137.5 | AE77: 445000 | AF77: 445000 | AG77: 445000 | AJ77: 42.5 | AK77: 52.5 | AL77: 62.5 | AM77: 72.5 | AN77: 82.5 | AO77: 92.5 | AP77: 102.5
B78: Stappen | C78: =ROUND(C76/8,0) -> 13 | V78: 28 | W78: 0.28 | X78: 140 | AA78: 140 | AD78: 140 | AE78: 444000 | AF78: 444000 | AG78: 444000 | AJ78: 42 | AK78: 52 | AL78: 62 | AM78: 72 | AN78: 82 | AO78: 92 | AP78: 102
V79: 28.5 | W79: 0.285 | X79: 142.5 | AA79: 142.5 | AD79: 142.5 | AE79: 443000 | AF79: 443000 | AG79: 443000 | AJ79: 41.5 | AK79: 51.5 | AL79: 61.5 | AM79: 71.5 | AN79: 81.5 | AO79: 91.5 | AP79: 101.5
B80: Qref | C80: =C12 -> 250 | V80: 29 | W80: 0.29 | X80: 145 | AA80: 145 | AD80: 145 | AE80: 442000 | AF80: 442000 | AG80: 442000 | AJ80: 41 | AK80: 51 | AL80: 61 | AM80: 71 | AN80: 81 | AO80: 91 | AP80: 101
C81: =+C80*2 -> 500 | V81: 29.5 | W81: 0.295 | X81: 147.5 | AA81: 147.5 | AD81: 147.5 | AE81: 441000 | AF81: 441000 | AG81: 441000 | AJ81: 40.5 | AK81: 50.5 | AL81: 60.5 | AM81: 70.5 | AN81: 80.5 | AO81: 90.5 | AP81: 100.5
V82: 30 | W82: 0.3 | X82: 150 | AA82: 150 | AD82: 150 | AE82: 440000 | AF82: 440000 | AG82: 440000 | AJ82: 40 | AK82: 50 | AL82: 60 | AM82: 70 | AN82: 80 | AO82: 90 | AP82: 100
V83: 30.5 | W83: 0.305 | X83: 152.5 | AA83: 152.5 | AD83: 152.5 | AE83: 439000 | AF83: 439000 | AG83: 439000 | AJ83: 39.5 | AK83: 49.5 | AL83: 59.5 | AM83: 69.5 | AN83: 79.5 | AO83: 89.5 | AP83: 99.5
B84: Hulpveld voor apartzetten van Evaluatietabblad | V84: 31 | W84: 0.31 | X84: 155 | AA84: 155 | AD84: 155 | AE84: 438000 | AF84: 438000 | AG84: 438000 | AJ84: 39 | AK84: 49 | AL84: 59 | AM84: 69 | AN84: 79 | AO84: 89 | AP84: 99
E85: Qi | V85: 31.5 | W85: 0.315 | X85: 157.5 | AA85: 157.5 | AD85: 157.5 | AE85: 437000 | AF85: 437000 | AG85: 437000 | AJ85: 38.5 | AK85: 48.5 | AL85: 58.5 | AM85: 68.5 | AN85: 78.5 | AO85: 88.5 | AP85: 98.5
B86: # | C86: Inschrijver | D86: Pi | F86: in % | G86: SCOREi | H86: Rang- orde | V86: =$V$223*W86 -> 32 | W86: 0.32 | X86: 160 | AA86: 160 | AD86: 160 | AE86: 436000 | AF86: 436000 | AG86: 436000 | AJ86: 38 | AK86: 48 | AL86: 58 | AM86: 68 | AN86: 78 | AO86: 88 | AP86: 98
B87: 1 | C87: =+Evaluatie!$E$8 -> 0 | D87: =+Evaluatie!$F$8 -> 0 | E87: =+Evaluatie!$G$8 -> 0 | F87: =+Evaluatie!$H$8 ->  | G87: =C175 -> 1250 | H87: =+Evaluatie!$J$8 ->  | V87: 32.5 | W87: 0.325 | X87: =+W87*($X$223-$F$14)+$X$22 -> 162.5 | AA87: 162.5 | AD87: 162.5 | AE87: =IF($E$6="Wortelformule",AF87,AG87) -> 435000 | AF87: =$C$17-(AD87^$H$7)*($C$17-$C$14)/($H$6^$H$7) -> 435000 | AG87: =$C$14+($C$17-$C$14)*(($H$6-AD87)/$H$6)^(1/$H$7) -> 435000 | AJ87: =(($AJ$19-AD87)/$H$5)*100 -> 37.5 | AK87: =(($AK$19-AD87)/$H$5)*100 -> 47.5 | AL87: =(($AL$19-AD87)/$H$5)*100 -> 57.5 | AM87: =(($AM$19-AD87)/$H$5)*100 -> 67.5 | AN87: =(($AN$19-AD87)/$H$5)*100 -> 77.5 | AO87: =(($AO$19-AD87)/$H$5)*100 -> 87.5 | AP87: =(($AP$19-AD87)/$H$5)*100 -> 97.5
B88: 2 | C88: =+Evaluatie!$E$9 -> 0 | D88: =+Evaluatie!$F$9 -> 0 | E88: =+Evaluatie!$G$9 -> 0 | F88: =+Evaluatie!$H$9 ->  | G88: 1250 | H88: =+Evaluatie!$J$9 ->  | V88: 33 | W88: =+W87+0.005 -> 0.33 | X88: 165 | AA88: =+X88 -> 165 | AD88: =+AD87+($H$6/200) -> 165 | AE88: 434000 | AF88: 434000 | AG88: 434000 | AJ88: 37 | AK88: 47 | AL88: 57 | AM88: 67 | AN88: 77 | AO88: 87 | AP88: 97
B89: 3 | C89: =+Evaluatie!$E$10 -> 0 | D89: =+Evaluatie!$F$10 -> 0 | E89: =+Evaluatie!$G$10 -> 0 | F89: =+Evaluatie!$H$10 ->  | G89: 1250 | H89: =+Evaluatie!$J$10 ->  | V89: 33.5 | W89: 0.335 | X89: 167.5 | AA89: 167.5 | AD89: 167.5 | AE89: 433000 | AF89: 433000 | AG89: 433000 | AJ89: 36.5 | AK89: 46.5 | AL89: 56.5 | AM89: 66.5 | AN89: 76.5 | AO89: 86.5 | AP89: 96.5
B90: 4 | C90: =+Evaluatie!$E$11 -> 0 | D90: =+Evaluatie!$F$11 -> 0 | E90: =+Evaluatie!$G$11 -> 0 | F90: =+Evaluatie!$H$11 ->  | G90: 1250 | H90: =+Evaluatie!$J$11 ->  | V90: 34 | W90: 0.34 | X90: 170 | AA90: 170 | AD90: 170 | AE90: 432000 | AF90: 432000 | AG90: 432000 | AJ90: 36 | AK90: 46 | AL90: 56 | AM90: 66 | AN90: 76 | AO90: 86 | AP90: 96
B91: 5 | C91: =+Evaluatie!$E$12 -> 0 | D91: =+Evaluatie!$F$12 -> 0 | E91: =+Evaluatie!$G$12 -> 0 | F91: =+Evaluatie!$H$12 ->  | G91: 1250 | H91: =+Evaluatie!$J$12 ->  | V91: 34.5 | W91: 0.345 | X91: 172.5 | AA91: 172.5 | AD91: 172.5 | AE91: 431000 | AF91: 431000 | AG91: 431000 | AJ91: 35.5 | AK91: 45.5 | AL91: 55.5 | AM91: 65.5 | AN91: 75.5 | AO91: 85.5 | AP91: 95.5
B92: 6 | C92: =+Evaluatie!$E$13 -> 0 | D92: =+Evaluatie!$F$13 -> 0 | E92: =+Evaluatie!$G$13 -> 0 | F92: =+Evaluatie!$H$13 ->  | G92: 1250 | H92: =+Evaluatie!$J$13 ->  | V92: 35 | W92: 0.35 | X92: 175 | AA92: 175 | AD92: 175 | AE92: 430000 | AF92: 430000 | AG92: 430000 | AJ92: 35 | AK92: 45 | AL92: 55 | AM92: 65 | AN92: 75 | AO92: 85 | AP92: 95
B93: 7 | C93: =+Evaluatie!$E$14 -> 0 | D93: =+Evaluatie!$F$14 -> 0 | E93: =+Evaluatie!$G$14 -> 0 | F93: =+Evaluatie!$H$14 ->  | G93: 1250 | H93: =+Evaluatie!$J$14 ->  | V93: 35.5 | W93: 0.355 | X93: 177.5 | AA93: 177.5 | AD93: 177.5 | AE93: 429000 | AF93: 429000 | AG93: 429000 | AJ93: 34.5 | AK93: 44.5 | AL93: 54.5 | AM93: 64.5 | AN93: 74.5 | AO93: 84.5 | AP93: 94.5
B94: 8 | C94: =+Evaluatie!$E$15 -> 0 | D94: =+Evaluatie!$F$15 -> 0 | E94: =+Evaluatie!$G$15 -> 0 | F94: =+Evaluatie!$H$15 ->  | G94: 1250 | H94: =+Evaluatie!$J$15 ->  | V94: 36 | W94: 0.36 | X94: 180 | AA94: 180 | AD94: 180 | AE94: 428000 | AF94: 428000 | AG94: 428000 | AJ94: 34 | AK94: 44 | AL94: 54 | AM94: 64 | AN94: 74 | AO94: 84 | AP94: 94
B95: 9 | C95: =+Evaluatie!$E$16 -> 0 | D95: =+Evaluatie!$F$16 -> 0 | E95: =+Evaluatie!$G$16 -> 0 | F95: =+Evaluatie!$H$16 ->  | G95: 1250 | H95: =+Evaluatie!$J$16 ->  | V95: 36.5 | W95: 0.365 | X95: 182.5 | AA95: 182.5 | AD95: 182.5 | AE95: 427000 | AF95: 427000 | AG95: 427000 | AJ95: 33.5 | AK95: 43.5 | AL95: 53.5 | AM95: 63.5 | AN95: 73.5 | AO95: 83.5 | AP95: 93.5
B96: 10 | C96: =+Evaluatie!$E$17 -> 0 | D96: =+Evaluatie!$F$17 -> 0 | E96: =+Evaluatie!$G$17 -> 0 | F96: =+Evaluatie!$H$17 ->  | G96: 1250 | H96: =+Evaluatie!$J$17 ->  | V96: 37 | W96: 0.37 | X96: 185 | AA96: 185 | AD96: 185 | AE96: 426000 | AF96: 426000 | AG96: 426000 | AJ96: 33 | AK96: 43 | AL96: 53 | AM96: 63 | AN96: 73 | AO96: 83 | AP96: 93
B97: 11 | C97: =+Evaluatie!$E$18 -> 0 | D97: =+Evaluatie!$F$18 -> 0 | E97: =+Evaluatie!$G$18 -> 0 | F97: =+Evaluatie!$H$18 ->  | G97: 1250 | H97: =+Evaluatie!$J$18 ->  | V97: 37.5 | W97: 0.375 | X97: 187.5 | AA97: 187.5 | AD97: 187.5 | AE97: 425000 | AF97: 425000 | AG97: 425000 | AJ97: 32.5 | AK97: 42.5 | AL97: 52.5 | AM97: 62.5 | AN97: 72.5 | AO97: 82.5 | AP97: 92.5
B98: 12 | C98: =+Evaluatie!$E$19 -> 0 | D98: =+Evaluatie!$F$19 -> 0 | E98: =+Evaluatie!$G$19 -> 0 | F98: =+Evaluatie!$H$19 ->  | G98: 1250 | H98: =+Evaluatie!$J$19 ->  | V98: 38 | W98: 0.38 | X98: 190 | AA98: 190 | AD98: 190 | AE98: 424000 | AF98: 424000 | AG98: 424000 | AJ98: 32 | AK98: 42 | AL98: 52 | AM98: 62 | AN98: 72 | AO98: 82 | AP98: 92
C99: =+Evaluatie!$E$20 -> Referentie | D99: =+'HULP-velden'!$C$8 -> 400000 | E99: =+'HULP-velden'!$C$12 -> 250 | F99: =+Evaluatie!$H$20 -> 50 | G99: =+Evaluatie!$I$20 -> 500 | V99: 38.5 | W99: 0.385 | X99: 192.5 | AA99: 192.5 | AD99: 192.5 | AE99: 423000 | AF99: 423000 | AG99: 423000 | AJ99: 31.5 | AK99: 41.5 | AL99: 51.5 | AM99: 61.5 | AN99: 71.5 | AO99: 81.5 | AP99: 91.5
V100: 39 | W100: 0.39 | X100: 195 | AA100: 195 | AD100: 195 | AE100: 422000 | AF100: 422000 | AG100: 422000 | AJ100: 31 | AK100: 41 | AL100: 51 | AM100: 61 | AN100: 71 | AO100: 81 | AP100: 91
V101: 39.5 | W101: =+W100+0.005 -> 0.395 | X101: 197.5 | AA101: 197.5 | AD101: 197.5 | AE101: 421000 | AF101: 421000 | AG101: 421000 | AJ101: 30.5 | AK101: 40.5 | AL101: 50.5 | AM101: 60.5 | AN101: 70.5 | AO101: 80.5 | AP101: 90.5
B102: Hulpvelden voor grafiek (as-label) | V102: 40 | W102: 0.4 | X102: 200 | AA102: 200 | AD102: 200 | AE102: 420000 | AF102: 420000 | AG102: 420000 | AJ102: 30 | AK102: 40 | AL102: 50 | AM102: 60 | AN102: 70 | AO102: 80 | AP102: 90
C103: X-as | D103: Y-as | V103: 40.5 | W103: 0.405 | X103: 202.5 | AA103: 202.5 | AD103: 202.5 | AE103: 419000 | AF103: 419000 | AG103: 419000 | AJ103: 29.5 | AK103: 39.5 | AL103: 49.5 | AM103: 59.5 | AN103: 69.5 | AO103: 79.5 | AP103: 89.5
B104: ondergrens | C104: 0 | D104: =D113-D115 -> 280000 | V104: 41 | W104: 0.41 | X104: 205 | AA104: 205 | AD104: 205 | AE104: 418000 | AF104: 418000 | AG104: 418000 | AJ104: 29 | AK104: 39 | AL104: 49 | AM104: 59 | AN104: 69 | AO104: 79 | AP104: 89
B105: bovengrens | C105: =+C69 -> 100 | D105: =D114+D115 -> 520000 | V105: 41.5 | W105: 0.415 | X105: 207.5 | AA105: 207.5 | AD105: 207.5 | AE105: 417000 | AF105: 417000 | AG105: 417000 | AJ105: 28.5 | AK105: 38.5 | AL105: 48.5 | AM105: 58.5 | AN105: 68.5 | AO105: 78.5 | AP105: 88.5
B106: primaire eenheid | C106: =25 -> 25 | D106: =+E115 -> 20000 | V106: 42 | W106: 0.42 | X106: 210 | AA106: 210 | AD106: 210 | AE106: 416000 | AF106: 416000 | AG106: 416000 | AJ106: 28 | AK106: 38 | AL106: 48 | AM106: 58 | AN106: 68 | AO106: 78 | AP106: 88
V107: 42.5 | W107: 0.425 | X107: 212.5 | AA107: 212.5 | AD107: 212.5 | AE107: 415000 | AF107: 415000 | AG107: 415000 | AJ107: 27.5 | AK107: 37.5 | AL107: 47.5 | AM107: 57.5 | AN107: 67.5 | AO107: 77.5 | AP107: 87.5
B108: adapted | D108: 0 | E108: 0 | V108: 43 | W108: 0.43 | X108: 215 | AA108: 215 | AD108: 215 | AE108: 414000 | AF108: 414000 | AG108: 414000 | AJ108: 27 | AK108: 37 | AL108: 47 | AM108: 57 | AN108: 67 | AO108: 77 | AP108: 87
D109: 0 | E109: 100 | V109: 43.5 | W109: 0.435 | X109: 217.5 | AA109: 217.5 | AD109: 217.5 | AE109: 413000 | AF109: 413000 | AG109: 413000 | AJ109: 26.5 | AK109: 36.5 | AL109: 46.5 | AM109: 56.5 | AN109: 66.5 | AO109: 76.5 | AP109: 86.5
V110: 44 | W110: 0.44 | X110: 220 | AA110: 220 | AD110: 220 | AE110: 412000 | AF110: 412000 | AG110: 412000 | AJ110: 26 | AK110: 36 | AL110: 46 | AM110: 56 | AN110: 66 | AO110: 76 | AP110: 86
C111: =+D111 -> 800000 | D111: =MROUND(C8*2,10000) -> 800000 | V111: 44.5 | W111: 0.445 | X111: 222.5 | AA111: 222.5 | AD111: 222.5 | AE111: 411000 | AF111: 411000 | AG111: 411000 | AJ111: 25.5 | AK111: 35.5 | AL111: 45.5 | AM111: 55.5 | AN111: 65.5 | AO111: 75.5 | AP111: 85.5
V112: 45 | W112: 0.45 | X112: 225 | AA112: 225 | AD112: 225 | AE112: 410000 | AF112: 410000 | AG112: 410000 | AJ112: 25 | AK112: 35 | AL112: 45 | AM112: 55 | AN112: 65 | AO112: 75 | AP112: 85
B113: Hoogste verwachte waarde | D113: =Dashboard!H15 -> 300000 | V113: 45.5 | W113: 0.455 | X113: 227.5 | AA113: 227.5 | AD113: 227.5 | AE113: 409000 | AF113: 409000 | AG113: 409000 | AJ113: 24.5 | AK113: 34.5 | AL113: 44.5 | AM113: 54.5 | AN113: 64.5 | AO113: 74.5 | AP113: 84.5
B114: Laagste verwachte waarde | D114: =Dashboard!H14 -> 500000 | V114: 46 | W114: 0.46 | X114: 230 | AA114: 230 | AD114: 230 | AE114: 408000 | AF114: 408000 | AG114: 408000 | AJ114: 24 | AK114: 34 | AL114: 44 | AM114: 54 | AN114: 64 | AO114: 74 | AP114: 84
D115: =(+D114-D113)/10 -> 20000 | E115: =+D115 -> 20000 | V115: 46.5 | W115: 0.465 | X115: 232.5 | AA115: 232.5 | AD115: 232.5 | AE115: 407000 | AF115: 407000 | AG115: 407000 | AJ115: 23.5 | AK115: 33.5 | AL115: 43.5 | AM115: 53.5 | AN115: 63.5 | AO115: 73.5 | AP115: 83.5
N116: Hoogste | O116: =100%-0.05 -> 0.95 | P116: =L139 -> 500 | V116: 47 | W116: 0.47 | X116: 235 | AA116: 235 | AD116: 235 | AE116: 406000 | AF116: 406000 | AG116: 406000 | AJ116: 23 | AK116: 33 | AL116: 43 | AM116: 53 | AN116: 63 | AO116: 73 | AP116: 83
C117: Maxwaarde | D117: =MAX(Dashboard!H15,Dashboard!H14,Dashboard!H18,Dashboard!#REF!,D118) ->  | N117: Laagste | O117: =Scenarioanalyse!H22/Dashboard!H10 -> 0.4 | P117: =L138 -> 200 | V117: 47.5 | W117: 0.475 | X117: 237.5 | AA117: 237.5 | AD117: 237.5 | AE117: 405000 | AF117: 405000 | AG117: 405000 | AJ117: 22.5 | AK117: 32.5 | AL117: 42.5 | AM117: 52.5 | AN117: 62.5 | AO117: 72.5 | AP117: 82.5
C118: 2 maal Pvbo | D118: =2*Dashboard!H18 -> 800000 | N118: Verschil | O118: =(+O116-O117)/11 -> 0.05 | P118: =(+P116-P117)/11 -> 27.27272727 | S118: =(O118*L139) -> 25 | V118: =$V$223*W118 -> 48 | W118: 0.48 | X118: 240 | AA118: 240 | AD118: 240 | AE118: 404000 | AF118: 404000 | AG118: 404000 | AJ118: 22 | AK118: 32 | AL118: 42 | AM118: 52 | AN118: 62 | AO118: 72 | AP118: 82
C119: Budgetplafond | D119: =Dashboard!#REF! ->  | V119: 48.5 | W119: 0.485 | X119: =+W119*($X$223-$F$14)+$X$22 -> 242.5 | AA119: 242.5 | AD119: 242.5 | AE119: 403000 | AF119: 403000 | AG119: 403000 | AJ119: 21.5 | AK119: 31.5 | AL119: 41.5 | AM119: 51.5 | AN119: 61.5 | AO119: 71.5 | AP119: 81.5
V120: 49 | W120: 0.49 | X120: 245 | AA120: 245 | AD120: 245 | AE120: 402000 | AF120: 402000 | AG120: 402000 | AJ120: 21 | AK120: 31 | AL120: 41 | AM120: 51 | AN120: 61 | AO120: 71 | AP120: 81
V121: 49.5 | W121: 0.495 | X121: 247.5 | AA121: 247.5 | AD121: 247.5 | AE121: 401000 | AF121: 401000 | AG121: 401000 | AJ121: 20.5 | AK121: 30.5 | AL121: 40.5 | AM121: 50.5 | AN121: 60.5 | AO121: 70.5 | AP121: 80.5
A122: Rang | B122: Scenario analyse | C122: Budgetplafond -> | F122: =IF(+C13<0,"n.v.t.",+C13) -> n.v.t. | I122: =Dashboard!H22 -> 0 | J122: <- Qknockout | V122: 50 | W122: 0.5 | X122: 250 | AA122: 250 | AD122: 250 | AE122: 400000 | AF122: 400000 | AG122: 400000 | AJ122: 20 | AK122: 30 | AL122: 40 | AM122: 50 | AN122: 60 | AO122: 70 | AP122: 80
B123: nummer | C123: lev. Naam | D123: Aanbodlijn | E123: Eigen | F123: Pi (grafiek) | G123: Aanbodlijn | H123: Eigen | I123: Qi (grafiek) | J123: Qi (norm) | K123: BPK-score | L123: Voor grafiek | M123: KO | N123: RANG | R123: X-as | S123: Percentages | V123: 50.5 | W123: 0.505 | X123: 252.5 | AA123: 252.5 | AD123: 252.5 | AE123: 399000 | AF123: 399000 | AG123: 399000 | AJ123: 19.5 | AK123: 29.5 | AL123: 39.5 | AM123: 49.5 | AN123: 59.5 | AO123: 69.5 | AP123: 79.5
A124: =N124 -> 12 | B124: 1 | C124: =+Scenarioanalyse!D8 -> Combinatie P/Q (1) | D124: =$L$141 -> 500000 | E124: =+Scenarioanalyse!G8 -> 0 | F124: =IF(Scenarioanalyse!E8="nee","",IF(E124<>0,E124,D124)) -> 500000 | G124: =ROUND(IF(Scenarioanalyse!E8="nee","",+P124),2) -> 475 | H124: =+Scenarioanalyse!I8 -> 0 | I124: =IF(H124<>0,H124,G124) -> 475 | J124: =IF($F$11<>"n.v.t.",$F$14+(I124/$C$6)*$F$11,"n.v.t.") -> n.v.t. | K124: =IF(OR(F124="",I124=""),"",IF(M124="KO","KO",IF(J124<>"n.v.t.",C150,C150))) -> 475 | L124: =I124*(100/$L$139) -> 95 | M124: =IF(OR(F124>$F$122,I124<$I$122),"KO","") ->  | N124: =IF(ISERROR(RANK(K124,$K$124:$K$135)),"KO",RANK(K124,$K$124:$K$135)) -> 12 | O124: =O116 -> 0.95 | P124: =O124*$L$139 -> 475 | R124: 100 | S124: 1 | V124: 51 | W124: 0.51 | X124: 255 | AA124: 255 | AD124: 255 | AE124: 398000 | AF124: 398000 | AG124: 398000 | AJ124: 19 | AK124: 29 | AL124: 39 | AM124: 49 | AN124: 59 | AO124: 69 | AP124: 79 | AT124: Teksten voor Informatieknoppen
A125: =N125 -> 11 | B125: 2 | C125: =+Scenarioanalyse!D9 -> Combinatie P/Q (2) | D125: =D124-$M$141 -> 481818.1818 | E125: =+Scenarioanalyse!G9 -> 0 | F125: =IF(Scenarioanalyse!E9="nee","",IF(E125<>0,E125,D125)) -> 481818.1818 | G125: =ROUND(IF(Scenarioanalyse!E9="nee","",+P125),2) -> 450 | H125: =+Scenarioanalyse!I9 -> 0 | I125: =IF(H125<>0,H125,G125) -> 450 | J125: =IF($F$11<>"n.v.t.",$F$14+(I125/$C$6)*$F$11,"n.v.t.") -> n.v.t. | K125: =IF(OR(F125="",I125=""),"",IF(M125="KO","KO",IF(J125<>"n.v.t.",C151,C151))) -> 495.5 | L125: =I125*(100/$L$139) -> 90 | M125: =IF(OR(F125>$E$49,I125<$F$49),"KO","") ->  | N125: 11 | O125: =+O124-$O$118 -> 0.9 | P125: 450 | R125: =+R124-$S$118 -> 75 | S125: 0.866784172 | V125: 51.5 | W125: 0.515 | X125: 257.5 | AA125: 257.5 | AD125: 257.5 | AE125: 397000 | AF125: 397000 | AG125: 397000 | AJ125: 18.5 | AK125: 28.5 | AL125: 38.5 | AM125: 48.5 | AN125: 58.5 | AO125: 68.5 | AP125: 78.5
A126: 10 | B126: 3 | C126: =+Scenarioanalyse!D10 -> Combinatie P/Q (3) | D126: 463636.3636 | E126: =+Scenarioanalyse!G10 -> 0 | F126: =IF(Scenarioanalyse!E10="nee","",IF(E126<>0,E126,D126)) -> 463636.3636 | G126: =ROUND(IF(Scenarioanalyse!E10="nee","",+P126),2) -> 425 | H126: =+Scenarioanalyse!I10 -> 0 | I126: 425 | J126: n.v.t. | K126: 515.9 | L126: =I126*(100/$L$139) -> 85 | N126: 10 | O126: 0.85 | P126: 425 | R126: =+R125-$S$118 -> 50 | S126: 0.7400733003 | V126: 52 | W126: 0.52 | X126: 260 | AA126: 260 | AD126: 260 | AE126: 396000 | AF126: 396000 | AG126: 396000 | AJ126: 18 | AK126: 28 | AL126: 38 | AM126: 48 | AN126: 58 | AO126: 68 | AP126: 78 | AT126: < gelijkheid P/Q percentage en punten >
A127: 9 | B127: 4 | C127: =+Scenarioanalyse!D11 -> Combinatie P/Q (4) | D127: 445454.5455 | E127: =+Scenarioanalyse!G11 -> 0 | F127: =IF(Scenarioanalyse!E11="nee","",IF(E127<>0,E127,D127)) -> 445454.5455 | G127: =ROUND(IF(Scenarioanalyse!E11="nee","",+P127),2) -> 400 | H127: =+Scenarioanalyse!I11 -> 0 | I127: 400 | J127: n.v.t. | K127: 536.4 | L127: =I127*(100/$L$139) -> 80 | N127: 9 | O127: 0.8 | P127: 400 | R127: 25 | S127: 0.6202202658 | V127: 52.5 | W127: 0.525 | X127: 262.5 | AA127: 262.5 | AD127: 262.5 | AE127: 395000 | AF127: 395000 | AG127: 395000 | AJ127: 17.5 | AK127: 27.5 | AL127: 37.5 | AM127: 47.5 | AN127: 57.5 | AO127: 67.5 | AP127: 77.5 | AT127: Het wordt aanbevolen om de verdeling van punten voor Prijs en Kwaliteit in dezelfde verhouding te kiezen als de gekozen procentuele P/Q-verhouding.
A128: 8 | B128: 5 | C128: =+Scenarioanalyse!D12 -> Combinatie P/Q (5) | D128: 427272.7273 | E128: =+Scenarioanalyse!G12 -> 0 | F128: =IF(Scenarioanalyse!E12="nee","",IF(E128<>0,E128,D128)) -> 427272.7273 | G128: =ROUND(IF(Scenarioanalyse!E12="nee","",+P128),2) -> 375 | H128: =+Scenarioanalyse!I12 -> 0 | I128: 375 | J128: n.v.t. | K128: 556.8 | L128: 75 | N128: 8 | O128: 0.75 | P128: 375 | R128: 0 | S128: 0.5076425679 | V128: 53 | W128: 0.53 | X128: 265 | AA128: 265 | AD128: 265 | AE128: 394000 | AF128: 394000 | AG128: 394000 | AJ128: 17 | AK128: 27 | AL128: 37 | AM128: 47 | AN128: 57 | AO128: 67 | AP128: 77
A129: 7 | B129: 6 | C129: =+Scenarioanalyse!D13 -> Combinatie P/Q (6) | D129: 409090.9091 | E129: =+Scenarioanalyse!G13 -> 0 | F129: =IF(Scenarioanalyse!E13="nee","",IF(E129<>0,E129,D129)) -> 409090.9091 | G129: =ROUND(IF(Scenarioanalyse!E13="nee","",+P129),2) -> 350 | H129: =+Scenarioanalyse!I13 -> 0 | I129: 350 | J129: n.v.t. | K129: 577.3 | L129: 70 | N129: 7 | O129: 0.7 | P129: 350 | R129: -25 | S129: 0.4028448796 | V129: 53.5 | W129: 0.535 | X129: 267.5 | AA129: 267.5 | AD129: 267.5 | AE129: 393000 | AF129: 393000 | AG129: 393000 | AJ129: 16.5 | AK129: 26.5 | AL129: 36.5 | AM129: 46.5 | AN129: 56.5 | AO129: 66.5 | AP129: 76.5 | AT129: ="Bij "&AX3&" punten voor de Qwensen en een P/Q-verhouding van: "&AX7&" (P) / "&AX6&" (Q), geeft dit een gebroken getal voor het aantal punten voor Prijs: "&BM11&" punten." -> Bij 500 punten voor de Qwensen en een P/Q-verhouding van: 50% (P) / 50% (Q), geeft dit een gebroken getal voor het aantal punten voor Prijs: 500,00 punten.
A130: 6 | B130: 7 | C130: =+Scenarioanalyse!D14 -> Combinatie P/Q (7) | D130: 390909.0909 | E130: =+Scenarioanalyse!G14 -> 0 | F130: =IF(Scenarioanalyse!E14="nee","",IF(E130<>0,E130,D130)) -> 390909.0909 | G130: =ROUND(IF(Scenarioanalyse!E14="nee","",+P130),2) -> 325 | H130: =+Scenarioanalyse!I14 -> 0 | I130: 325 | J130: n.v.t. | K130: 597.7 | L130: 65 | N130: 6 | O130: 0.65 | P130: 325 | R130: -50 | S130: 0.3064544829 | V130: 54 | W130: 0.54 | X130: 270 | AA130: 270 | AD130: 270 | AE130: 392000 | AF130: 392000 | AG130: 392000 | AJ130: 16 | AK130: 26 | AL130: 36 | AM130: 46 | AN130: 56 | AO130: 66 | AP130: 76
A131: 5 | B131: 8 | C131: =+Scenarioanalyse!D15 -> Combinatie P/Q (8) | D131: 372727.2727 | E131: =+Scenarioanalyse!G15 -> 0 | F131: =IF(Scenarioanalyse!E15="nee","",IF(E131<>0,E131,D131)) -> 372727.2727 | G131: =ROUND(IF(Scenarioanalyse!E15="nee","",+P131),2) -> 300 | H131: =+Scenarioanalyse!I15 -> 0 | I131: 300 | J131: n.v.t. | K131: 618.2 | L131: 60 | N131: 5 | O131: 0.6 | P131: 300 | R131: -75 | S131: 0.2192809779 | V131: 54.5 | W131: 0.545 | X131: 272.5 | AA131: 272.5 | AD131: 272.5 | AE131: 391000 | AF131: 391000 | AG131: 391000 | AJ131: 15.5 | AK131: 25.5 | AL131: 35.5 | AM131: 45.5 | AN131: 55.5 | AO131: 65.5 | AP131: 75.5 | AT131: ="Dit kan eenvoudig worden door het totaal punten aantal van de wensen bij stap 1 aan te passen naar bijvoorbeeld: "&AW6*1000&" punten. " -> Dit kan eenvoudig worden door het totaal punten aantal van de wensen bij stap 1 aan te passen naar bijvoorbeeld: 500 punten.
A132: 4 | B132: 9 | C132: =+Scenarioanalyse!D16 -> Combinatie P/Q (9) | D132: 354545.4545 | E132: =+Scenarioanalyse!G16 -> 0 | F132: =IF(Scenarioanalyse!E16="nee","",IF(E132<>0,E132,D132)) -> 354545.4545 | G132: =ROUND(IF(Scenarioanalyse!E16="nee","",+P132),2) -> 275 | H132: =+Scenarioanalyse!I16 -> 0 | I132: 275 | J132: n.v.t. | K132: 638.6 | L132: 55 | N132: 4 | O132: 0.55 | P132: 275 | R132: -100 | S132: 0.1424271731 | V132: 55 | W132: 0.55 | X132: 275 | AA132: 275 | AD132: 275 | AE132: 390000 | AF132: 390000 | AG132: 390000 | AJ132: 15 | AK132: 25 | AL132: 35 | AM132: 45 | AN132: 55 | AO132: 65 | AP132: 75
A133: 3 | B133: 10 | C133: =+Scenarioanalyse!D17 -> Combinatie P/Q (10) | D133: 336363.6364 | E133: =+Scenarioanalyse!G17 -> 0 | F133: =IF(Scenarioanalyse!E17="nee","",IF(E133<>0,E133,D133)) -> 336363.6364 | G133: =ROUND(IF(Scenarioanalyse!E17="nee","",+P133),2) -> 250 | H133: =+Scenarioanalyse!I17 -> 0 | I133: 250 | J133: n.v.t. | K133: 659.1 | L133: 50 | N133: 3 | O133: 0.5 | P133: 250 | R133: -125 | S133: 0.07752753322 | V133: 55.5 | W133: 0.555 | X133: 277.5 | AA133: 277.5 | AD133: 277.5 | AE133: 389000 | AF133: 389000 | AG133: 389000 | AJ133: 14.5 | AK133: 24.5 | AL133: 34.5 | AM133: 44.5 | AN133: 54.5 | AO133: 64.5 | AP133: 74.5 | AT133: Het aanpassen van de P/Q-verhouding is uiteraard ook een mogelijke oplossing.
A134: 2 | B134: 11 | C134: =+Scenarioanalyse!D18 -> Combinatie P/Q (11) | D134: 318181.8182 | E134: =+Scenarioanalyse!G18 -> 0 | F134: =IF(Scenarioanalyse!E18="nee","",IF(E134<>0,E134,D134)) -> 318181.8182 | G134: =ROUND(IF(Scenarioanalyse!E18="nee","",+P134),2) -> 225 | H134: =+Scenarioanalyse!I18 -> 0 | I134: 225 | J134: n.v.t. | K134: 679.5 | L134: 45 | N134: 2 | O134: 0.45 | P134: 225 | R134: -150 | S134: 0.02741012223 | V134: 56 | W134: 0.56 | X134: 280 | AA134: 280 | AD134: 280 | AE134: 388000 | AF134: 388000 | AG134: 388000 | AJ134: 14 | AK134: 24 | AL134: 34 | AM134: 44 | AN134: 54 | AO134: 64 | AP134: 74
A135: 1 | B135: 12 | C135: =+Scenarioanalyse!D19 -> Combinatie P/Q (12) | D135: 300000 | E135: =+Scenarioanalyse!G19 -> 0 | F135: =IF(Scenarioanalyse!E19="nee","",IF(E135<>0,E135,D135)) -> 300000 | G135: =ROUND(IF(Scenarioanalyse!E19="nee","",+P135),2) -> 200 | H135: =+Scenarioanalyse!I19 -> 0 | I135: 200 | J135: n.v.t. | K135: 700 | L135: 40 | N135: 1 | O135: 0.4 | P135: 200 | R135: -175 | S135: 0 | V135: 56.5 | W135: 0.565 | X135: 282.5 | AA135: 282.5 | AD135: 282.5 | AE135: 387000 | AF135: 387000 | AG135: 387000 | AJ135: 13.5 | AK135: 23.5 | AL135: 33.5 | AM135: 43.5 | AN135: 53.5 | AO135: 63.5 | AP135: 73.5
C136: Referentie | D136: =IF(ISBLANK(Scenarioanalyse!D20),"",Scenarioanalyse!F20) -> 400000 | F136: =IF(E136<>0,E136,D136) -> 400000 | G136: =ROUND(IF(Scenarioanalyse!E20="nee","",+P136),2) -> 0 | I136: 0 | J136: n.v.t. | K136: =+H10 -> 500 | L136: =IF(J136="n.v.t.",I136/$C$6*$F$13,J136) -> 0 | V136: 57 | W136: 0.57 | X136: 285 | AA136: 285 | AD136: 285 | AE136: 386000 | AF136: 386000 | AG136: 386000 | AJ136: 13 | AK136: 23 | AL136: 33 | AM136: 43 | AN136: 53 | AO136: 63 | AP136: 73 | AT136: < Toelichting bij LAQ >
J137: Aantal | K137: =IF(COUNT(K124:K135)=0,"geen",COUNT(K124:K135)) -> 12 | V137: 57.5 | W137: 0.575 | X137: 287.5 | AA137: 287.5 | AD137: 287.5 | AE137: 385000 | AF137: 385000 | AG137: 385000 | AJ137: 12.5 | AK137: 22.5 | AL137: 32.5 | AM137: 42.5 | AN137: 52.5 | AO137: 62.5 | AP137: 72.5
K138: Min | L138: =Scenarioanalyse!H22 -> 200 | V138: 58 | W138: 0.58 | X138: 290 | AA138: 290 | AD138: 290 | AE138: 384000 | AF138: 384000 | AG138: 384000 | AJ138: 12 | AK138: 22 | AL138: 32 | AM138: 42 | AN138: 52 | AO138: 62 | AP138: 72 | AT138: Met het hanteren van een Lowest Acceptable Quality (LAQ) wordt vastgelegd dat een inschrijving op de kwaliteitswensen (Qwensen) een vooraf bepaalde minimumscore moet behalen. Inschrijvingen die deze ondergrens niet halen, worden uitgesloten van verdere beoordeling. Let op: het toepassen van een LAQ vereist een duidelijke en transparante toelichting in het begeleidende aanbestedingsdocument.
C139: Winnaar | D139: Scenario analyse | K139: Max | L139: =C6 -> 500 | V139: 58.5 | W139: 0.585 | X139: 292.5 | AA139: 292.5 | AD139: 292.5 | AE139: 383000 | AF139: 383000 | AG139: 383000 | AJ139: 11.5 | AK139: 21.5 | AL139: 31.5 | AM139: 41.5 | AN139: 51.5 | AO139: 61.5 | AP139: 71.5 | AT139: Binnen deze tool is de Lowest Acceptable Quality (LAQ) begrensd op 40% van het totaal aantal punten van de kwaliteitswensen (Qwensen).
C140: =IF(ISERROR(VLOOKUP(1,$A$124:$B$135,2,FALSE)),"geen",VLOOKUP(1,$A$124:$B$135,2,FALSE)) -> 12 | K140: Min | L140: =+Dashboard!H15 -> 300000 | V140: 59 | W140: 0.59 | X140: 295 | AA140: 295 | AD140: 295 | AE140: 382000 | AF140: 382000 | AG140: 382000 | AJ140: 11 | AK140: 21 | AL140: 31 | AM140: 41 | AN140: 51 | AO140: 61 | AP140: 71 | AT140: Het toepassen van de LAQ vereist zorgvuldigheid en bewustzijn van de mogelijke nadelige gevolgen. Raadpleeg hiervoor ook de relevante passages in de handleiding waarin dit nader wordt toegelicht.
K141: Max | L141: =+Dashboard!H14 -> 500000 | M141: =(L141-L140)/11 -> 18181.81818 | V141: 59.5 | W141: 0.595 | X141: 297.5 | AA141: 297.5 | AD141: 297.5 | AE141: 381000 | AF141: 381000 | AG141: 381000 | AJ141: 10.5 | AK141: 20.5 | AL141: 30.5 | AM141: 40.5 | AN141: 50.5 | AO141: 60.5 | AP141: 70.5
K142: Macht | L142: 2 | V142: 60 | W142: 0.6 | X142: 300 | AA142: 300 | AD142: 300 | AE142: 380000 | AF142: 380000 | AG142: 380000 | AJ142: 10 | AK142: 20 | AL142: 30 | AM142: 40 | AN142: 50 | AO142: 60 | AP142: 70
V143: 60.5 | W143: 0.605 | X143: 302.5 | AA143: 302.5 | AD143: 302.5 | AE143: 379000 | AF143: 379000 | AG143: 379000 | AJ143: 9.5 | AK143: 19.5 | AL143: 29.5 | AM143: 39.5 | AN143: 49.5 | AO143: 59.5 | AP143: 69.5
V144: 61 | W144: 0.61 | X144: 305 | AA144: 305 | AD144: 305 | AE144: 378000 | AF144: 378000 | AG144: 378000 | AJ144: 9 | AK144: 19 | AL144: 29 | AM144: 39 | AN144: 49 | AO144: 59 | AP144: 69
V145: 61.5 | W145: 0.615 | X145: 307.5 | AA145: 307.5 | AD145: 307.5 | AE145: 377000 | AF145: 377000 | AG145: 377000 | AJ145: 8.5 | AK145: 18.5 | AL145: 28.5 | AM145: 38.5 | AN145: 48.5 | AO145: 58.5 | AP145: 68.5
V146: 62 | W146: 0.62 | X146: 310 | AA146: 310 | AD146: 310 | AE146: 376000 | AF146: 376000 | AG146: 376000 | AJ146: 8 | AK146: 18 | AL146: 28 | AM146: 38 | AN146: 48 | AO146: 58 | AP146: 68
V147: 62.5 | W147: 0.625 | X147: 312.5 | AA147: 312.5 | AD147: 312.5 | AE147: 375000 | AF147: 375000 | AG147: 375000 | AJ147: 7.5 | AK147: 17.5 | AL147: 27.5 | AM147: 37.5 | AN147: 47.5 | AO147: 57.5 | AP147: 67.5
V148: 63 | W148: 0.63 | X148: 315 | AA148: 315 | AD148: 315 | AE148: 374000 | AF148: 374000 | AG148: 374000 | AJ148: 7 | AK148: 17 | AL148: 27 | AM148: 37 | AN148: 47 | AO148: 57 | AP148: 67
B149: Scenarioanalyse | C149: Keuze | D149: Wortelformule | E149: Machtsformule | V149: 63.5 | W149: 0.635 | X149: 317.5 | AA149: 317.5 | AD149: 317.5 | AE149: 373000 | AF149: 373000 | AG149: 373000 | AJ149: 6.5 | AK149: 16.5 | AL149: 26.5 | AM149: 36.5 | AN149: 46.5 | AO149: 56.5 | AP149: 66.5
C150: =IF($E$6="Wortelformule",D150,E150) -> 475 | D150: =I124+$H$6*((($C$17-F124)/($C$17-$C$14))^(1/$H$7)) -> 475 | E150: =ROUND(I124+$H$6-$H$6*(((F124-$C$14)/($C$17-$C$14))^$H$7),1) -> 475 | V150: =$V$223*W150 -> 64 | W150: 0.64 | X150: 320 | AA150: 320 | AD150: 320 | AE150: 372000 | AF150: 372000 | AG150: 372000 | AJ150: 6 | AK150: 16 | AL150: 26 | AM150: 36 | AN150: 46 | AO150: 56 | AP150: 66
C151: =IF($E$6="Wortelformule",D151,E151) -> 495.5 | D151: 495.4545455 | E151: 495.5 | V151: 64.5 | W151: 0.645 | X151: =+W151*($X$223-$F$14)+$X$22 -> 322.5 | AA151: 322.5 | AD151: 322.5 | AE151: =IF($E$6="Wortelformule",AF151,AG151) -> 371000 | AF151: =$C$17-(AD151^$H$7)*($C$17-$C$14)/($H$6^$H$7) -> 371000 | AG151: =$C$14+($C$17-$C$14)*(($H$6-AD151)/$H$6)^(1/$H$7) -> 371000 | AJ151: =(($AJ$19-AD151)/$H$5)*100 -> 5.5 | AK151: =(($AK$19-AD151)/$H$5)*100 -> 15.5 | AL151: =(($AL$19-AD151)/$H$5)*100 -> 25.5 | AM151: =(($AM$19-AD151)/$H$5)*100 -> 35.5 | AN151: =(($AN$19-AD151)/$H$5)*100 -> 45.5 | AO151: =(($AO$19-AD151)/$H$5)*100 -> 55.5 | AP151: =(($AP$19-AD151)/$H$5)*100 -> 65.5
C152: =IF($E$6="Wortelformule", D152,E152) -> 515.9 | D152: 515.9090909 | E152: 515.9 | V152: 65 | W152: =+W151+0.005 -> 0.65 | X152: 325 | AA152: =+X152 -> 325 | AD152: =+AD151+($H$6/200) -> 325 | AE152: 370000 | AF152: 370000 | AG152: 370000 | AJ152: 5 | AK152: 15 | AL152: 25 | AM152: 35 | AN152: 45 | AO152: 55 | AP152: 65
C153: 536.4 | D153: 536.3636364 | E153: 536.4 | V153: 65.5 | W153: 0.655 | X153: 327.5 | AA153: 327.5 | AD153: 327.5 | AE153: 369000 | AF153: 369000 | AG153: 369000 | AJ153: 4.5 | AK153: 14.5 | AL153: 24.5 | AM153: 34.5 | AN153: 44.5 | AO153: 54.5 | AP153: 64.5
C154: 556.8 | D154: 556.8181818 | E154: 556.8 | V154: 66 | W154: 0.66 | X154: 330 | AA154: 330 | AD154: 330 | AE154: 368000 | AF154: 368000 | AG154: 368000 | AJ154: 4 | AK154: 14 | AL154: 24 | AM154: 34 | AN154: 44 | AO154: 54 | AP154: 64
C155: 577.3 | D155: 577.2727273 | E155: 577.3 | V155: 66.5 | W155: 0.665 | X155: 332.5 | AA155: 332.5 | AD155: 332.5 | AE155: 367000 | AF155: 367000 | AG155: 367000 | AJ155: 3.5 | AK155: 13.5 | AL155: 23.5 | AM155: 33.5 | AN155: 43.5 | AO155: 53.5 | AP155: 63.5
C156: 597.7 | D156: 597.7272727 | E156: 597.7 | V156: 67 | W156: 0.67 | X156: 335 | AA156: 335 | AD156: 335 | AE156: 366000 | AF156: 366000 | AG156: 366000 | AJ156: 3 | AK156: 13 | AL156: 23 | AM156: 33 | AN156: 43 | AO156: 53 | AP156: 63
C157: 618.2 | D157: 618.1818182 | E157: 618.2 | V157: 67.5 | W157: 0.675 | X157: 337.5 | AA157: 337.5 | AD157: 337.5 | AE157: 365000 | AF157: 365000 | AG157: 365000 | AJ157: 2.5 | AK157: 12.5 | AL157: 22.5 | AM157: 32.5 | AN157: 42.5 | AO157: 52.5 | AP157: 62.5
C158: 638.6 | D158: 638.6363636 | E158: 638.6 | V158: 68 | W158: 0.68 | X158: 340 | AA158: 340 | AD158: 340 | AE158: 364000 | AF158: 364000 | AG158: 364000 | AJ158: 2 | AK158: 12 | AL158: 22 | AM158: 32 | AN158: 42 | AO158: 52 | AP158: 62
C159: 659.1 | D159: 659.0909091 | E159: 659.1 | V159: 68.5 | W159: 0.685 | X159: 342.5 | AA159: 342.5 | AD159: 342.5 | AE159: 363000 | AF159: 363000 | AG159: 363000 | AJ159: 1.5 | AK159: 11.5 | AL159: 21.5 | AM159: 31.5 | AN159: 41.5 | AO159: 51.5 | AP159: 61.5
C160: =IF($E$6="Wortelformule", D160,E160) -> 679.5 | D160: =I134+$H$6*((($C$17-F134)/($C$17-$C$14))^(1/$H$7)) -> 679.5454545 | E160: =ROUND(I134+$H$6-$H$6*(((F134-$C$14)/($C$17-$C$14))^$H$7),1) -> 679.5 | V160: 69 | W160: 0.69 | X160: 345 | AA160: 345 | AD160: 345 | AE160: 362000 | AF160: 362000 | AG160: 362000 | AJ160: 1 | AK160: 11 | AL160: 21 | AM160: 31 | AN160: 41 | AO160: 51 | AP160: 61
C161: 700 | D161: 700 | E161: 700 | V161: 69.5 | W161: 0.695 | X161: 347.5 | AA161: 347.5 | AD161: 347.5 | AE161: 361000 | AF161: 361000 | AG161: 361000 | AJ161: 0.5 | AK161: 10.5 | AL161: 20.5 | AM161: 30.5 | AN161: 40.5 | AO161: 50.5 | AP161: 60.5
B162: Voorbeeld | V162: 70 | W162: 0.7 | X162: 350 | AA162: 350 | AD162: 350 | AE162: 360000 | AF162: 360000 | AG162: 360000 | AJ162: 0 | AK162: 10 | AL162: 20 | AM162: 30 | AN162: 40 | AO162: 50 | AP162: 60
B163: Totaal score | C163: 500 | D163: =ROUND($M$15+$H$6*((($C$17-$C$8)/($C$17-$C$14))^(1/$H$7)),2) -> 500 | E163: =ROUND($C$12+($H$6-$H$6*((($M$14-$C$14)/($C$17-$C$14))^$H$7)),1) -> 500 | V163: 70.5 | W163: 0.705 | X163: 352.5 | AA163: 352.5 | AD163: 352.5 | AE163: 359000 | AF163: 359000 | AG163: 359000 | AJ163: -0.5 | AK163: 9.5 | AL163: 19.5 | AM163: 29.5 | AN163: 39.5 | AO163: 49.5 | AP163: 59.5
B164: score voor prijs | C164: 250 | D164: =ROUND($H$6*((($C$17-$C$8)/($C$17-$C$14))^(1/$H$7)),2) -> 250 | E164: =ROUND(($H$6-$H$6*((($M$14-$C$14)/($C$17-$C$14))^$H$7)),1) -> 250 | V164: 71 | W164: 0.71 | X164: 355 | AA164: 355 | AD164: 355 | AE164: 358000 | AF164: 358000 | AG164: 358000 | AJ164: -1 | AK164: 9 | AL164: 19 | AM164: 29 | AN164: 39 | AO164: 49 | AP164: 59
B165: score voor kwaliteit | C165: 250 | D165: =D163-D164 -> 250 | E165: =E163-E164 -> 250 | V165: 71.5 | W165: 0.715 | X165: 357.5 | AA165: 357.5 | AD165: 357.5 | AE165: 357000 | AF165: 357000 | AG165: 357000 | AJ165: -1.5 | AK165: 8.5 | AL165: 18.5 | AM165: 28.5 | AN165: 38.5 | AO165: 48.5 | AP165: 58.5
B167: t.b.v. BD | C167: Keuze | D167: Wortelformule | E167: Machtsformule | V167: =$V$223*W167 -> 72 | W167: =+W165+0.005 -> 0.72 | X167: =+W167*($X$223-$F$14)+$X$22 -> 360 | AA167: 360 | AD167: =+AD165+($H$6/200) -> 360 | AE167: 356000 | AF167: 356000 | AG167: 356000 | AJ167: -2 | AK167: 8 | AL167: 18 | AM167: 28 | AN167: 38 | AO167: 48 | AP167: 58
C168: =IF($E$6="Wortelformule", D168,E168) -> 625.5 | D168: =D41+$H$6*((($C$17-C41)/($C$17-$C$14))^(1/$H$7)) -> 625.5 | E168: =ROUND(D41+$H$6-$H$6*(((C41-$C$14)/($C$17-$C$14))^$H$7),1) -> 625.5 | V168: 72.5 | W168: 0.725 | X168: 362.5 | AA168: 362.5 | AD168: 362.5 | AE168: 355000 | AF168: 355000 | AG168: 355000 | AJ168: -2.5 | AK168: 7.5 | AL168: 17.5 | AM168: 27.5 | AN168: 37.5 | AO168: 47.5 | AP168: 57.5
C169: =IF($E$6="Wortelformule", D169,E169) -> 713 | D169: =D42+$H$6*((($C$17-C42)/($C$17-$C$14))^(1/$H$7)) -> 713 | E169: =ROUND(D42+$H$6-$H$6*(((C42-$C$14)/($C$17-$C$14))^$H$7),1) -> 713 | V169: 73 | W169: 0.73 | X169: 365 | AA169: 365 | AD169: 365 | AE169: 354000 | AF169: 354000 | AG169: 354000 | AJ169: -3 | AK169: 7 | AL169: 17 | AM169: 27 | AN169: 37 | AO169: 47 | AP169: 57
C170: =IF($E$6="Wortelformule", D170,E170) -> 687.5 | D170: =D43+$H$6*((($C$17-C43)/($C$17-$C$14))^(1/$H$7)) -> 687.5 | E170: =ROUND(D43+$H$6-$H$6*(((C43-$C$14)/($C$17-$C$14))^$H$7),1) -> 687.5 | V170: 73.5 | W170: 0.735 | X170: 367.5 | AA170: 367.5 | AD170: 367.5 | AE170: 353000 | AF170: 353000 | AG170: 353000 | AJ170: -3.5 | AK170: 6.5 | AL170: 16.5 | AM170: 26.5 | AN170: 36.5 | AO170: 46.5 | AP170: 56.5
C171: =IF($E$6="Wortelformule", D171,E171) -> 727.5 | D171: =D44+$H$6*((($C$17-C44)/($C$17-$C$14))^(1/$H$7)) -> 727.5 | E171: =ROUND(D44+$H$6-$H$6*(((C44-$C$14)/($C$17-$C$14))^$H$7),1) -> 727.5 | V171: 74 | W171: 0.74 | X171: 370 | AA171: 370 | AD171: 370 | AE171: 352000 | AF171: 352000 | AG171: 352000 | AJ171: -4 | AK171: 6 | AL171: 16 | AM171: 26 | AN171: 36 | AO171: 46 | AP171: 56
C172: =IF($E$6="Wortelformule", D172,E172) -> 638 | D172: =D45+$H$6*((($C$17-C45)/($C$17-$C$14))^(1/$H$7)) -> 638 | E172: =ROUND(D45+$H$6-$H$6*(((C45-$C$14)/($C$17-$C$14))^$H$7),1) -> 638 | V172: 74.5 | W172: 0.745 | X172: 372.5 | AA172: 372.5 | AD172: 372.5 | AE172: 351000 | AF172: 351000 | AG172: 351000 | AJ172: -4.5 | AK172: 5.5 | AL172: 15.5 | AM172: 25.5 | AN172: 35.5 | AO172: 45.5 | AP172: 55.5
V173: 75 | W173: 0.75 | X173: 375 | AA173: 375 | AD173: 375 | AE173: 350000 | AF173: 350000 | AG173: 350000 | AJ173: -5 | AK173: 5 | AL173: 15 | AM173: 25 | AN173: 35 | AO173: 45 | AP173: 55
B174: Evaluatie | C174: Keuze | D174: Wortelformule | E174: Machtsformule | V174: 75.5 | W174: 0.755 | X174: 377.5 | AA174: 377.5 | AD174: 377.5 | AE174: 349000 | AF174: 349000 | AG174: 349000 | AJ174: -5.5 | AK174: 4.5 | AL174: 14.5 | AM174: 24.5 | AN174: 34.5 | AO174: 44.5 | AP174: 54.5
C175: =IF($E$6="Wortelformule", D175,E175) -> 1250 | D175: =E87+$H$6*((($C$17-D87)/($C$17-$C$14))^(1/$H$7)) -> 1250 | E175: =ROUND(E87+($H$6-$H$6*(((D87-$C$14)/($C$17-$C$14))^$H$7)),1) -> 1250 | V175: 76 | W175: 0.76 | X175: 380 | AA175: 380 | AD175: 380 | AE175: 348000 | AF175: 348000 | AG175: 348000 | AJ175: -6 | AK175: 4 | AL175: 14 | AM175: 24 | AN175: 34 | AO175: 44 | AP175: 54
C176: 1250 | D176: 1250 | E176: =ROUND(E88+$H$6-$H$6*(((D88-$C$14)/($C$17-$C$14))^$H$7),1) -> 1250 | V176: 76.5 | W176: 0.765 | X176: 382.5 | AA176: 382.5 | AD176: 382.5 | AE176: 347000 | AF176: 347000 | AG176: 347000 | AJ176: -6.5 | AK176: 3.5 | AL176: 13.5 | AM176: 23.5 | AN176: 33.5 | AO176: 43.5 | AP176: 53.5
C177: 1250 | D177: 1250 | E177: 1250 | V177: 77 | W177: 0.77 | X177: 385 | AA177: 385 | AD177: 385 | AE177: 346000 | AF177: 346000 | AG177: 346000 | AJ177: -7 | AK177: 3 | AL177: 13 | AM177: 23 | AN177: 33 | AO177: 43 | AP177: 53
C178: 1250 | D178: 1250 | E178: 1250 | V178: 77.5 | W178: 0.775 | X178: 387.5 | AA178: 387.5 | AD178: 387.5 | AE178: 345000 | AF178: 345000 | AG178: 345000 | AJ178: -7.5 | AK178: 2.5 | AL178: 12.5 | AM178: 22.5 | AN178: 32.5 | AO178: 42.5 | AP178: 52.5
C179: 1250 | D179: 1250 | E179: 1250 | V179: 78 | W179: 0.78 | X179: 390 | AA179: 390 | AD179: 390 | AE179: 344000 | AF179: 344000 | AG179: 344000 | AJ179: -8 | AK179: 2 | AL179: 12 | AM179: 22 | AN179: 32 | AO179: 42 | AP179: 52
C180: 1250 | D180: 1250 | E180: 1250 | V180: 78.5 | W180: 0.785 | X180: 392.5 | AA180: 392.5 | AD180: 392.5 | AE180: 343000 | AF180: 343000 | AG180: 343000 | AJ180: -8.5 | AK180: 1.5 | AL180: 11.5 | AM180: 21.5 | AN180: 31.5 | AO180: 41.5 | AP180: 51.5
C181: 1250 | D181: 1250 | E181: 1250 | V181: 79 | W181: 0.79 | X181: 395 | AA181: 395 | AD181: 395 | AE181: 342000 | AF181: 342000 | AG181: 342000 | AJ181: -9 | AK181: 1 | AL181: 11 | AM181: 21 | AN181: 31 | AO181: 41 | AP181: 51
C182: 1250 | D182: 1250 | E182: 1250 | V182: 79.5 | W182: 0.795 | X182: 397.5 | AA182: 397.5 | AD182: 397.5 | AE182: 341000 | AF182: 341000 | AG182: 341000 | AJ182: -9.5 | AK182: 0.5 | AL182: 10.5 | AM182: 20.5 | AN182: 30.5 | AO182: 40.5 | AP182: 50.5
C183: 1250 | D183: 1250 | E183: 1250 | V183: =$V$223*W183 -> 80 | W183: 0.8 | X183: 400 | AA183: 400 | AD183: 400 | AE183: 340000 | AF183: 340000 | AG183: 340000 | AJ183: -10 | AK183: 0 | AL183: 10 | AM183: 20 | AN183: 30 | AO183: 40 | AP183: 50
C184: 1250 | D184: 1250 | E184: 1250 | V184: 80.5 | W184: 0.805 | X184: 402.5 | AA184: 402.5 | AD184: 402.5 | AE184: 339000 | AF184: 339000 | AG184: 339000 | AJ184: -10.5 | AK184: -0.5 | AL184: 9.5 | AM184: 19.5 | AN184: 29.5 | AO184: 39.5 | AP184: 49.5
C185: 1250 | D185: 1250 | E185: 1250 | V185: 81 | W185: 0.81 | X185: 405 | AA185: 405 | AD185: 405 | AE185: 338000 | AF185: 338000 | AG185: 338000 | AJ185: -11 | AK185: -1 | AL185: 9 | AM185: 19 | AN185: 29 | AO185: 39 | AP185: 49
C186: 1250 | D186: 1250 | E186: 1250 | V186: 81.5 | W186: 0.815 | X186: 407.5 | AA186: 407.5 | AD186: 407.5 | AE186: 337000 | AF186: 337000 | AG186: 337000 | AJ186: -11.5 | AK186: -1.5 | AL186: 8.5 | AM186: 18.5 | AN186: 28.5 | AO186: 38.5 | AP186: 48.5
V187: 82 | W187: 0.82 | X187: 410 | AA187: 410 | AD187: 410 | AE187: 336000 | AF187: 336000 | AG187: 336000 | AJ187: -12 | AK187: -2 | AL187: 8 | AM187: 18 | AN187: 28 | AO187: 38 | AP187: 48
V188: 82.5 | W188: 0.825 | X188: 412.5 | AA188: 412.5 | AD188: 412.5 | AE188: 335000 | AF188: 335000 | AG188: 335000 | AJ188: -12.5 | AK188: -2.5 | AL188: 7.5 | AM188: 17.5 | AN188: 27.5 | AO188: 37.5 | AP188: 47.5
V189: 83 | W189: 0.83 | X189: 415 | AA189: 415 | AD189: 415 | AE189: 334000 | AF189: 334000 | AG189: 334000 | AJ189: -13 | AK189: -3 | AL189: 7 | AM189: 17 | AN189: 27 | AO189: 37 | AP189: 47
V190: 83.5 | W190: 0.835 | X190: 417.5 | AA190: 417.5 | AD190: 417.5 | AE190: 333000 | AF190: 333000 | AG190: 333000 | AJ190: -13.5 | AK190: -3.5 | AL190: 6.5 | AM190: 16.5 | AN190: 26.5 | AO190: 36.5 | AP190: 46.5
B191: Scoregraph voor Prijs | V191: 84 | W191: 0.84 | X191: 420 | AA191: 420 | AD191: 420 | AE191: 332000 | AF191: 332000 | AG191: 332000 | AJ191: -14 | AK191: -4 | AL191: 6 | AM191: 16 | AN191: 26 | AO191: 36 | AP191: 46
V192: 84.5 | W192: 0.845 | X192: 422.5 | AA192: 422.5 | AD192: 422.5 | AE192: 331000 | AF192: 331000 | AG192: 331000 | AJ192: -14.5 | AK192: -4.5 | AL192: 5.5 | AM192: 15.5 | AN192: 25.5 | AO192: 35.5 | AP192: 45.5
B193: Hulpvelden voor as-indeling Scoregraph prijs | E193: Voorbeeld Inschrijving | F193: =Dashboard!H18 -> 400000 | V193: 85 | W193: 0.85 | X193: 425 | AA193: 425 | AD193: 425 | AE193: 330000 | AF193: 330000 | AG193: 330000 | AJ193: -15 | AK193: -5 | AL193: 5 | AM193: 15 | AN193: 25 | AO193: 35 | AP193: 45
C194: X-as | D194: Y-as | F194: =$H$6*((($C$196-F193)/($C$17-$C$14))^(1/$H$7)) -> 250 | V194: 85.5 | W194: =+W193+0.005 -> 0.855 | X194: 427.5 | AA194: 427.5 | AD194: 427.5 | AE194: 329000 | AF194: 329000 | AG194: 329000 | AJ194: -15.5 | AK194: -5.5 | AL194: 4.5 | AM194: 14.5 | AN194: 24.5 | AO194: 34.5 | AP194: 44.5
B195: ondergrens | C195: =+Dashboard!$H$15 -> 300000 | D195: 0 | V195: 86 | W195: 0.86 | X195: 430 | AA195: 430 | AD195: 430 | AE195: 328000 | AF195: 328000 | AG195: 328000 | AJ195: -16 | AK195: -6 | AL195: 4 | AM195: 14 | AN195: 24 | AO195: 34 | AP195: 44
B196: bovengrens | C196: =Dashboard!$H$14 -> 500000 | D196: =Dashboard!$H$11 -> 500 | V196: 86.5 | W196: 0.865 | X196: 432.5 | AA196: 432.5 | AD196: 432.5 | AE196: 327000 | AF196: 327000 | AG196: 327000 | AJ196: -16.5 | AK196: -6.5 | AL196: 3.5 | AM196: 13.5 | AN196: 23.5 | AO196: 33.5 | AP196: 43.5
B197: primaire eenheid | C197: =(C17-C14)/5 -> 40000 | D197: =D196/10 -> 50 | V197: 87 | W197: 0.87 | X197: 435 | AA197: 435 | AD197: 435 | AE197: 326000 | AF197: 326000 | AG197: 326000 | AJ197: -17 | AK197: -7 | AL197: 3 | AM197: 13 | AN197: 23 | AO197: 33 | AP197: 43
B198: Stappen x-as | C198: =(C17-C14)/100 -> 2000 | V198: 87.5 | W198: 0.875 | X198: 437.5 | AA198: 437.5 | AD198: 437.5 | AE198: 325000 | AF198: 325000 | AG198: 325000 | AJ198: -17.5 | AK198: -7.5 | AL198: 2.5 | AM198: 12.5 | AN198: 22.5 | AO198: 32.5 | AP198: 42.5
E199: Keuze | F199: wortel | G199: macht | V199: 88 | W199: =+W198+0.005 -> 0.88 | X199: =+W199*($X$223-$F$14)+$X$22 -> 440 | AA199: 440 | AD199: 440 | AE199: 324000 | AF199: 324000 | AG199: 324000 | AJ199: -18 | AK199: -8 | AL199: 2 | AM199: 12 | AN199: 22 | AO199: 32 | AP199: 42
B200: Stappen | C200: y-as | D200: x-as | F200: Psi | G200: Psi | V200: 88.5 | W200: 0.885 | X200: 442.5 | AA200: 442.5 | AD200: 442.5 | AE200: 323000 | AF200: 323000 | AG200: 323000 | AJ200: -18.5 | AK200: -8.5 | AL200: 1.5 | AM200: 11.5 | AN200: 21.5 | AO200: 31.5 | AP200: 41.5
B201: 0 | C201: =D195 -> 0 | D201: =C14 -> 300000 | E201: =IF($E$6="Wortelformule",F201,G201) -> 500 | F201: =$H$6*((($C$196-D201)/($C$17-$C$14))^(1/$H$7)) -> 500 | G201: =$H$6-$H$6*(((D201-$C$14)/($C$17-$C$14))^$H$7) -> 500 | V201: 89 | W201: 0.89 | X201: 445 | AA201: 445 | AD201: 445 | AE201: 322000 | AF201: 322000 | AG201: 322000 | AJ201: -19 | AK201: -9 | AL201: 1 | AM201: 11 | AN201: 21 | AO201: 31 | AP201: 41
... 100 more rows

Sheet BPK-Grafiek (hidden)
B2: Europese Aanbesteding
B3: =+DATA!C34 -> 
B4: BPK-Grafiek
B5: ="Kenmerk: " & DATA!C35 -> Kenmerk:
B6: Bedragen excl. BTW
G8: Vergelijkingswaarde
G10: Indicatie eigen score | H10: Score Kwaliteit
G11: Eigen inschatting score kwaliteit*
G12: ="* Eigen inschatting door Inschrijver. Waarde tussen 0 en "& DATA!C12 &" punten." -> * Eigen inschatting door Inschrijver. Waarde tussen 0 en 500 punten.
G13: Score voor Prijs | H13: =DATA!G2 -> 1250
G14: Indicatie BPK-score | H14: =+DATA!I2 -> 1250
G16: Voorbeeld
G17: Prijs voorbeeld inschrijving | H17: =DATA!C25 -> 400000
G18: Prijsscore voorbeeld inschrijving | H18: =DATA!C27 -> 250
G19: Kwaliteitscore voorbeeld inschrijving | H19: =DATA!C26 -> 250
G20: Voorbeeld BPK-score Pvbi | Qvbi | H20: =DATA!C28 -> 500
G21: Knockout op Kwaliteit (Q) < | H21: =IF(+DATA!D22<=0,"n.v.t.",+DATA!D22) -> n.v.t.

Sheet DATA (hidden)
B2: Uw Inschrijving | C2: ='BPK-Grafiek'!H8 -> 0 | D2: Qscore | E2: ='BPK-Grafiek'!H11 -> 0 | F2: Pscore | G2: =IF(C5="Machtsformule",ROUND($C$10-$C$10*(((C2-$C$20)/($C$21-$C$20))^$C$23),1),ROUND(C10*((($C$21-C2)/($C$21-$C$20))^(1/$C$23)),1)) -> 1250 | H2: BPK-score | I2: =E2+G2 -> 1250 | J2: Qscore (norm) | K2: =E2/C6*100 -> 0
B4: De hieronder opgenomen date is noodzakelijk voor de opbouw van de BPK-grafiek
B5: Type formule | C5: ='HULP-velden'!E6 -> Machtsformule | H5: Y-as | J5: X-as
B6: Qmax (x-as) | C6: =+C12 -> 500 | D6: =+C6 -> 500 | J6: BPK-Lijnen
B7: Qmax (y-as) | C7: 0 | D7: =+C25*2 -> 800000 | H7: Prijs | J7: =+'HULP-velden'!AJ16 -> BPK-Lijn -3 | K7: =+'HULP-velden'!AK16 -> BPK-Lijn -2 | L7: =+'HULP-velden'!AL16 -> BPK-Lijn -1 | M7: =+'HULP-velden'!AM16 -> BPK-lijn Ref | N7: =+'HULP-velden'!AN16 -> BPK-Lijn +1 | O7: =+'HULP-velden'!AO16 -> BPK-Lijn +2 | P7: =+'HULP-velden'!AP16 -> BPK-Lijn +3
B8: Plafondprijs (x-as) | C8: 0 | D8: =+C12 -> 500 | H8: ='HULP-velden'!AE22 -> 500000 | J8: =+'HULP-velden'!AJ22 -> 70 | K8: =+'HULP-velden'!AK22 -> 80 | L8: =+'HULP-velden'!AL22 -> 90 | M8: =+'HULP-velden'!AM22 -> 100 | N8: =+'HULP-velden'!AN22 -> 110 | O8: =+'HULP-velden'!AO22 -> 120 | P8: =+'HULP-velden'!AP22 -> 130
B9: Plafondprijs (y-as) | C9: =+C19 -> -100000 | D9: =+C19 -> -100000 | H9: ='HULP-velden'!AE23 -> 499000 | J9: =+'HULP-velden'!AJ23 -> 69.5 | K9: =+'HULP-velden'!AK23 -> 79.5 | L9: =+'HULP-velden'!AL23 -> 89.5 | M9: =+'HULP-velden'!AM23 -> 99.5 | N9: =+'HULP-velden'!AN23 -> 109.5 | O9: =+'HULP-velden'!AO23 -> 119.5 | P9: =+'HULP-velden'!AP23 -> 129.5
B10: Punten voor Prijs | C10: ='HULP-velden'!H6 -> 500 | H10: ='HULP-velden'!AE24 -> 498000 | J10: =+'HULP-velden'!AJ24 -> 69 | K10: =+'HULP-velden'!AK24 -> 79 | L10: =+'HULP-velden'!AL24 -> 89 | M10: =+'HULP-velden'!AM24 -> 99 | N10: =+'HULP-velden'!AN24 -> 109 | O10: =+'HULP-velden'!AO24 -> 119 | P10: =+'HULP-velden'!AP24 -> 129
B11: Methode/Qref | C11: ='HULP-velden'!M15 -> 250 | D11: ='HULP-velden'!F7 -> 0 | H11: ='HULP-velden'!AE25 -> 497000 | J11: =+'HULP-velden'!AJ25 -> 68.5 | K11: =+'HULP-velden'!AK25 -> 78.5 | L11: =+'HULP-velden'!AL25 -> 88.5 | M11: =+'HULP-velden'!AM25 -> 98.5 | N11: =+'HULP-velden'!AN25 -> 108.5 | O11: =+'HULP-velden'!AO25 -> 118.5 | P11: =+'HULP-velden'!AP25 -> 128.5
B12: Qwensen | C12: ='HULP-velden'!C6 -> 500 | H12: ='HULP-velden'!AE26 -> 496000 | J12: =+'HULP-velden'!AJ26 -> 68 | K12: =+'HULP-velden'!AK26 -> 78 | L12: =+'HULP-velden'!AL26 -> 88 | M12: =+'HULP-velden'!AM26 -> 98 | N12: =+'HULP-velden'!AN26 -> 108 | O12: =+'HULP-velden'!AO26 -> 118 | P12: =+'HULP-velden'!AP26 -> 128
B13: Stappen | C13: =+'HULP-velden'!C7 -> 25 | H13: ='HULP-velden'!AE27 -> 495000 | J13: =+'HULP-velden'!AJ27 -> 67.5 | K13: =+'HULP-velden'!AK27 -> 77.5 | L13: =+'HULP-velden'!AL27 -> 87.5 | M13: =+'HULP-velden'!AM27 -> 97.5 | N13: =+'HULP-velden'!AN27 -> 107.5 | O13: =+'HULP-velden'!AO27 -> 117.5 | P13: =+'HULP-velden'!AP27 -> 127.5
H14: ='HULP-velden'!AE28 -> 494000 | J14: =+'HULP-velden'!AJ28 -> 67 | K14: =+'HULP-velden'!AK28 -> 77 | L14: =+'HULP-velden'!AL28 -> 87 | M14: =+'HULP-velden'!AM28 -> 97 | N14: =+'HULP-velden'!AN28 -> 107 | O14: =+'HULP-velden'!AO28 -> 117 | P14: =+'HULP-velden'!AP28 -> 127
B15: Q-score voorbeeld inschrijvig | C15: ='HULP-velden'!F12 -> 50 | H15: ='HULP-velden'!AE29 -> 493000 | J15: =+'HULP-velden'!AJ29 -> 66.5 | K15: =+'HULP-velden'!AK29 -> 76.5 | L15: =+'HULP-velden'!AL29 -> 86.5 | M15: =+'HULP-velden'!AM29 -> 96.5 | N15: =+'HULP-velden'!AN29 -> 106.5 | O15: =+'HULP-velden'!AO29 -> 116.5 | P15: =+'HULP-velden'!AP29 -> 126.5
B16: Wq | C16: =+'HULP-velden'!C10 -> 0.5 | D16: =+D6 -> 500 | H16: ='HULP-velden'!AE30 -> 492000 | J16: =+'HULP-velden'!AJ30 -> 66 | K16: =+'HULP-velden'!AK30 -> 76 | L16: =+'HULP-velden'!AL30 -> 86 | M16: =+'HULP-velden'!AM30 -> 96 | N16: =+'HULP-velden'!AN30 -> 106 | O16: =+'HULP-velden'!AO30 -> 116 | P16: =+'HULP-velden'!AP30 -> 126
B17: Wp | C17: =+'HULP-velden'!C11 -> 0.5 | D17: =D16/C16*C17 -> 500 | H17: ='HULP-velden'!AE31 -> 491000 | J17: =+'HULP-velden'!AJ31 -> 65.5 | K17: =+'HULP-velden'!AK31 -> 75.5 | L17: =+'HULP-velden'!AL31 -> 85.5 | M17: =+'HULP-velden'!AM31 -> 95.5 | N17: =+'HULP-velden'!AN31 -> 105.5 | O17: =+'HULP-velden'!AO31 -> 115.5 | P17: =+'HULP-velden'!AP31 -> 125.5
H18: ='HULP-velden'!AE32 -> 490000 | J18: =+'HULP-velden'!AJ32 -> 65 | K18: =+'HULP-velden'!AK32 -> 75 | L18: =+'HULP-velden'!AL32 -> 85 | M18: =+'HULP-velden'!AM32 -> 95 | N18: =+'HULP-velden'!AN32 -> 105 | O18: =+'HULP-velden'!AO32 -> 115 | P18: =+'HULP-velden'!AP32 -> 125
B19: Plafondprijs | C19: =+'HULP-velden'!C13 -> -100000 | H19: ='HULP-velden'!AE33 -> 489000 | J19: =+'HULP-velden'!AJ33 -> 64.5 | K19: =+'HULP-velden'!AK33 -> 74.5 | L19: =+'HULP-velden'!AL33 -> 84.5 | M19: =+'HULP-velden'!AM33 -> 94.5 | N19: =+'HULP-velden'!AN33 -> 104.5 | O19: =+'HULP-velden'!AO33 -> 114.5 | P19: =+'HULP-velden'!AP33 -> 124.5
B20: Ondergrens | C20: =+'HULP-velden'!C14 -> 300000 | D20: =+C20 -> 300000 | H20: ='HULP-velden'!AE34 -> 488000 | J20: =+'HULP-velden'!AJ34 -> 64 | K20: =+'HULP-velden'!AK34 -> 74 | L20: =+'HULP-velden'!AL34 -> 84 | M20: =+'HULP-velden'!AM34 -> 94 | N20: =+'HULP-velden'!AN34 -> 104 | O20: =+'HULP-velden'!AO34 -> 114 | P20: =+'HULP-velden'!AP34 -> 124
B21: Bovengrens | C21: =+'HULP-velden'!C17 -> 500000 | D21: =+C21 -> 500000 | H21: ='HULP-velden'!AE35 -> 487000 | J21: =+'HULP-velden'!AJ35 -> 63.5 | K21: =+'HULP-velden'!AK35 -> 73.5 | L21: =+'HULP-velden'!AL35 -> 83.5 | M21: =+'HULP-velden'!AM35 -> 93.5 | N21: =+'HULP-velden'!AN35 -> 103.5 | O21: =+'HULP-velden'!AO35 -> 113.5 | P21: =+'HULP-velden'!AP35 -> 123.5
B22: LAQ | C22: =+'HULP-velden'!C15 -> -1000 | D22: =Dashboard!H22 -> 0 | H22: ='HULP-velden'!AE36 -> 486000 | J22: =+'HULP-velden'!AJ36 -> 63 | K22: =+'HULP-velden'!AK36 -> 73 | L22: =+'HULP-velden'!AL36 -> 83 | M22: =+'HULP-velden'!AM36 -> 93 | N22: =+'HULP-velden'!AN36 -> 103 | O22: =+'HULP-velden'!AO36 -> 113 | P22: =+'HULP-velden'!AP36 -> 123
B23: n-factor | C23: =Dashboard!H16 -> 1 | H23: ='HULP-velden'!AE37 -> 485000 | J23: =+'HULP-velden'!AJ37 -> 62.5 | K23: =+'HULP-velden'!AK37 -> 72.5 | L23: =+'HULP-velden'!AL37 -> 82.5 | M23: =+'HULP-velden'!AM37 -> 92.5 | N23: =+'HULP-velden'!AN37 -> 102.5 | O23: =+'HULP-velden'!AO37 -> 112.5 | P23: =+'HULP-velden'!AP37 -> 122.5
H24: ='HULP-velden'!AE38 -> 484000 | J24: =+'HULP-velden'!AJ38 -> 62 | K24: =+'HULP-velden'!AK38 -> 72 | L24: =+'HULP-velden'!AL38 -> 82 | M24: =+'HULP-velden'!AM38 -> 92 | N24: =+'HULP-velden'!AN38 -> 102 | O24: =+'HULP-velden'!AO38 -> 112 | P24: =+'HULP-velden'!AP38 -> 122
B25: Prijs voorbeeld inschrijving | C25: =+'HULP-velden'!C8 -> 400000 | H25: ='HULP-velden'!AE39 -> 483000 | J25: =+'HULP-velden'!AJ39 -> 61.5 | K25: =+'HULP-velden'!AK39 -> 71.5 | L25: =+'HULP-velden'!AL39 -> 81.5 | M25: =+'HULP-velden'!AM39 -> 91.5 | N25: =+'HULP-velden'!AN39 -> 101.5 | O25: =+'HULP-velden'!AO39 -> 111.5 | P25: =+'HULP-velden'!AP39 -> 121.5
B26: Score kwaliteit voorbeeld inschrijving | C26: ='HULP-velden'!C165 -> 250 | H26: ='HULP-velden'!AE40 -> 482000 | J26: =+'HULP-velden'!AJ40 -> 61 | K26: =+'HULP-velden'!AK40 -> 71 | L26: =+'HULP-velden'!AL40 -> 81 | M26: =+'HULP-velden'!AM40 -> 91 | N26: =+'HULP-velden'!AN40 -> 101 | O26: =+'HULP-velden'!AO40 -> 111 | P26: =+'HULP-velden'!AP40 -> 121
B27: Score prijs voorbeeld inschrijving | C27: ='HULP-velden'!C164 -> 250 | H27: ='HULP-velden'!AE41 -> 481000 | J27: =+'HULP-velden'!AJ41 -> 60.5 | K27: =+'HULP-velden'!AK41 -> 70.5 | L27: =+'HULP-velden'!AL41 -> 80.5 | M27: =+'HULP-velden'!AM41 -> 90.5 | N27: =+'HULP-velden'!AN41 -> 100.5 | O27: =+'HULP-velden'!AO41 -> 110.5 | P27: =+'HULP-velden'!AP41 -> 120.5
B28: BPK-Score voorbeeld | C28: ='HULP-velden'!C163 -> 500 | H28: ='HULP-velden'!AE42 -> 480000 | J28: =+'HULP-velden'!AJ42 -> 60 | K28: =+'HULP-velden'!AK42 -> 70 | L28: =+'HULP-velden'!AL42 -> 80 | M28: =+'HULP-velden'!AM42 -> 90 | N28: =+'HULP-velden'!AN42 -> 100 | O28: =+'HULP-velden'!AO42 -> 110 | P28: =+'HULP-velden'!AP42 -> 120
H29: ='HULP-velden'!AE43 -> 479000 | J29: =+'HULP-velden'!AJ43 -> 59.5 | K29: =+'HULP-velden'!AK43 -> 69.5 | L29: =+'HULP-velden'!AL43 -> 79.5 | M29: =+'HULP-velden'!AM43 -> 89.5 | N29: =+'HULP-velden'!AN43 -> 99.5 | O29: =+'HULP-velden'!AO43 -> 109.5 | P29: =+'HULP-velden'!AP43 -> 119.5
H30: ='HULP-velden'!AE44 -> 478000 | J30: =+'HULP-velden'!AJ44 -> 59 | K30: =+'HULP-velden'!AK44 -> 69 | L30: =+'HULP-velden'!AL44 -> 79 | M30: =+'HULP-velden'!AM44 -> 89 | N30: =+'HULP-velden'!AN44 -> 99 | O30: =+'HULP-velden'!AO44 -> 109 | P30: =+'HULP-velden'!AP44 -> 119
H31: ='HULP-velden'!AE45 -> 477000 | J31: =+'HULP-velden'!AJ45 -> 58.5 | K31: =+'HULP-velden'!AK45 -> 68.5 | L31: =+'HULP-velden'!AL45 -> 78.5 | M31: =+'HULP-velden'!AM45 -> 88.5 | N31: =+'HULP-velden'!AN45 -> 98.5 | O31: =+'HULP-velden'!AO45 -> 108.5 | P31: =+'HULP-velden'!AP45 -> 118.5
H32: ='HULP-velden'!AE46 -> 476000 | J32: =+'HULP-velden'!AJ46 -> 58 | K32: =+'HULP-velden'!AK46 -> 68 | L32: =+'HULP-velden'!AL46 -> 78 | M32: =+'HULP-velden'!AM46 -> 88 | N32: =+'HULP-velden'!AN46 -> 98 | O32: =+'HULP-velden'!AO46 -> 108 | P32: =+'HULP-velden'!AP46 -> 118
H33: ='HULP-velden'!AE47 -> 475000 | J33: =+'HULP-velden'!AJ47 -> 57.5 | K33: =+'HULP-velden'!AK47 -> 67.5 | L33: =+'HULP-velden'!AL47 -> 77.5 | M33: =+'HULP-velden'!AM47 -> 87.5 | N33: =+'HULP-velden'!AN47 -> 97.5 | O33: =+'HULP-velden'!AO47 -> 107.5 | P33: =+'HULP-velden'!AP47 -> 117.5
B34: Naam | C34: =Dashboard!E6 ->  | H34: ='HULP-velden'!AE48 -> 474000 | J34: =+'HULP-velden'!AJ48 -> 57 | K34: =+'HULP-velden'!AK48 -> 67 | L34: =+'HULP-velden'!AL48 -> 77 | M34: =+'HULP-velden'!AM48 -> 87 | N34: =+'HULP-velden'!AN48 -> 97 | O34: =+'HULP-velden'!AO48 -> 107 | P34: =+'HULP-velden'!AP48 -> 117
B35: Kenmerk | C35: =Dashboard!E7 ->  | H35: ='HULP-velden'!AE49 -> 473000 | J35: =+'HULP-velden'!AJ49 -> 56.5 | K35: =+'HULP-velden'!AK49 -> 66.5 | L35: =+'HULP-velden'!AL49 -> 76.5 | M35: =+'HULP-velden'!AM49 -> 86.5 | N35: =+'HULP-velden'!AN49 -> 96.5 | O35: =+'HULP-velden'!AO49 -> 106.5 | P35: =+'HULP-velden'!AP49 -> 116.5
H36: ='HULP-velden'!AE50 -> 472000 | J36: =+'HULP-velden'!AJ50 -> 56 | K36: =+'HULP-velden'!AK50 -> 66 | L36: =+'HULP-velden'!AL50 -> 76 | M36: =+'HULP-velden'!AM50 -> 86 | N36: =+'HULP-velden'!AN50 -> 96 | O36: =+'HULP-velden'!AO50 -> 106 | P36: =+'HULP-velden'!AP50 -> 116
H37: ='HULP-velden'!AE51 -> 471000 | J37: =+'HULP-velden'!AJ51 -> 55.5 | K37: =+'HULP-velden'!AK51 -> 65.5 | L37: =+'HULP-velden'!AL51 -> 75.5 | M37: =+'HULP-velden'!AM51 -> 85.5 | N37: =+'HULP-velden'!AN51 -> 95.5 | O37: =+'HULP-velden'!AO51 -> 105.5 | P37: =+'HULP-velden'!AP51 -> 115.5
B38: Ten behoeve van grafiek | H38: ='HULP-velden'!AE52 -> 470000 | J38: =+'HULP-velden'!AJ52 -> 55 | K38: =+'HULP-velden'!AK52 -> 65 | L38: =+'HULP-velden'!AL52 -> 75 | M38: =+'HULP-velden'!AM52 -> 85 | N38: =+'HULP-velden'!AN52 -> 95 | O38: =+'HULP-velden'!AO52 -> 105 | P38: =+'HULP-velden'!AP52 -> 115
B39: Onder-lijn (x-as) | D39: ='HULP-velden'!D104 -> 280000 | H39: ='HULP-velden'!AE53 -> 469000 | J39: =+'HULP-velden'!AJ53 -> 54.5 | K39: =+'HULP-velden'!AK53 -> 64.5 | L39: =+'HULP-velden'!AL53 -> 74.5 | M39: =+'HULP-velden'!AM53 -> 84.5 | N39: =+'HULP-velden'!AN53 -> 94.5 | O39: =+'HULP-velden'!AO53 -> 104.5 | P39: =+'HULP-velden'!AP53 -> 114.5
B40: Qmax | C40: =+'HULP-velden'!C20 -> 100 | D40: =+'HULP-velden'!D20 -> 100 | H40: ='HULP-velden'!AE54 -> 468000 | J40: =+'HULP-velden'!AJ54 -> 54 | K40: =+'HULP-velden'!AK54 -> 64 | L40: =+'HULP-velden'!AL54 -> 74 | M40: =+'HULP-velden'!AM54 -> 84 | N40: =+'HULP-velden'!AN54 -> 94 | O40: =+'HULP-velden'!AO54 -> 104 | P40: =+'HULP-velden'!AP54 -> 114
B41: Bovenlijn | C41: =+'HULP-velden'!C21 -> 0 | D41: =+'HULP-velden'!D21 -> 520000 | H41: ='HULP-velden'!AE55 -> 467000 | J41: =+'HULP-velden'!AJ55 -> 53.5 | K41: =+'HULP-velden'!AK55 -> 63.5 | L41: =+'HULP-velden'!AL55 -> 73.5 | M41: =+'HULP-velden'!AM55 -> 83.5 | N41: =+'HULP-velden'!AN55 -> 93.5 | O41: =+'HULP-velden'!AO55 -> 103.5 | P41: =+'HULP-velden'!AP55 -> 113.5
B42: Referentie | C42: ='HULP-velden'!M15 -> 250 | D42: =+'HULP-velden'!M14 -> 400000 | H42: ='HULP-velden'!AE56 -> 466000 | J42: =+'HULP-velden'!AJ56 -> 53 | K42: =+'HULP-velden'!AK56 -> 63 | L42: =+'HULP-velden'!AL56 -> 73 | M42: =+'HULP-velden'!AM56 -> 83 | N42: =+'HULP-velden'!AN56 -> 93 | O42: =+'HULP-velden'!AO56 -> 103 | P42: =+'HULP-velden'!AP56 -> 113
B43: Qknockout Prijs | C43: ='HULP-velden'!C23 -> 0 | D43: ='HULP-velden'!D23 -> 100 | H43: ='HULP-velden'!AE57 -> 465000 | J43: =+'HULP-velden'!AJ57 -> 52.5 | K43: =+'HULP-velden'!AK57 -> 62.5 | L43: =+'HULP-velden'!AL57 -> 72.5 | M43: =+'HULP-velden'!AM57 -> 82.5 | N43: =+'HULP-velden'!AN57 -> 92.5 | O43: =+'HULP-velden'!AO57 -> 102.5 | P43: =+'HULP-velden'!AP57 -> 112.5
C44: =+'HULP-velden'!C13 -> -100000 | D44: =+C44 -> -100000 | H44: ='HULP-velden'!AE58 -> 464000 | J44: =+'HULP-velden'!AJ58 -> 52 | K44: =+'HULP-velden'!AK58 -> 62 | L44: =+'HULP-velden'!AL58 -> 72 | M44: =+'HULP-velden'!AM58 -> 82 | N44: =+'HULP-velden'!AN58 -> 92 | O44: =+'HULP-velden'!AO58 -> 102 | P44: =+'HULP-velden'!AP58 -> 112
B45: Vergelijkingswaarde x 1.000 | C45: 0 | D45: =+'HULP-velden'!D21 -> 520000 | H45: ='HULP-velden'!AE59 -> 463000 | J45: =+'HULP-velden'!AJ59 -> 51.5 | K45: =+'HULP-velden'!AK59 -> 61.5 | L45: =+'HULP-velden'!AL59 -> 71.5 | M45: =+'HULP-velden'!AM59 -> 81.5 | N45: =+'HULP-velden'!AN59 -> 91.5 | O45: =+'HULP-velden'!AO59 -> 101.5 | P45: =+'HULP-velden'!AP59 -> 111.5
B46: Qkncokout Kwaliteit | C46: ='HULP-velden'!C26 -> -1000 | D46: ='HULP-velden'!D26 -> -1000 | H46: ='HULP-velden'!AE60 -> 462000 | J46: =+'HULP-velden'!AJ60 -> 51 | K46: =+'HULP-velden'!AK60 -> 61 | L46: =+'HULP-velden'!AL60 -> 71 | M46: =+'HULP-velden'!AM60 -> 81 | N46: =+'HULP-velden'!AN60 -> 91 | O46: =+'HULP-velden'!AO60 -> 101 | P46: =+'HULP-velden'!AP60 -> 111
B47: Qmin | C47: ='HULP-velden'!C28 -> 0 | D47: ='HULP-velden'!D28 -> 0 | H47: ='HULP-velden'!AE61 -> 461000 | J47: =+'HULP-velden'!AJ61 -> 50.5 | K47: =+'HULP-velden'!AK61 -> 60.5 | L47: =+'HULP-velden'!AL61 -> 70.5 | M47: =+'HULP-velden'!AM61 -> 80.5 | N47: =+'HULP-velden'!AN61 -> 90.5 | O47: =+'HULP-velden'!AO61 -> 100.5 | P47: =+'HULP-velden'!AP61 -> 110.5
B48: Punten bij Qmin | C48: =+C47 -> 0 | D48: 0 | H48: ='HULP-velden'!AE62 -> 460000 | J48: =+'HULP-velden'!AJ62 -> 50 | K48: =+'HULP-velden'!AK62 -> 60 | L48: =+'HULP-velden'!AL62 -> 70 | M48: =+'HULP-velden'!AM62 -> 80 | N48: =+'HULP-velden'!AN62 -> 90 | O48: =+'HULP-velden'!AO62 -> 100 | P48: =+'HULP-velden'!AP62 -> 110
B49: Punten Bij Qmax | C49: =C12 -> 500 | D49: 0 | H49: ='HULP-velden'!AE63 -> 459000 | J49: =+'HULP-velden'!AJ63 -> 49.5 | K49: =+'HULP-velden'!AK63 -> 59.5 | L49: =+'HULP-velden'!AL63 -> 69.5 | M49: =+'HULP-velden'!AM63 -> 79.5 | N49: =+'HULP-velden'!AN63 -> 89.5 | O49: =+'HULP-velden'!AO63 -> 99.5 | P49: =+'HULP-velden'!AP63 -> 109.5
B50: Waarde bij Qmin | C50: ='HULP-velden'!C29 -> 0 | H50: ='HULP-velden'!AE64 -> 458000 | J50: =+'HULP-velden'!AJ64 -> 49 | K50: =+'HULP-velden'!AK64 -> 59 | L50: =+'HULP-velden'!AL64 -> 69 | M50: =+'HULP-velden'!AM64 -> 79 | N50: =+'HULP-velden'!AN64 -> 89 | O50: =+'HULP-velden'!AO64 -> 99 | P50: =+'HULP-velden'!AP64 -> 109
B51: Waarde bij Qmax | C51: ='HULP-velden'!C30 -> 500 | H51: ='HULP-velden'!AE65 -> 457000 | J51: =+'HULP-velden'!AJ65 -> 48.5 | K51: =+'HULP-velden'!AK65 -> 58.5 | L51: =+'HULP-velden'!AL65 -> 68.5 | M51: =+'HULP-velden'!AM65 -> 78.5 | N51: =+'HULP-velden'!AN65 -> 88.5 | O51: =+'HULP-velden'!AO65 -> 98.5 | P51: =+'HULP-velden'!AP65 -> 108.5
B52: LAQ | C52: ='HULP-velden'!C26 -> -1000 | D52: ='HULP-velden'!D26 -> -1000 | H52: ='HULP-velden'!AE66 -> 456000 | J52: =+'HULP-velden'!AJ66 -> 48 | K52: =+'HULP-velden'!AK66 -> 58 | L52: =+'HULP-velden'!AL66 -> 68 | M52: =+'HULP-velden'!AM66 -> 78 | N52: =+'HULP-velden'!AN66 -> 88 | O52: =+'HULP-velden'!AO66 -> 98 | P52: =+'HULP-velden'!AP66 -> 108
B53: Tekst | C53: ='HULP-velden'!G15 -> LAQ = | H53: ='HULP-velden'!AE67 -> 455000 | J53: =+'HULP-velden'!AJ67 -> 47.5 | K53: =+'HULP-velden'!AK67 -> 57.5 | L53: =+'HULP-velden'!AL67 -> 67.5 | M53: =+'HULP-velden'!AM67 -> 77.5 | N53: =+'HULP-velden'!AN67 -> 87.5 | O53: =+'HULP-velden'!AO67 -> 97.5 | P53: =+'HULP-velden'!AP67 -> 107.5
B54: Plafondprijs | C54: ='HULP-velden'!C13 -> -100000 | D54: =+C54 -> -100000 | H54: ='HULP-velden'!AE68 -> 454000 | J54: =+'HULP-velden'!AJ68 -> 47 | K54: =+'HULP-velden'!AK68 -> 57 | L54: =+'HULP-velden'!AL68 -> 67 | M54: =+'HULP-velden'!AM68 -> 77 | N54: =+'HULP-velden'!AN68 -> 87 | O54: =+'HULP-velden'!AO68 -> 97 | P54: =+'HULP-velden'!AP68 -> 107
B55: Tekst | C55: ='HULP-velden'!G16 -> Plafondprijs; -€ 100 | H55: ='HULP-velden'!AE69 -> 453000 | J55: =+'HULP-velden'!AJ69 -> 46.5 | K55: =+'HULP-velden'!AK69 -> 56.5 | L55: =+'HULP-velden'!AL69 -> 66.5 | M55: =+'HULP-velden'!AM69 -> 76.5 | N55: =+'HULP-velden'!AN69 -> 86.5 | O55: =+'HULP-velden'!AO69 -> 96.5 | P55: =+'HULP-velden'!AP69 -> 106.5
H56: ='HULP-velden'!AE70 -> 452000 | J56: =+'HULP-velden'!AJ70 -> 46 | K56: =+'HULP-velden'!AK70 -> 56 | L56: =+'HULP-velden'!AL70 -> 66 | M56: =+'HULP-velden'!AM70 -> 76 | N56: =+'HULP-velden'!AN70 -> 86 | O56: =+'HULP-velden'!AO70 -> 96 | P56: =+'HULP-velden'!AP70 -> 106
H57: ='HULP-velden'!AE71 -> 451000 | J57: =+'HULP-velden'!AJ71 -> 45.5 | K57: =+'HULP-velden'!AK71 -> 55.5 | L57: =+'HULP-velden'!AL71 -> 65.5 | M57: =+'HULP-velden'!AM71 -> 75.5 | N57: =+'HULP-velden'!AN71 -> 85.5 | O57: =+'HULP-velden'!AO71 -> 95.5 | P57: =+'HULP-velden'!AP71 -> 105.5
H58: ='HULP-velden'!AE72 -> 450000 | J58: =+'HULP-velden'!AJ72 -> 45 | K58: =+'HULP-velden'!AK72 -> 55 | L58: =+'HULP-velden'!AL72 -> 65 | M58: =+'HULP-velden'!AM72 -> 75 | N58: =+'HULP-velden'!AN72 -> 85 | O58: =+'HULP-velden'!AO72 -> 95 | P58: =+'HULP-velden'!AP72 -> 105
B59: Ten behoeve van de grafiek Evaluatie | H59: ='HULP-velden'!AE73 -> 449000 | J59: =+'HULP-velden'!AJ73 -> 44.5 | K59: =+'HULP-velden'!AK73 -> 54.5 | L59: =+'HULP-velden'!AL73 -> 64.5 | M59: =+'HULP-velden'!AM73 -> 74.5 | N59: =+'HULP-velden'!AN73 -> 84.5 | O59: =+'HULP-velden'!AO73 -> 94.5 | P59: =+'HULP-velden'!AP73 -> 104.5
C60: Vergelijkingswaarde | D60: Q-score | E60: in % | F60: Score | G60: Rang | H60: ='HULP-velden'!AE74 -> 448000 | J60: =+'HULP-velden'!AJ74 -> 44 | K60: =+'HULP-velden'!AK74 -> 54 | L60: =+'HULP-velden'!AL74 -> 64 | M60: =+'HULP-velden'!AM74 -> 74 | N60: =+'HULP-velden'!AN74 -> 84 | O60: =+'HULP-velden'!AO74 -> 94 | P60: =+'HULP-velden'!AP74 -> 104
B61: ='HULP-velden'!D51 ->  | C61: ='HULP-velden'!E51 ->  | D61: ='HULP-velden'!F51 ->  | E61: =IF(D61="","",D61/$C$12*100) ->  | F61: =IF(D61="","",'HULP-velden'!H51) ->  | G61: =IF(D61="","",'HULP-velden'!K51) ->  | H61: ='HULP-velden'!AE75 -> 447000 | J61: =+'HULP-velden'!AJ75 -> 43.5 | K61: =+'HULP-velden'!AK75 -> 53.5 | L61: =+'HULP-velden'!AL75 -> 63.5 | M61: =+'HULP-velden'!AM75 -> 73.5 | N61: =+'HULP-velden'!AN75 -> 83.5 | O61: =+'HULP-velden'!AO75 -> 93.5 | P61: =+'HULP-velden'!AP75 -> 103.5
B62: ='HULP-velden'!D52 ->  | C62: ='HULP-velden'!E52 ->  | D62: ='HULP-velden'!F52 ->  | E62: =IF(D62="","",D62/$C$12*100) ->  | F62: =IF(D62="","",'HULP-velden'!H52) ->  | G62: =IF(D62="","",'HULP-velden'!K52) ->  | H62: ='HULP-velden'!AE76 -> 446000 | J62: =+'HULP-velden'!AJ76 -> 43 | K62: =+'HULP-velden'!AK76 -> 53 | L62: =+'HULP-velden'!AL76 -> 63 | M62: =+'HULP-velden'!AM76 -> 73 | N62: =+'HULP-velden'!AN76 -> 83 | O62: =+'HULP-velden'!AO76 -> 93 | P62: =+'HULP-velden'!AP76 -> 103
B63: ='HULP-velden'!D53 ->  | C63: ='HULP-velden'!E53 ->  | D63: ='HULP-velden'!F53 ->  | E63: =IF(D63="","",D63/$C$12*100) ->  | F63: =IF(D63="","",'HULP-velden'!H53) ->  | G63: =IF(D63="","",'HULP-velden'!K53) ->  | H63: ='HULP-velden'!AE77 -> 445000 | J63: =+'HULP-velden'!AJ77 -> 42.5 | K63: =+'HULP-velden'!AK77 -> 52.5 | L63: =+'HULP-velden'!AL77 -> 62.5 | M63: =+'HULP-velden'!AM77 -> 72.5 | N63: =+'HULP-velden'!AN77 -> 82.5 | O63: =+'HULP-velden'!AO77 -> 92.5 | P63: =+'HULP-velden'!AP77 -> 102.5
B64: ='HULP-velden'!D54 ->  | C64: ='HULP-velden'!E54 ->  | D64: ='HULP-velden'!F54 ->  | F64: =IF(D64="","",'HULP-velden'!H54) ->  | G64: =IF(D64="","",'HULP-velden'!K54) ->  | H64: ='HULP-velden'!AE78 -> 444000 | J64: =+'HULP-velden'!AJ78 -> 42 | K64: =+'HULP-velden'!AK78 -> 52 | L64: =+'HULP-velden'!AL78 -> 62 | M64: =+'HULP-velden'!AM78 -> 72 | N64: =+'HULP-velden'!AN78 -> 82 | O64: =+'HULP-velden'!AO78 -> 92 | P64: =+'HULP-velden'!AP78 -> 102
B65: ='HULP-velden'!D55 ->  | C65: ='HULP-velden'!E55 ->  | D65: ='HULP-velden'!F55 ->  | F65: =IF(D65="","",'HULP-velden'!H55) ->  | G65: =IF(D65="","",'HULP-velden'!K55) ->  | H65: ='HULP-velden'!AE79 -> 443000 | J65: =+'HULP-velden'!AJ79 -> 41.5 | K65: =+'HULP-velden'!AK79 -> 51.5 | L65: =+'HULP-velden'!AL79 -> 61.5 | M65: =+'HULP-velden'!AM79 -> 71.5 | N65: =+'HULP-velden'!AN79 -> 81.5 | O65: =+'HULP-velden'!AO79 -> 91.5 | P65: =+'HULP-velden'!AP79 -> 101.5
B66: ='HULP-velden'!D56 ->  | C66: ='HULP-velden'!E56 ->  | D66: ='HULP-velden'!F56 ->  | F66: =IF(D66="","",'HULP-velden'!H56) ->  | G66: =IF(D66="","",'HULP-velden'!K56) ->  | H66: ='HULP-velden'!AE80 -> 442000 | J66: =+'HULP-velden'!AJ80 -> 41 | K66: =+'HULP-velden'!AK80 -> 51 | L66: =+'HULP-velden'!AL80 -> 61 | M66: =+'HULP-velden'!AM80 -> 71 | N66: =+'HULP-velden'!AN80 -> 81 | O66: =+'HULP-velden'!AO80 -> 91 | P66: =+'HULP-velden'!AP80 -> 101
B67: ='HULP-velden'!D57 ->  | C67: ='HULP-velden'!E57 ->  | D67: ='HULP-velden'!F57 ->  | F67: =IF(D67="","",'HULP-velden'!H57) ->  | G67: =IF(D67="","",'HULP-velden'!K57) ->  | H67: ='HULP-velden'!AE81 -> 441000 | J67: =+'HULP-velden'!AJ81 -> 40.5 | K67: =+'HULP-velden'!AK81 -> 50.5 | L67: =+'HULP-velden'!AL81 -> 60.5 | M67: =+'HULP-velden'!AM81 -> 70.5 | N67: =+'HULP-velden'!AN81 -> 80.5 | O67: =+'HULP-velden'!AO81 -> 90.5 | P67: =+'HULP-velden'!AP81 -> 100.5
B68: ='HULP-velden'!D58 ->  | C68: ='HULP-velden'!E58 ->  | D68: ='HULP-velden'!F58 ->  | F68: =IF(D68="","",'HULP-velden'!H58) ->  | G68: =IF(D68="","",'HULP-velden'!K58) ->  | H68: ='HULP-velden'!AE82 -> 440000 | J68: =+'HULP-velden'!AJ82 -> 40 | K68: =+'HULP-velden'!AK82 -> 50 | L68: =+'HULP-velden'!AL82 -> 60 | M68: =+'HULP-velden'!AM82 -> 70 | N68: =+'HULP-velden'!AN82 -> 80 | O68: =+'HULP-velden'!AO82 -> 90 | P68: =+'HULP-velden'!AP82 -> 100
B69: ='HULP-velden'!D59 ->  | C69: ='HULP-velden'!E59 ->  | D69: ='HULP-velden'!F59 ->  | F69: =IF(D69="","",'HULP-velden'!H59) ->  | G69: =IF(D69="","",'HULP-velden'!K59) ->  | H69: ='HULP-velden'!AE83 -> 439000 | J69: =+'HULP-velden'!AJ83 -> 39.5 | K69: =+'HULP-velden'!AK83 -> 49.5 | L69: =+'HULP-velden'!AL83 -> 59.5 | M69: =+'HULP-velden'!AM83 -> 69.5 | N69: =+'HULP-velden'!AN83 -> 79.5 | O69: =+'HULP-velden'!AO83 -> 89.5 | P69: =+'HULP-velden'!AP83 -> 99.5
B70: ='HULP-velden'!D60 ->  | C70: ='HULP-velden'!E60 ->  | D70: ='HULP-velden'!F60 ->  | F70: =IF(D70="","",'HULP-velden'!H60) ->  | G70: =IF(D70="","",'HULP-velden'!K60) ->  | H70: ='HULP-velden'!AE84 -> 438000 | J70: =+'HULP-velden'!AJ84 -> 39 | K70: =+'HULP-velden'!AK84 -> 49 | L70: =+'HULP-velden'!AL84 -> 59 | M70: =+'HULP-velden'!AM84 -> 69 | N70: =+'HULP-velden'!AN84 -> 79 | O70: =+'HULP-velden'!AO84 -> 89 | P70: =+'HULP-velden'!AP84 -> 99
B71: ='HULP-velden'!D61 ->  | C71: ='HULP-velden'!E61 ->  | D71: ='HULP-velden'!F61 ->  | F71: =IF(D71="","",'HULP-velden'!H61) ->  | G71: =IF(D71="","",'HULP-velden'!K61) ->  | H71: ='HULP-velden'!AE85 -> 437000 | J71: =+'HULP-velden'!AJ85 -> 38.5 | K71: =+'HULP-velden'!AK85 -> 48.5 | L71: =+'HULP-velden'!AL85 -> 58.5 | M71: =+'HULP-velden'!AM85 -> 68.5 | N71: =+'HULP-velden'!AN85 -> 78.5 | O71: =+'HULP-velden'!AO85 -> 88.5 | P71: =+'HULP-velden'!AP85 -> 98.5
B72: ='HULP-velden'!D62 ->  | C72: ='HULP-velden'!E62 ->  | D72: ='HULP-velden'!F62 ->  | F72: =IF(D72="","",'HULP-velden'!H62) ->  | G72: =IF(D72="","",'HULP-velden'!K62) ->  | H72: ='HULP-velden'!AE86 -> 436000 | J72: =+'HULP-velden'!AJ86 -> 38 | K72: =+'HULP-velden'!AK86 -> 48 | L72: =+'HULP-velden'!AL86 -> 58 | M72: =+'HULP-velden'!AM86 -> 68 | N72: =+'HULP-velden'!AN86 -> 78 | O72: =+'HULP-velden'!AO86 -> 88 | P72: =+'HULP-velden'!AP86 -> 98
B73: ='HULP-velden'!D63 -> Referentie | C73: ='HULP-velden'!E63 -> 400000 | D73: ='HULP-velden'!F63 -> 250 | E73: 50 | F73: =IF(D73="","",'HULP-velden'!H63) -> 500 | H73: ='HULP-velden'!AE87 -> 435000 | J73: =+'HULP-velden'!AJ87 -> 37.5 | K73: =+'HULP-velden'!AK87 -> 47.5 | L73: =+'HULP-velden'!AL87 -> 57.5 | M73: =+'HULP-velden'!AM87 -> 67.5 | N73: =+'HULP-velden'!AN87 -> 77.5 | O73: =+'HULP-velden'!AO87 -> 87.5 | P73: =+'HULP-velden'!AP87 -> 97.5
H74: ='HULP-velden'!AE88 -> 434000 | J74: =+'HULP-velden'!AJ88 -> 37 | K74: =+'HULP-velden'!AK88 -> 47 | L74: =+'HULP-velden'!AL88 -> 57 | M74: =+'HULP-velden'!AM88 -> 67 | N74: =+'HULP-velden'!AN88 -> 77 | O74: =+'HULP-velden'!AO88 -> 87 | P74: =+'HULP-velden'!AP88 -> 97
H75: ='HULP-velden'!AE89 -> 433000 | J75: =+'HULP-velden'!AJ89 -> 36.5 | K75: =+'HULP-velden'!AK89 -> 46.5 | L75: =+'HULP-velden'!AL89 -> 56.5 | M75: =+'HULP-velden'!AM89 -> 66.5 | N75: =+'HULP-velden'!AN89 -> 76.5 | O75: =+'HULP-velden'!AO89 -> 86.5 | P75: =+'HULP-velden'!AP89 -> 96.5
H76: ='HULP-velden'!AE90 -> 432000 | J76: =+'HULP-velden'!AJ90 -> 36 | K76: =+'HULP-velden'!AK90 -> 46 | L76: =+'HULP-velden'!AL90 -> 56 | M76: =+'HULP-velden'!AM90 -> 66 | N76: =+'HULP-velden'!AN90 -> 76 | O76: =+'HULP-velden'!AO90 -> 86 | P76: =+'HULP-velden'!AP90 -> 96
H77: ='HULP-velden'!AE91 -> 431000 | J77: =+'HULP-velden'!AJ91 -> 35.5 | K77: =+'HULP-velden'!AK91 -> 45.5 | L77: =+'HULP-velden'!AL91 -> 55.5 | M77: =+'HULP-velden'!AM91 -> 65.5 | N77: =+'HULP-velden'!AN91 -> 75.5 | O77: =+'HULP-velden'!AO91 -> 85.5 | P77: =+'HULP-velden'!AP91 -> 95.5
H78: ='HULP-velden'!AE92 -> 430000 | J78: =+'HULP-velden'!AJ92 -> 35 | K78: =+'HULP-velden'!AK92 -> 45 | L78: =+'HULP-velden'!AL92 -> 55 | M78: =+'HULP-velden'!AM92 -> 65 | N78: =+'HULP-velden'!AN92 -> 75 | O78: =+'HULP-velden'!AO92 -> 85 | P78: =+'HULP-velden'!AP92 -> 95
H79: ='HULP-velden'!AE93 -> 429000 | J79: =+'HULP-velden'!AJ93 -> 34.5 | K79: =+'HULP-velden'!AK93 -> 44.5 | L79: =+'HULP-velden'!AL93 -> 54.5 | M79: =+'HULP-velden'!AM93 -> 64.5 | N79: =+'HULP-velden'!AN93 -> 74.5 | O79: =+'HULP-velden'!AO93 -> 84.5 | P79: =+'HULP-velden'!AP93 -> 94.5
H80: ='HULP-velden'!AE94 -> 428000 | J80: =+'HULP-velden'!AJ94 -> 34 | K80: =+'HULP-velden'!AK94 -> 44 | L80: =+'HULP-velden'!AL94 -> 54 | M80: =+'HULP-velden'!AM94 -> 64 | N80: =+'HULP-velden'!AN94 -> 74 | O80: =+'HULP-velden'!AO94 -> 84 | P80: =+'HULP-velden'!AP94 -> 94
H81: ='HULP-velden'!AE95 -> 427000 | J81: =+'HULP-velden'!AJ95 -> 33.5 | K81: =+'HULP-velden'!AK95 -> 43.5 | L81: =+'HULP-velden'!AL95 -> 53.5 | M81: =+'HULP-velden'!AM95 -> 63.5 | N81: =+'HULP-velden'!AN95 -> 73.5 | O81: =+'HULP-velden'!AO95 -> 83.5 | P81: =+'HULP-velden'!AP95 -> 93.5
H82: ='HULP-velden'!AE96 -> 426000 | J82: =+'HULP-velden'!AJ96 -> 33 | K82: =+'HULP-velden'!AK96 -> 43 | L82: =+'HULP-velden'!AL96 -> 53 | M82: =+'HULP-velden'!AM96 -> 63 | N82: =+'HULP-velden'!AN96 -> 73 | O82: =+'HULP-velden'!AO96 -> 83 | P82: =+'HULP-velden'!AP96 -> 93
H83: ='HULP-velden'!AE97 -> 425000 | J83: =+'HULP-velden'!AJ97 -> 32.5 | K83: =+'HULP-velden'!AK97 -> 42.5 | L83: =+'HULP-velden'!AL97 -> 52.5 | M83: =+'HULP-velden'!AM97 -> 62.5 | N83: =+'HULP-velden'!AN97 -> 72.5 | O83: =+'HULP-velden'!AO97 -> 82.5 | P83: =+'HULP-velden'!AP97 -> 92.5
H84: ='HULP-velden'!AE98 -> 424000 | J84: =+'HULP-velden'!AJ98 -> 32 | K84: =+'HULP-velden'!AK98 -> 42 | L84: =+'HULP-velden'!AL98 -> 52 | M84: =+'HULP-velden'!AM98 -> 62 | N84: =+'HULP-velden'!AN98 -> 72 | O84: =+'HULP-velden'!AO98 -> 82 | P84: =+'HULP-velden'!AP98 -> 92
H85: ='HULP-velden'!AE99 -> 423000 | J85: =+'HULP-velden'!AJ99 -> 31.5 | K85: =+'HULP-velden'!AK99 -> 41.5 | L85: =+'HULP-velden'!AL99 -> 51.5 | M85: =+'HULP-velden'!AM99 -> 61.5 | N85: =+'HULP-velden'!AN99 -> 71.5 | O85: =+'HULP-velden'!AO99 -> 81.5 | P85: =+'HULP-velden'!AP99 -> 91.5
H86: ='HULP-velden'!AE100 -> 422000 | J86: =+'HULP-velden'!AJ100 -> 31 | K86: =+'HULP-velden'!AK100 -> 41 | L86: =+'HULP-velden'!AL100 -> 51 | M86: =+'HULP-velden'!AM100 -> 61 | N86: =+'HULP-velden'!AN100 -> 71 | O86: =+'HULP-velden'!AO100 -> 81 | P86: =+'HULP-velden'!AP100 -> 91
H87: ='HULP-velden'!AE101 -> 421000 | J87: =+'HULP-velden'!AJ101 -> 30.5 | K87: =+'HULP-velden'!AK101 -> 40.5 | L87: =+'HULP-velden'!AL101 -> 50.5 | M87: =+'HULP-velden'!AM101 -> 60.5 | N87: =+'HULP-velden'!AN101 -> 70.5 | O87: =+'HULP-velden'!AO101 -> 80.5 | P87: =+'HULP-velden'!AP101 -> 90.5
H88: ='HULP-velden'!AE102 -> 420000 | J88: =+'HULP-velden'!AJ102 -> 30 | K88: =+'HULP-velden'!AK102 -> 40 | L88: =+'HULP-velden'!AL102 -> 50 | M88: =+'HULP-velden'!AM102 -> 60 | N88: =+'HULP-velden'!AN102 -> 70 | O88: =+'HULP-velden'!AO102 -> 80 | P88: =+'HULP-velden'!AP102 -> 90
H89: ='HULP-velden'!AE103 -> 419000 | J89: =+'HULP-velden'!AJ103 -> 29.5 | K89: =+'HULP-velden'!AK103 -> 39.5 | L89: =+'HULP-velden'!AL103 -> 49.5 | M89: =+'HULP-velden'!AM103 -> 59.5 | N89: =+'HULP-velden'!AN103 -> 69.5 | O89: =+'HULP-velden'!AO103 -> 79.5 | P89: =+'HULP-velden'!AP103 -> 89.5
H90: ='HULP-velden'!AE104 -> 418000 | J90: =+'HULP-velden'!AJ104 -> 29 | K90: =+'HULP-velden'!AK104 -> 39 | L90: =+'HULP-velden'!AL104 -> 49 | M90: =+'HULP-velden'!AM104 -> 59 | N90: =+'HULP-velden'!AN104 -> 69 | O90: =+'HULP-velden'!AO104 -> 79 | P90: =+'HULP-velden'!AP104 -> 89
H91: ='HULP-velden'!AE105 -> 417000 | J91: =+'HULP-velden'!AJ105 -> 28.5 | K91: =+'HULP-velden'!AK105 -> 38.5 | L91: =+'HULP-velden'!AL105 -> 48.5 | M91: =+'HULP-velden'!AM105 -> 58.5 | N91: =+'HULP-velden'!AN105 -> 68.5 | O91: =+'HULP-velden'!AO105 -> 78.5 | P91: =+'HULP-velden'!AP105 -> 88.5
H92: ='HULP-velden'!AE106 -> 416000 | J92: =+'HULP-velden'!AJ106 -> 28 | K92: =+'HULP-velden'!AK106 -> 38 | L92: =+'HULP-velden'!AL106 -> 48 | M92: =+'HULP-velden'!AM106 -> 58 | N92: =+'HULP-velden'!AN106 -> 68 | O92: =+'HULP-velden'!AO106 -> 78 | P92: =+'HULP-velden'!AP106 -> 88
H93: ='HULP-velden'!AE107 -> 415000 | J93: =+'HULP-velden'!AJ107 -> 27.5 | K93: =+'HULP-velden'!AK107 -> 37.5 | L93: =+'HULP-velden'!AL107 -> 47.5 | M93: =+'HULP-velden'!AM107 -> 57.5 | N93: =+'HULP-velden'!AN107 -> 67.5 | O93: =+'HULP-velden'!AO107 -> 77.5 | P93: =+'HULP-velden'!AP107 -> 87.5
H94: ='HULP-velden'!AE108 -> 414000 | J94: =+'HULP-velden'!AJ108 -> 27 | K94: =+'HULP-velden'!AK108 -> 37 | L94: =+'HULP-velden'!AL108 -> 47 | M94: =+'HULP-velden'!AM108 -> 57 | N94: =+'HULP-velden'!AN108 -> 67 | O94: =+'HULP-velden'!AO108 -> 77 | P94: =+'HULP-velden'!AP108 -> 87
H95: ='HULP-velden'!AE109 -> 413000 | J95: =+'HULP-velden'!AJ109 -> 26.5 | K95: =+'HULP-velden'!AK109 -> 36.5 | L95: =+'HULP-velden'!AL109 -> 46.5 | M95: =+'HULP-velden'!AM109 -> 56.5 | N95: =+'HULP-velden'!AN109 -> 66.5 | O95: =+'HULP-velden'!AO109 -> 76.5 | P95: =+'HULP-velden'!AP109 -> 86.5
H96: ='HULP-velden'!AE110 -> 412000 | J96: =+'HULP-velden'!AJ110 -> 26 | K96: =+'HULP-velden'!AK110 -> 36 | L96: =+'HULP-velden'!AL110 -> 46 | M96: =+'HULP-velden'!AM110 -> 56 | N96: =+'HULP-velden'!AN110 -> 66 | O96: =+'HULP-velden'!AO110 -> 76 | P96: =+'HULP-velden'!AP110 -> 86
H97: ='HULP-velden'!AE111 -> 411000 | J97: =+'HULP-velden'!AJ111 -> 25.5 | K97: =+'HULP-velden'!AK111 -> 35.5 | L97: =+'HULP-velden'!AL111 -> 45.5 | M97: =+'HULP-velden'!AM111 -> 55.5 | N97: =+'HULP-velden'!AN111 -> 65.5 | O97: =+'HULP-velden'!AO111 -> 75.5 | P97: =+'HULP-velden'!AP111 -> 85.5
H98: ='HULP-velden'!AE112 -> 410000 | J98: =+'HULP-velden'!AJ112 -> 25 | K98: =+'HULP-velden'!AK112 -> 35 | L98: =+'HULP-velden'!AL112 -> 45 | M98: =+'HULP-velden'!AM112 -> 55 | N98: =+'HULP-velden'!AN112 -> 65 | O98: =+'HULP-velden'!AO112 -> 75 | P98: =+'HULP-velden'!AP112 -> 85
H99: ='HULP-velden'!AE113 -> 409000 | J99: =+'HULP-velden'!AJ113 -> 24.5 | K99: =+'HULP-velden'!AK113 -> 34.5 | L99: =+'HULP-velden'!AL113 -> 44.5 | M99: =+'HULP-velden'!AM113 -> 54.5 | N99: =+'HULP-velden'!AN113 -> 64.5 | O99: =+'HULP-velden'!AO113 -> 74.5 | P99: =+'HULP-velden'!AP113 -> 84.5
H100: ='HULP-velden'!AE114 -> 408000 | J100: =+'HULP-velden'!AJ114 -> 24 | K100: =+'HULP-velden'!AK114 -> 34 | L100: =+'HULP-velden'!AL114 -> 44 | M100: =+'HULP-velden'!AM114 -> 54 | N100: =+'HULP-velden'!AN114 -> 64 | O100: =+'HULP-velden'!AO114 -> 74 | P100: =+'HULP-velden'!AP114 -> 84
H101: ='HULP-velden'!AE115 -> 407000 | J101: =+'HULP-velden'!AJ115 -> 23.5 | K101: =+'HULP-velden'!AK115 -> 33.5 | L101: =+'HULP-velden'!AL115 -> 43.5 | M101: =+'HULP-velden'!AM115 -> 53.5 | N101: =+'HULP-velden'!AN115 -> 63.5 | O101: =+'HULP-velden'!AO115 -> 73.5 | P101: =+'HULP-velden'!AP115 -> 83.5
H102: ='HULP-velden'!AE116 -> 406000 | J102: =+'HULP-velden'!AJ116 -> 23 | K102: =+'HULP-velden'!AK116 -> 33 | L102: =+'HULP-velden'!AL116 -> 43 | M102: =+'HULP-velden'!AM116 -> 53 | N102: =+'HULP-velden'!AN116 -> 63 | O102: =+'HULP-velden'!AO116 -> 73 | P102: =+'HULP-velden'!AP116 -> 83
H103: ='HULP-velden'!AE117 -> 405000 | J103: =+'HULP-velden'!AJ117 -> 22.5 | K103: =+'HULP-velden'!AK117 -> 32.5 | L103: =+'HULP-velden'!AL117 -> 42.5 | M103: =+'HULP-velden'!AM117 -> 52.5 | N103: =+'HULP-velden'!AN117 -> 62.5 | O103: =+'HULP-velden'!AO117 -> 72.5 | P103: =+'HULP-velden'!AP117 -> 82.5
H104: ='HULP-velden'!AE118 -> 404000 | J104: =+'HULP-velden'!AJ118 -> 22 | K104: =+'HULP-velden'!AK118 -> 32 | L104: =+'HULP-velden'!AL118 -> 42 | M104: =+'HULP-velden'!AM118 -> 52 | N104: =+'HULP-velden'!AN118 -> 62 | O104: =+'HULP-velden'!AO118 -> 72 | P104: =+'HULP-velden'!AP118 -> 82
H105: ='HULP-velden'!AE119 -> 403000 | J105: =+'HULP-velden'!AJ119 -> 21.5 | K105: =+'HULP-velden'!AK119 -> 31.5 | L105: =+'HULP-velden'!AL119 -> 41.5 | M105: =+'HULP-velden'!AM119 -> 51.5 | N105: =+'HULP-velden'!AN119 -> 61.5 | O105: =+'HULP-velden'!AO119 -> 71.5 | P105: =+'HULP-velden'!AP119 -> 81.5
H106: ='HULP-velden'!AE120 -> 402000 | J106: =+'HULP-velden'!AJ120 -> 21 | K106: =+'HULP-velden'!AK120 -> 31 | L106: =+'HULP-velden'!AL120 -> 41 | M106: =+'HULP-velden'!AM120 -> 51 | N106: =+'HULP-velden'!AN120 -> 61 | O106: =+'HULP-velden'!AO120 -> 71 | P106: =+'HULP-velden'!AP120 -> 81
H107: ='HULP-velden'!AE121 -> 401000 | J107: =+'HULP-velden'!AJ121 -> 20.5 | K107: =+'HULP-velden'!AK121 -> 30.5 | L107: =+'HULP-velden'!AL121 -> 40.5 | M107: =+'HULP-velden'!AM121 -> 50.5 | N107: =+'HULP-velden'!AN121 -> 60.5 | O107: =+'HULP-velden'!AO121 -> 70.5 | P107: =+'HULP-velden'!AP121 -> 80.5
H108: ='HULP-velden'!AE122 -> 400000 | J108: =+'HULP-velden'!AJ122 -> 20 | K108: =+'HULP-velden'!AK122 -> 30 | L108: =+'HULP-velden'!AL122 -> 40 | M108: =+'HULP-velden'!AM122 -> 50 | N108: =+'HULP-velden'!AN122 -> 60 | O108: =+'HULP-velden'!AO122 -> 70 | P108: =+'HULP-velden'!AP122 -> 80
H109: ='HULP-velden'!AE123 -> 399000 | J109: =+'HULP-velden'!AJ123 -> 19.5 | K109: =+'HULP-velden'!AK123 -> 29.5 | L109: =+'HULP-velden'!AL123 -> 39.5 | M109: =+'HULP-velden'!AM123 -> 49.5 | N109: =+'HULP-velden'!AN123 -> 59.5 | O109: =+'HULP-velden'!AO123 -> 69.5 | P109: =+'HULP-velden'!AP123 -> 79.5
H110: ='HULP-velden'!AE124 -> 398000 | J110: =+'HULP-velden'!AJ124 -> 19 | K110: =+'HULP-velden'!AK124 -> 29 | L110: =+'HULP-velden'!AL124 -> 39 | M110: =+'HULP-velden'!AM124 -> 49 | N110: =+'HULP-velden'!AN124 -> 59 | O110: =+'HULP-velden'!AO124 -> 69 | P110: =+'HULP-velden'!AP124 -> 79
H111: ='HULP-velden'!AE125 -> 397000 | J111: =+'HULP-velden'!AJ125 -> 18.5 | K111: =+'HULP-velden'!AK125 -> 28.5 | L111: =+'HULP-velden'!AL125 -> 38.5 | M111: =+'HULP-velden'!AM125 -> 48.5 | N111: =+'HULP-velden'!AN125 -> 58.5 | O111: =+'HULP-velden'!AO125 -> 68.5 | P111: =+'HULP-velden'!AP125 -> 78.5
H112: ='HULP-velden'!AE126 -> 396000 | J112: =+'HULP-velden'!AJ126 -> 18 | K112: =+'HULP-velden'!AK126 -> 28 | L112: =+'HULP-velden'!AL126 -> 38 | M112: =+'HULP-velden'!AM126 -> 48 | N112: =+'HULP-velden'!AN126 -> 58 | O112: =+'HULP-velden'!AO126 -> 68 | P112: =+'HULP-velden'!AP126 -> 78
H113: ='HULP-velden'!AE127 -> 395000 | J113: =+'HULP-velden'!AJ127 -> 17.5 | K113: =+'HULP-velden'!AK127 -> 27.5 | L113: =+'HULP-velden'!AL127 -> 37.5 | M113: =+'HULP-velden'!AM127 -> 47.5 | N113: =+'HULP-velden'!AN127 -> 57.5 | O113: =+'HULP-velden'!AO127 -> 67.5 | P113: =+'HULP-velden'!AP127 -> 77.5
H114: ='HULP-velden'!AE128 -> 394000 | J114: =+'HULP-velden'!AJ128 -> 17 | K114: =+'HULP-velden'!AK128 -> 27 | L114: =+'HULP-velden'!AL128 -> 37 | M114: =+'HULP-velden'!AM128 -> 47 | N114: =+'HULP-velden'!AN128 -> 57 | O114: =+'HULP-velden'!AO128 -> 67 | P114: =+'HULP-velden'!AP128 -> 77
H115: ='HULP-velden'!AE129 -> 393000 | J115: =+'HULP-velden'!AJ129 -> 16.5 | K115: =+'HULP-velden'!AK129 -> 26.5 | L115: =+'HULP-velden'!AL129 -> 36.5 | M115: =+'HULP-velden'!AM129 -> 46.5 | N115: =+'HULP-velden'!AN129 -> 56.5 | O115: =+'HULP-velden'!AO129 -> 66.5 | P115: =+'HULP-velden'!AP129 -> 76.5
H116: ='HULP-velden'!AE130 -> 392000 | J116: =+'HULP-velden'!AJ130 -> 16 | K116: =+'HULP-velden'!AK130 -> 26 | L116: =+'HULP-velden'!AL130 -> 36 | M116: =+'HULP-velden'!AM130 -> 46 | N116: =+'HULP-velden'!AN130 -> 56 | O116: =+'HULP-velden'!AO130 -> 66 | P116: =+'HULP-velden'!AP130 -> 76
H117: ='HULP-velden'!AE131 -> 391000 | J117: =+'HULP-velden'!AJ131 -> 15.5 | K117: =+'HULP-velden'!AK131 -> 25.5 | L117: =+'HULP-velden'!AL131 -> 35.5 | M117: =+'HULP-velden'!AM131 -> 45.5 | N117: =+'HULP-velden'!AN131 -> 55.5 | O117: =+'HULP-velden'!AO131 -> 65.5 | P117: =+'HULP-velden'!AP131 -> 75.5
H118: ='HULP-velden'!AE132 -> 390000 | J118: =+'HULP-velden'!AJ132 -> 15 | K118: =+'HULP-velden'!AK132 -> 25 | L118: =+'HULP-velden'!AL132 -> 35 | M118: =+'HULP-velden'!AM132 -> 45 | N118: =+'HULP-velden'!AN132 -> 55 | O118: =+'HULP-velden'!AO132 -> 65 | P118: =+'HULP-velden'!AP132 -> 75
H119: ='HULP-velden'!AE133 -> 389000 | J119: =+'HULP-velden'!AJ133 -> 14.5 | K119: =+'HULP-velden'!AK133 -> 24.5 | L119: =+'HULP-velden'!AL133 -> 34.5 | M119: =+'HULP-velden'!AM133 -> 44.5 | N119: =+'HULP-velden'!AN133 -> 54.5 | O119: =+'HULP-velden'!AO133 -> 64.5 | P119: =+'HULP-velden'!AP133 -> 74.5
H120: ='HULP-velden'!AE134 -> 388000 | J120: =+'HULP-velden'!AJ134 -> 14 | K120: =+'HULP-velden'!AK134 -> 24 | L120: =+'HULP-velden'!AL134 -> 34 | M120: =+'HULP-velden'!AM134 -> 44 | N120: =+'HULP-velden'!AN134 -> 54 | O120: =+'HULP-velden'!AO134 -> 64 | P120: =+'HULP-velden'!AP134 -> 74
H121: ='HULP-velden'!AE135 -> 387000 | J121: =+'HULP-velden'!AJ135 -> 13.5 | K121: =+'HULP-velden'!AK135 -> 23.5 | L121: =+'HULP-velden'!AL135 -> 33.5 | M121: =+'HULP-velden'!AM135 -> 43.5 | N121: =+'HULP-velden'!AN135 -> 53.5 | O121: =+'HULP-velden'!AO135 -> 63.5 | P121: =+'HULP-velden'!AP135 -> 73.5
H122: ='HULP-velden'!AE136 -> 386000 | J122: =+'HULP-velden'!AJ136 -> 13 | K122: =+'HULP-velden'!AK136 -> 23 | L122: =+'HULP-velden'!AL136 -> 33 | M122: =+'HULP-velden'!AM136 -> 43 | N122: =+'HULP-velden'!AN136 -> 53 | O122: =+'HULP-velden'!AO136 -> 63 | P122: =+'HULP-velden'!AP136 -> 73
H123: ='HULP-velden'!AE137 -> 385000 | J123: =+'HULP-velden'!AJ137 -> 12.5 | K123: =+'HULP-velden'!AK137 -> 22.5 | L123: =+'HULP-velden'!AL137 -> 32.5 | M123: =+'HULP-velden'!AM137 -> 42.5 | N123: =+'HULP-velden'!AN137 -> 52.5 | O123: =+'HULP-velden'!AO137 -> 62.5 | P123: =+'HULP-velden'!AP137 -> 72.5
H124: ='HULP-velden'!AE138 -> 384000 | J124: =+'HULP-velden'!AJ138 -> 12 | K124: =+'HULP-velden'!AK138 -> 22 | L124: =+'HULP-velden'!AL138 -> 32 | M124: =+'HULP-velden'!AM138 -> 42 | N124: =+'HULP-velden'!AN138 -> 52 | O124: =+'HULP-velden'!AO138 -> 62 | P124: =+'HULP-velden'!AP138 -> 72
H125: ='HULP-velden'!AE139 -> 383000 | J125: =+'HULP-velden'!AJ139 -> 11.5 | K125: =+'HULP-velden'!AK139 -> 21.5 | L125: =+'HULP-velden'!AL139 -> 31.5 | M125: =+'HULP-velden'!AM139 -> 41.5 | N125: =+'HULP-velden'!AN139 -> 51.5 | O125: =+'HULP-velden'!AO139 -> 61.5 | P125: =+'HULP-velden'!AP139 -> 71.5
H126: ='HULP-velden'!AE140 -> 382000 | J126: =+'HULP-velden'!AJ140 -> 11 | K126: =+'HULP-velden'!AK140 -> 21 | L126: =+'HULP-velden'!AL140 -> 31 | M126: =+'HULP-velden'!AM140 -> 41 | N126: =+'HULP-velden'!AN140 -> 51 | O126: =+'HULP-velden'!AO140 -> 61 | P126: =+'HULP-velden'!AP140 -> 71
H127: ='HULP-velden'!AE141 -> 381000 | J127: =+'HULP-velden'!AJ141 -> 10.5 | K127: =+'HULP-velden'!AK141 -> 20.5 | L127: =+'HULP-velden'!AL141 -> 30.5 | M127: =+'HULP-velden'!AM141 -> 40.5 | N127: =+'HULP-velden'!AN141 -> 50.5 | O127: =+'HULP-velden'!AO141 -> 60.5 | P127: =+'HULP-velden'!AP141 -> 70.5
H128: ='HULP-velden'!AE142 -> 380000 | J128: =+'HULP-velden'!AJ142 -> 10 | K128: =+'HULP-velden'!AK142 -> 20 | L128: =+'HULP-velden'!AL142 -> 30 | M128: =+'HULP-velden'!AM142 -> 40 | N128: =+'HULP-velden'!AN142 -> 50 | O128: =+'HULP-velden'!AO142 -> 60 | P128: =+'HULP-velden'!AP142 -> 70
H129: ='HULP-velden'!AE143 -> 379000 | J129: =+'HULP-velden'!AJ143 -> 9.5 | K129: =+'HULP-velden'!AK143 -> 19.5 | L129: =+'HULP-velden'!AL143 -> 29.5 | M129: =+'HULP-velden'!AM143 -> 39.5 | N129: =+'HULP-velden'!AN143 -> 49.5 | O129: =+'HULP-velden'!AO143 -> 59.5 | P129: =+'HULP-velden'!AP143 -> 69.5
H130: ='HULP-velden'!AE144 -> 378000 | J130: =+'HULP-velden'!AJ144 -> 9 | K130: =+'HULP-velden'!AK144 -> 19 | L130: =+'HULP-velden'!AL144 -> 29 | M130: =+'HULP-velden'!AM144 -> 39 | N130: =+'HULP-velden'!AN144 -> 49 | O130: =+'HULP-velden'!AO144 -> 59 | P130: =+'HULP-velden'!AP144 -> 69
H131: ='HULP-velden'!AE145 -> 377000 | J131: =+'HULP-velden'!AJ145 -> 8.5 | K131: =+'HULP-velden'!AK145 -> 18.5 | L131: =+'HULP-velden'!AL145 -> 28.5 | M131: =+'HULP-velden'!AM145 -> 38.5 | N131: =+'HULP-velden'!AN145 -> 48.5 | O131: =+'HULP-velden'!AO145 -> 58.5 | P131: =+'HULP-velden'!AP145 -> 68.5
H132: ='HULP-velden'!AE146 -> 376000 | J132: =+'HULP-velden'!AJ146 -> 8 | K132: =+'HULP-velden'!AK146 -> 18 | L132: =+'HULP-velden'!AL146 -> 28 | M132: =+'HULP-velden'!AM146 -> 38 | N132: =+'HULP-velden'!AN146 -> 48 | O132: =+'HULP-velden'!AO146 -> 58 | P132: =+'HULP-velden'!AP146 -> 68
H133: ='HULP-velden'!AE147 -> 375000 | J133: =+'HULP-velden'!AJ147 -> 7.5 | K133: =+'HULP-velden'!AK147 -> 17.5 | L133: =+'HULP-velden'!AL147 -> 27.5 | M133: =+'HULP-velden'!AM147 -> 37.5 | N133: =+'HULP-velden'!AN147 -> 47.5 | O133: =+'HULP-velden'!AO147 -> 57.5 | P133: =+'HULP-velden'!AP147 -> 67.5
H134: ='HULP-velden'!AE148 -> 374000 | J134: =+'HULP-velden'!AJ148 -> 7 | K134: =+'HULP-velden'!AK148 -> 17 | L134: =+'HULP-velden'!AL148 -> 27 | M134: =+'HULP-velden'!AM148 -> 37 | N134: =+'HULP-velden'!AN148 -> 47 | O134: =+'HULP-velden'!AO148 -> 57 | P134: =+'HULP-velden'!AP148 -> 67
H135: ='HULP-velden'!AE149 -> 373000 | J135: =+'HULP-velden'!AJ149 -> 6.5 | K135: =+'HULP-velden'!AK149 -> 16.5 | L135: =+'HULP-velden'!AL149 -> 26.5 | M135: =+'HULP-velden'!AM149 -> 36.5 | N135: =+'HULP-velden'!AN149 -> 46.5 | O135: =+'HULP-velden'!AO149 -> 56.5 | P135: =+'HULP-velden'!AP149 -> 66.5
H136: ='HULP-velden'!AE150 -> 372000 | J136: =+'HULP-velden'!AJ150 -> 6 | K136: =+'HULP-velden'!AK150 -> 16 | L136: =+'HULP-velden'!AL150 -> 26 | M136: =+'HULP-velden'!AM150 -> 36 | N136: =+'HULP-velden'!AN150 -> 46 | O136: =+'HULP-velden'!AO150 -> 56 | P136: =+'HULP-velden'!AP150 -> 66
H137: ='HULP-velden'!AE151 -> 371000 | J137: =+'HULP-velden'!AJ151 -> 5.5 | K137: =+'HULP-velden'!AK151 -> 15.5 | L137: =+'HULP-velden'!AL151 -> 25.5 | M137: =+'HULP-velden'!AM151 -> 35.5 | N137: =+'HULP-velden'!AN151 -> 45.5 | O137: =+'HULP-velden'!AO151 -> 55.5 | P137: =+'HULP-velden'!AP151 -> 65.5
H138: ='HULP-velden'!AE152 -> 370000 | J138: =+'HULP-velden'!AJ152 -> 5 | K138: =+'HULP-velden'!AK152 -> 15 | L138: =+'HULP-velden'!AL152 -> 25 | M138: =+'HULP-velden'!AM152 -> 35 | N138: =+'HULP-velden'!AN152 -> 45 | O138: =+'HULP-velden'!AO152 -> 55 | P138: =+'HULP-velden'!AP152 -> 65
H139: ='HULP-velden'!AE153 -> 369000 | J139: =+'HULP-velden'!AJ153 -> 4.5 | K139: =+'HULP-velden'!AK153 -> 14.5 | L139: =+'HULP-velden'!AL153 -> 24.5 | M139: =+'HULP-velden'!AM153 -> 34.5 | N139: =+'HULP-velden'!AN153 -> 44.5 | O139: =+'HULP-velden'!AO153 -> 54.5 | P139: =+'HULP-velden'!AP153 -> 64.5
H140: ='HULP-velden'!AE154 -> 368000 | J140: =+'HULP-velden'!AJ154 -> 4 | K140: =+'HULP-velden'!AK154 -> 14 | L140: =+'HULP-velden'!AL154 -> 24 | M140: =+'HULP-velden'!AM154 -> 34 | N140: =+'HULP-velden'!AN154 -> 44 | O140: =+'HULP-velden'!AO154 -> 54 | P140: =+'HULP-velden'!AP154 -> 64
H141: ='HULP-velden'!AE155 -> 367000 | J141: =+'HULP-velden'!AJ155 -> 3.5 | K141: =+'HULP-velden'!AK155 -> 13.5 | L141: =+'HULP-velden'!AL155 -> 23.5 | M141: =+'HULP-velden'!AM155 -> 33.5 | N141: =+'HULP-velden'!AN155 -> 43.5 | O141: =+'HULP-velden'!AO155 -> 53.5 | P141: =+'HULP-velden'!AP155 -> 63.5
H142: ='HULP-velden'!AE156 -> 366000 | J142: =+'HULP-velden'!AJ156 -> 3 | K142: =+'HULP-velden'!AK156 -> 13 | L142: =+'HULP-velden'!AL156 -> 23 | M142: =+'HULP-velden'!AM156 -> 33 | N142: =+'HULP-velden'!AN156 -> 43 | O142: =+'HULP-velden'!AO156 -> 53 | P142: =+'HULP-velden'!AP156 -> 63
H143: ='HULP-velden'!AE157 -> 365000 | J143: =+'HULP-velden'!AJ157 -> 2.5 | K143: =+'HULP-velden'!AK157 -> 12.5 | L143: =+'HULP-velden'!AL157 -> 22.5 | M143: =+'HULP-velden'!AM157 -> 32.5 | N143: =+'HULP-velden'!AN157 -> 42.5 | O143: =+'HULP-velden'!AO157 -> 52.5 | P143: =+'HULP-velden'!AP157 -> 62.5
H144: ='HULP-velden'!AE158 -> 364000 | J144: =+'HULP-velden'!AJ158 -> 2 | K144: =+'HULP-velden'!AK158 -> 12 | L144: =+'HULP-velden'!AL158 -> 22 | M144: =+'HULP-velden'!AM158 -> 32 | N144: =+'HULP-velden'!AN158 -> 42 | O144: =+'HULP-velden'!AO158 -> 52 | P144: =+'HULP-velden'!AP158 -> 62
H145: ='HULP-velden'!AE159 -> 363000 | J145: =+'HULP-velden'!AJ159 -> 1.5 | K145: =+'HULP-velden'!AK159 -> 11.5 | L145: =+'HULP-velden'!AL159 -> 21.5 | M145: =+'HULP-velden'!AM159 -> 31.5 | N145: =+'HULP-velden'!AN159 -> 41.5 | O145: =+'HULP-velden'!AO159 -> 51.5 | P145: =+'HULP-velden'!AP159 -> 61.5
H146: ='HULP-velden'!AE160 -> 362000 | J146: =+'HULP-velden'!AJ160 -> 1 | K146: =+'HULP-velden'!AK160 -> 11 | L146: =+'HULP-velden'!AL160 -> 21 | M146: =+'HULP-velden'!AM160 -> 31 | N146: =+'HULP-velden'!AN160 -> 41 | O146: =+'HULP-velden'!AO160 -> 51 | P146: =+'HULP-velden'!AP160 -> 61
H147: ='HULP-velden'!AE161 -> 361000 | J147: =+'HULP-velden'!AJ161 -> 0.5 | K147: =+'HULP-velden'!AK161 -> 10.5 | L147: =+'HULP-velden'!AL161 -> 20.5 | M147: =+'HULP-velden'!AM161 -> 30.5 | N147: =+'HULP-velden'!AN161 -> 40.5 | O147: =+'HULP-velden'!AO161 -> 50.5 | P147: =+'HULP-velden'!AP161 -> 60.5
H148: ='HULP-velden'!AE162 -> 360000 | J148: =+'HULP-velden'!AJ162 -> 0 | K148: =+'HULP-velden'!AK162 -> 10 | L148: =+'HULP-velden'!AL162 -> 20 | M148: =+'HULP-velden'!AM162 -> 30 | N148: =+'HULP-velden'!AN162 -> 40 | O148: =+'HULP-velden'!AO162 -> 50 | P148: =+'HULP-velden'!AP162 -> 60
H149: ='HULP-velden'!AE163 -> 359000 | J149: =+'HULP-velden'!AJ163 -> -0.5 | K149: =+'HULP-velden'!AK163 -> 9.5 | L149: =+'HULP-velden'!AL163 -> 19.5 | M149: =+'HULP-velden'!AM163 -> 29.5 | N149: =+'HULP-velden'!AN163 -> 39.5 | O149: =+'HULP-velden'!AO163 -> 49.5 | P149: =+'HULP-velden'!AP163 -> 59.5
H150: ='HULP-velden'!AE164 -> 358000 | J150: =+'HULP-velden'!AJ164 -> -1 | K150: =+'HULP-velden'!AK164 -> 9 | L150: =+'HULP-velden'!AL164 -> 19 | M150: =+'HULP-velden'!AM164 -> 29 | N150: =+'HULP-velden'!AN164 -> 39 | O150: =+'HULP-velden'!AO164 -> 49 | P150: =+'HULP-velden'!AP164 -> 59
H151: ='HULP-velden'!AE165 -> 357000 | J151: =+'HULP-velden'!AJ165 -> -1.5 | K151: =+'HULP-velden'!AK165 -> 8.5 | L151: =+'HULP-velden'!AL165 -> 18.5 | M151: =+'HULP-velden'!AM165 -> 28.5 | N151: =+'HULP-velden'!AN165 -> 38.5 | O151: =+'HULP-velden'!AO165 -> 48.5 | P151: =+'HULP-velden'!AP165 -> 58.5
H152: ='HULP-velden'!AE167 -> 356000 | J152: =+'HULP-velden'!AJ167 -> -2 | K152: =+'HULP-velden'!AK167 -> 8 | L152: =+'HULP-velden'!AL167 -> 18 | M152: =+'HULP-velden'!AM167 -> 28 | N152: =+'HULP-velden'!AN167 -> 38 | O152: =+'HULP-velden'!AO167 -> 48 | P152: =+'HULP-velden'!AP167 -> 58
H153: ='HULP-velden'!AE168 -> 355000 | J153: =+'HULP-velden'!AJ168 -> -2.5 | K153: =+'HULP-velden'!AK168 -> 7.5 | L153: =+'HULP-velden'!AL168 -> 17.5 | M153: =+'HULP-velden'!AM168 -> 27.5 | N153: =+'HULP-velden'!AN168 -> 37.5 | O153: =+'HULP-velden'!AO168 -> 47.5 | P153: =+'HULP-velden'!AP168 -> 57.5
H154: ='HULP-velden'!AE169 -> 354000 | J154: =+'HULP-velden'!AJ169 -> -3 | K154: =+'HULP-velden'!AK169 -> 7 | L154: =+'HULP-velden'!AL169 -> 17 | M154: =+'HULP-velden'!AM169 -> 27 | N154: =+'HULP-velden'!AN169 -> 37 | O154: =+'HULP-velden'!AO169 -> 47 | P154: =+'HULP-velden'!AP169 -> 57
H155: ='HULP-velden'!AE170 -> 353000 | J155: =+'HULP-velden'!AJ170 -> -3.5 | K155: =+'HULP-velden'!AK170 -> 6.5 | L155: =+'HULP-velden'!AL170 -> 16.5 | M155: =+'HULP-velden'!AM170 -> 26.5 | N155: =+'HULP-velden'!AN170 -> 36.5 | O155: =+'HULP-velden'!AO170 -> 46.5 | P155: =+'HULP-velden'!AP170 -> 56.5
H156: ='HULP-velden'!AE171 -> 352000 | J156: =+'HULP-velden'!AJ171 -> -4 | K156: =+'HULP-velden'!AK171 -> 6 | L156: =+'HULP-velden'!AL171 -> 16 | M156: =+'HULP-velden'!AM171 -> 26 | N156: =+'HULP-velden'!AN171 -> 36 | O156: =+'HULP-velden'!AO171 -> 46 | P156: =+'HULP-velden'!AP171 -> 56
H157: ='HULP-velden'!AE172 -> 351000 | J157: =+'HULP-velden'!AJ172 -> -4.5 | K157: =+'HULP-velden'!AK172 -> 5.5 | L157: =+'HULP-velden'!AL172 -> 15.5 | M157: =+'HULP-velden'!AM172 -> 25.5 | N157: =+'HULP-velden'!AN172 -> 35.5 | O157: =+'HULP-velden'!AO172 -> 45.5 | P157: =+'HULP-velden'!AP172 -> 55.5
H158: ='HULP-velden'!AE173 -> 350000 | J158: =+'HULP-velden'!AJ173 -> -5 | K158: =+'HULP-velden'!AK173 -> 5 | L158: =+'HULP-velden'!AL173 -> 15 | M158: =+'HULP-velden'!AM173 -> 25 | N158: =+'HULP-velden'!AN173 -> 35 | O158: =+'HULP-velden'!AO173 -> 45 | P158: =+'HULP-velden'!AP173 -> 55
H159: ='HULP-velden'!AE174 -> 349000 | J159: =+'HULP-velden'!AJ174 -> -5.5 | K159: =+'HULP-velden'!AK174 -> 4.5 | L159: =+'HULP-velden'!AL174 -> 14.5 | M159: =+'HULP-velden'!AM174 -> 24.5 | N159: =+'HULP-velden'!AN174 -> 34.5 | O159: =+'HULP-velden'!AO174 -> 44.5 | P159: =+'HULP-velden'!AP174 -> 54.5
H160: ='HULP-velden'!AE175 -> 348000 | J160: =+'HULP-velden'!AJ175 -> -6 | K160: =+'HULP-velden'!AK175 -> 4 | L160: =+'HULP-velden'!AL175 -> 14 | M160: =+'HULP-velden'!AM175 -> 24 | N160: =+'HULP-velden'!AN175 -> 34 | O160: =+'HULP-velden'!AO175 -> 44 | P160: =+'HULP-velden'!AP175 -> 54
H161: ='HULP-velden'!AE176 -> 347000 | J161: =+'HULP-velden'!AJ176 -> -6.5 | K161: =+'HULP-velden'!AK176 -> 3.5 | L161: =+'HULP-velden'!AL176 -> 13.5 | M161: =+'HULP-velden'!AM176 -> 23.5 | N161: =+'HULP-velden'!AN176 -> 33.5 | O161: =+'HULP-velden'!AO176 -> 43.5 | P161: =+'HULP-velden'!AP176 -> 53.5
H162: ='HULP-velden'!AE177 -> 346000 | J162: =+'HULP-velden'!AJ177 -> -7 | K162: =+'HULP-velden'!AK177 -> 3 | L162: =+'HULP-velden'!AL177 -> 13 | M162: =+'HULP-velden'!AM177 -> 23 | N162: =+'HULP-velden'!AN177 -> 33 | O162: =+'HULP-velden'!AO177 -> 43 | P162: =+'HULP-velden'!AP177 -> 53
H163: ='HULP-velden'!AE178 -> 345000 | J163: =+'HULP-velden'!AJ178 -> -7.5 | K163: =+'HULP-velden'!AK178 -> 2.5 | L163: =+'HULP-velden'!AL178 -> 12.5 | M163: =+'HULP-velden'!AM178 -> 22.5 | N163: =+'HULP-velden'!AN178 -> 32.5 | O163: =+'HULP-velden'!AO178 -> 42.5 | P163: =+'HULP-velden'!AP178 -> 52.5
H164: ='HULP-velden'!AE179 -> 344000 | J164: =+'HULP-velden'!AJ179 -> -8 | K164: =+'HULP-velden'!AK179 -> 2 | L164: =+'HULP-velden'!AL179 -> 12 | M164: =+'HULP-velden'!AM179 -> 22 | N164: =+'HULP-velden'!AN179 -> 32 | O164: =+'HULP-velden'!AO179 -> 42 | P164: =+'HULP-velden'!AP179 -> 52
H165: ='HULP-velden'!AE180 -> 343000 | J165: =+'HULP-velden'!AJ180 -> -8.5 | K165: =+'HULP-velden'!AK180 -> 1.5 | L165: =+'HULP-velden'!AL180 -> 11.5 | M165: =+'HULP-velden'!AM180 -> 21.5 | N165: =+'HULP-velden'!AN180 -> 31.5 | O165: =+'HULP-velden'!AO180 -> 41.5 | P165: =+'HULP-velden'!AP180 -> 51.5
H166: ='HULP-velden'!AE181 -> 342000 | J166: =+'HULP-velden'!AJ181 -> -9 | K166: =+'HULP-velden'!AK181 -> 1 | L166: =+'HULP-velden'!AL181 -> 11 | M166: =+'HULP-velden'!AM181 -> 21 | N166: =+'HULP-velden'!AN181 -> 31 | O166: =+'HULP-velden'!AO181 -> 41 | P166: =+'HULP-velden'!AP181 -> 51
H167: ='HULP-velden'!AE182 -> 341000 | J167: =+'HULP-velden'!AJ182 -> -9.5 | K167: =+'HULP-velden'!AK182 -> 0.5 | L167: =+'HULP-velden'!AL182 -> 10.5 | M167: =+'HULP-velden'!AM182 -> 20.5 | N167: =+'HULP-velden'!AN182 -> 30.5 | O167: =+'HULP-velden'!AO182 -> 40.5 | P167: =+'HULP-velden'!AP182 -> 50.5
H168: ='HULP-velden'!AE183 -> 340000 | J168: =+'HULP-velden'!AJ183 -> -10 | K168: =+'HULP-velden'!AK183 -> 0 | L168: =+'HULP-velden'!AL183 -> 10 | M168: =+'HULP-velden'!AM183 -> 20 | N168: =+'HULP-velden'!AN183 -> 30 | O168: =+'HULP-velden'!AO183 -> 40 | P168: =+'HULP-velden'!AP183 -> 50
H169: ='HULP-velden'!AE184 -> 339000 | J169: =+'HULP-velden'!AJ184 -> -10.5 | K169: =+'HULP-velden'!AK184 -> -0.5 | L169: =+'HULP-velden'!AL184 -> 9.5 | M169: =+'HULP-velden'!AM184 -> 19.5 | N169: =+'HULP-velden'!AN184 -> 29.5 | O169: =+'HULP-velden'!AO184 -> 39.5 | P169: =+'HULP-velden'!AP184 -> 49.5
H170: ='HULP-velden'!AE185 -> 338000 | J170: =+'HULP-velden'!AJ185 -> -11 | K170: =+'HULP-velden'!AK185 -> -1 | L170: =+'HULP-velden'!AL185 -> 9 | M170: =+'HULP-velden'!AM185 -> 19 | N170: =+'HULP-velden'!AN185 -> 29 | O170: =+'HULP-velden'!AO185 -> 39 | P170: =+'HULP-velden'!AP185 -> 49
H171: ='HULP-velden'!AE186 -> 337000 | J171: =+'HULP-velden'!AJ186 -> -11.5 | K171: =+'HULP-velden'!AK186 -> -1.5 | L171: =+'HULP-velden'!AL186 -> 8.5 | M171: =+'HULP-velden'!AM186 -> 18.5 | N171: =+'HULP-velden'!AN186 -> 28.5 | O171: =+'HULP-velden'!AO186 -> 38.5 | P171: =+'HULP-velden'!AP186 -> 48.5
H172: ='HULP-velden'!AE187 -> 336000 | J172: =+'HULP-velden'!AJ187 -> -12 | K172: =+'HULP-velden'!AK187 -> -2 | L172: =+'HULP-velden'!AL187 -> 8 | M172: =+'HULP-velden'!AM187 -> 18 | N172: =+'HULP-velden'!AN187 -> 28 | O172: =+'HULP-velden'!AO187 -> 38 | P172: =+'HULP-velden'!AP187 -> 48
H173: ='HULP-velden'!AE188 -> 335000 | J173: =+'HULP-velden'!AJ188 -> -12.5 | K173: =+'HULP-velden'!AK188 -> -2.5 | L173: =+'HULP-velden'!AL188 -> 7.5 | M173: =+'HULP-velden'!AM188 -> 17.5 | N173: =+'HULP-velden'!AN188 -> 27.5 | O173: =+'HULP-velden'!AO188 -> 37.5 | P173: =+'HULP-velden'!AP188 -> 47.5
H174: ='HULP-velden'!AE189 -> 334000 | J174: =+'HULP-velden'!AJ189 -> -13 | K174: =+'HULP-velden'!AK189 -> -3 | L174: =+'HULP-velden'!AL189 -> 7 | M174: =+'HULP-velden'!AM189 -> 17 | N174: =+'HULP-velden'!AN189 -> 27 | O174: =+'HULP-velden'!AO189 -> 37 | P174: =+'HULP-velden'!AP189 -> 47
H175: ='HULP-velden'!AE190 -> 333000 | J175: =+'HULP-velden'!AJ190 -> -13.5 | K175: =+'HULP-velden'!AK190 -> -3.5 | L175: =+'HULP-velden'!AL190 -> 6.5 | M175: =+'HULP-velden'!AM190 -> 16.5 | N175: =+'HULP-velden'!AN190 -> 26.5 | O175: =+'HULP-velden'!AO190 -> 36.5 | P175: =+'HULP-velden'!AP190 -> 46.5
H176: ='HULP-velden'!AE191 -> 332000 | J176: =+'HULP-velden'!AJ191 -> -14 | K176: =+'HULP-velden'!AK191 -> -4 | L176: =+'HULP-velden'!AL191 -> 6 | M176: =+'HULP-velden'!AM191 -> 16 | N176: =+'HULP-velden'!AN191 -> 26 | O176: =+'HULP-velden'!AO191 -> 36 | P176: =+'HULP-velden'!AP191 -> 46
H177: ='HULP-velden'!AE192 -> 331000 | J177: =+'HULP-velden'!AJ192 -> -14.5 | K177: =+'HULP-velden'!AK192 -> -4.5 | L177: =+'HULP-velden'!AL192 -> 5.5 | M177: =+'HULP-velden'!AM192 -> 15.5 | N177: =+'HULP-velden'!AN192 -> 25.5 | O177: =+'HULP-velden'!AO192 -> 35.5 | P177: =+'HULP-velden'!AP192 -> 45.5
H178: ='HULP-velden'!AE193 -> 330000 | J178: =+'HULP-velden'!AJ193 -> -15 | K178: =+'HULP-velden'!AK193 -> -5 | L178: =+'HULP-velden'!AL193 -> 5 | M178: =+'HULP-velden'!AM193 -> 15 | N178: =+'HULP-velden'!AN193 -> 25 | O178: =+'HULP-velden'!AO193 -> 35 | P178: =+'HULP-velden'!AP193 -> 45
H179: ='HULP-velden'!AE194 -> 329000 | J179: =+'HULP-velden'!AJ194 -> -15.5 | K179: =+'HULP-velden'!AK194 -> -5.5 | L179: =+'HULP-velden'!AL194 -> 4.5 | M179: =+'HULP-velden'!AM194 -> 14.5 | N179: =+'HULP-velden'!AN194 -> 24.5 | O179: =+'HULP-velden'!AO194 -> 34.5 | P179: =+'HULP-velden'!AP194 -> 44.5
H180: ='HULP-velden'!AE195 -> 328000 | J180: =+'HULP-velden'!AJ195 -> -16 | K180: =+'HULP-velden'!AK195 -> -6 | L180: =+'HULP-velden'!AL195 -> 4 | M180: =+'HULP-velden'!AM195 -> 14 | N180: =+'HULP-velden'!AN195 -> 24 | O180: =+'HULP-velden'!AO195 -> 34 | P180: =+'HULP-velden'!AP195 -> 44
H181: ='HULP-velden'!AE196 -> 327000 | J181: =+'HULP-velden'!AJ196 -> -16.5 | K181: =+'HULP-velden'!AK196 -> -6.5 | L181: =+'HULP-velden'!AL196 -> 3.5 | M181: =+'HULP-velden'!AM196 -> 13.5 | N181: =+'HULP-velden'!AN196 -> 23.5 | O181: =+'HULP-velden'!AO196 -> 33.5 | P181: =+'HULP-velden'!AP196 -> 43.5
H182: ='HULP-velden'!AE197 -> 326000 | J182: =+'HULP-velden'!AJ197 -> -17 | K182: =+'HULP-velden'!AK197 -> -7 | L182: =+'HULP-velden'!AL197 -> 3 | M182: =+'HULP-velden'!AM197 -> 13 | N182: =+'HULP-velden'!AN197 -> 23 | O182: =+'HULP-velden'!AO197 -> 33 | P182: =+'HULP-velden'!AP197 -> 43
H183: ='HULP-velden'!AE198 -> 325000 | J183: =+'HULP-velden'!AJ198 -> -17.5 | K183: =+'HULP-velden'!AK198 -> -7.5 | L183: =+'HULP-velden'!AL198 -> 2.5 | M183: =+'HULP-velden'!AM198 -> 12.5 | N183: =+'HULP-velden'!AN198 -> 22.5 | O183: =+'HULP-velden'!AO198 -> 32.5 | P183: =+'HULP-velden'!AP198 -> 42.5
H184: ='HULP-velden'!AE199 -> 324000 | J184: =+'HULP-velden'!AJ199 -> -18 | K184: =+'HULP-velden'!AK199 -> -8 | L184: =+'HULP-velden'!AL199 -> 2 | M184: =+'HULP-velden'!AM199 -> 12 | N184: =+'HULP-velden'!AN199 -> 22 | O184: =+'HULP-velden'!AO199 -> 32 | P184: =+'HULP-velden'!AP199 -> 42
H185: ='HULP-velden'!AE200 -> 323000 | J185: =+'HULP-velden'!AJ200 -> -18.5 | K185: =+'HULP-velden'!AK200 -> -8.5 | L185: =+'HULP-velden'!AL200 -> 1.5 | M185: =+'HULP-velden'!AM200 -> 11.5 | N185: =+'HULP-velden'!AN200 -> 21.5 | O185: =+'HULP-velden'!AO200 -> 31.5 | P185: =+'HULP-velden'!AP200 -> 41.5
H186: ='HULP-velden'!AE201 -> 322000 | J186: =+'HULP-velden'!AJ201 -> -19 | K186: =+'HULP-velden'!AK201 -> -9 | L186: =+'HULP-velden'!AL201 -> 1 | M186: =+'HULP-velden'!AM201 -> 11 | N186: =+'HULP-velden'!AN201 -> 21 | O186: =+'HULP-velden'!AO201 -> 31 | P186: =+'HULP-velden'!AP201 -> 41
H187: ='HULP-velden'!AE202 -> 321000 | J187: =+'HULP-velden'!AJ202 -> -19.5 | K187: =+'HULP-velden'!AK202 -> -9.5 | L187: =+'HULP-velden'!AL202 -> 0.5 | M187: =+'HULP-velden'!AM202 -> 10.5 | N187: =+'HULP-velden'!AN202 -> 20.5 | O187: =+'HULP-velden'!AO202 -> 30.5 | P187: =+'HULP-velden'!AP202 -> 40.5
H188: ='HULP-velden'!AE203 -> 320000 | J188: =+'HULP-velden'!AJ203 -> -20 | K188: =+'HULP-velden'!AK203 -> -10 | L188: =+'HULP-velden'!AL203 -> 0 | M188: =+'HULP-velden'!AM203 -> 10 | N188: =+'HULP-velden'!AN203 -> 20 | O188: =+'HULP-velden'!AO203 -> 30 | P188: =+'HULP-velden'!AP203 -> 40
H189: ='HULP-velden'!AE204 -> 319000 | J189: =+'HULP-velden'!AJ204 -> -20.5 | K189: =+'HULP-velden'!AK204 -> -10.5 | L189: =+'HULP-velden'!AL204 -> -0.5 | M189: =+'HULP-velden'!AM204 -> 9.5 | N189: =+'HULP-velden'!AN204 -> 19.5 | O189: =+'HULP-velden'!AO204 -> 29.5 | P189: =+'HULP-velden'!AP204 -> 39.5
H190: ='HULP-velden'!AE205 -> 318000 | J190: =+'HULP-velden'!AJ205 -> -21 | K190: =+'HULP-velden'!AK205 -> -11 | L190: =+'HULP-velden'!AL205 -> -1 | M190: =+'HULP-velden'!AM205 -> 9 | N190: =+'HULP-velden'!AN205 -> 19 | O190: =+'HULP-velden'!AO205 -> 29 | P190: =+'HULP-velden'!AP205 -> 39
H191: ='HULP-velden'!AE206 -> 317000 | J191: =+'HULP-velden'!AJ206 -> -21.5 | K191: =+'HULP-velden'!AK206 -> -11.5 | L191: =+'HULP-velden'!AL206 -> -1.5 | M191: =+'HULP-velden'!AM206 -> 8.5 | N191: =+'HULP-velden'!AN206 -> 18.5 | O191: =+'HULP-velden'!AO206 -> 28.5 | P191: =+'HULP-velden'!AP206 -> 38.5
H192: ='HULP-velden'!AE207 -> 316000 | J192: =+'HULP-velden'!AJ207 -> -22 | K192: =+'HULP-velden'!AK207 -> -12 | L192: =+'HULP-velden'!AL207 -> -2 | M192: =+'HULP-velden'!AM207 -> 8 | N192: =+'HULP-velden'!AN207 -> 18 | O192: =+'HULP-velden'!AO207 -> 28 | P192: =+'HULP-velden'!AP207 -> 38
H193: ='HULP-velden'!AE208 -> 315000 | J193: =+'HULP-velden'!AJ208 -> -22.5 | K193: =+'HULP-velden'!AK208 -> -12.5 | L193: =+'HULP-velden'!AL208 -> -2.5 | M193: =+'HULP-velden'!AM208 -> 7.5 | N193: =+'HULP-velden'!AN208 -> 17.5 | O193: =+'HULP-velden'!AO208 -> 27.5 | P193: =+'HULP-velden'!AP208 -> 37.5
H194: ='HULP-velden'!AE209 -> 314000 | J194: =+'HULP-velden'!AJ209 -> -23 | K194: =+'HULP-velden'!AK209 -> -13 | L194: =+'HULP-velden'!AL209 -> -3 | M194: =+'HULP-velden'!AM209 -> 7 | N194: =+'HULP-velden'!AN209 -> 17 | O194: =+'HULP-velden'!AO209 -> 27 | P194: =+'HULP-velden'!AP209 -> 37
H195: ='HULP-velden'!AE210 -> 313000 | J195: =+'HULP-velden'!AJ210 -> -23.5 | K195: =+'HULP-velden'!AK210 -> -13.5 | L195: =+'HULP-velden'!AL210 -> -3.5 | M195: =+'HULP-velden'!AM210 -> 6.5 | N195: =+'HULP-velden'!AN210 -> 16.5 | O195: =+'HULP-velden'!AO210 -> 26.5 | P195: =+'HULP-velden'!AP210 -> 36.5
H196: ='HULP-velden'!AE211 -> 312000 | J196: =+'HULP-velden'!AJ211 -> -24 | K196: =+'HULP-velden'!AK211 -> -14 | L196: =+'HULP-velden'!AL211 -> -4 | M196: =+'HULP-velden'!AM211 -> 6 | N196: =+'HULP-velden'!AN211 -> 16 | O196: =+'HULP-velden'!AO211 -> 26 | P196: =+'HULP-velden'!AP211 -> 36
H197: ='HULP-velden'!AE212 -> 311000 | J197: =+'HULP-velden'!AJ212 -> -24.5 | K197: =+'HULP-velden'!AK212 -> -14.5 | L197: =+'HULP-velden'!AL212 -> -4.5 | M197: =+'HULP-velden'!AM212 -> 5.5 | N197: =+'HULP-velden'!AN212 -> 15.5 | O197: =+'HULP-velden'!AO212 -> 25.5 | P197: =+'HULP-velden'!AP212 -> 35.5
H198: ='HULP-velden'!AE213 -> 310000 | J198: =+'HULP-velden'!AJ213 -> -25 | K198: =+'HULP-velden'!AK213 -> -15 | L198: =+'HULP-velden'!AL213 -> -5 | M198: =+'HULP-velden'!AM213 -> 5 | N198: =+'HULP-velden'!AN213 -> 15 | O198: =+'HULP-velden'!AO213 -> 25 | P198: =+'HULP-velden'!AP213 -> 35
H199: ='HULP-velden'!AE214 -> 309000 | J199: =+'HULP-velden'!AJ214 -> -25.5 | K199: =+'HULP-velden'!AK214 -> -15.5 | L199: =+'HULP-velden'!AL214 -> -5.5 | M199: =+'HULP-velden'!AM214 -> 4.5 | N199: =+'HULP-velden'!AN214 -> 14.5 | O199: =+'HULP-velden'!AO214 -> 24.5 | P199: =+'HULP-velden'!AP214 -> 34.5
H200: ='HULP-velden'!AE215 -> 308000 | J200: =+'HULP-velden'!AJ215 -> -26 | K200: =+'HULP-velden'!AK215 -> -16 | L200: =+'HULP-velden'!AL215 -> -6 | M200: =+'HULP-velden'!AM215 -> 4 | N200: =+'HULP-velden'!AN215 -> 14 | O200: =+'HULP-velden'!AO215 -> 24 | P200: =+'HULP-velden'!AP215 -> 34
H201: ='HULP-velden'!AE216 -> 307000 | J201: =+'HULP-velden'!AJ216 -> -26.5 | K201: =+'HULP-velden'!AK216 -> -16.5 | L201: =+'HULP-velden'!AL216 -> -6.5 | M201: =+'HULP-velden'!AM216 -> 3.5 | N201: =+'HULP-velden'!AN216 -> 13.5 | O201: =+'HULP-velden'!AO216 -> 23.5 | P201: =+'HULP-velden'!AP216 -> 33.5
H202: ='HULP-velden'!AE217 -> 306000 | J202: =+'HULP-velden'!AJ217 -> -27 | K202: =+'HULP-velden'!AK217 -> -17 | L202: =+'HULP-velden'!AL217 -> -7 | M202: =+'HULP-velden'!AM217 -> 3 | N202: =+'HULP-velden'!AN217 -> 13 | O202: =+'HULP-velden'!AO217 -> 23 | P202: =+'HULP-velden'!AP217 -> 33
... 6 more rows

Sheet DATA-hulp (hidden)
B2: Uw Inschrijving | C2: ='BPK-Grafiek'!H8 -> 0 | D2: Qscore | E2: ='BPK-Grafiek'!H11 -> 0 | F2: Pscore | G2: =IF(C5="Machtsformule",ROUND($C$10-$C$10*(((C2-$C$20)/($C$21-$C$20))^$C$23),1),ROUND(C10*((($C$21-C2)/($C$21-$C$20))^(1/$C$23)),1)) -> 1250 | H2: BPK-score | I2: =E2+G2 -> 1250 | J2: Qscore (norm) | K2: =E2/C6*100 -> 0
B4: De hieronder opgenomen date is noodzakelijk voor de opbouw van de BPK-grafiek
B5: Type formule | C5: ='HULP-velden'!E6 -> Machtsformule | H5: Y-as | J5: X-as
B6: Qmax (x-as) | C6: =+C12 -> 500 | D6: =+C6 -> 500 | J6: BPK-Lijnen
B7: Qmax (y-as) | C7: 0 | D7: =+C25*2 -> 800000 | H7: Prijs | J7: =+'HULP-velden'!AJ16 -> BPK-Lijn -3 | K7: =+'HULP-velden'!AK16 -> BPK-Lijn -2 | L7: =+'HULP-velden'!AL16 -> BPK-Lijn -1 | M7: =+'HULP-velden'!AM16 -> BPK-lijn Ref | N7: =+'HULP-velden'!AN16 -> BPK-Lijn +1 | O7: =+'HULP-velden'!AO16 -> BPK-Lijn +2 | P7: =+'HULP-velden'!AP16 -> BPK-Lijn +3
B8: Plafondprijs (x-as) | C8: 0 | D8: =+C12 -> 500 | H8: ='HULP-velden'!AE22 -> 500000 | J8: =+'HULP-velden'!AJ22 -> 70 | K8: =+'HULP-velden'!AK22 -> 80 | L8: =+'HULP-velden'!AL22 -> 90 | M8: =+'HULP-velden'!AM22 -> 100 | N8: =+'HULP-velden'!AN22 -> 110 | O8: =+'HULP-velden'!AO22 -> 120 | P8: =+'HULP-velden'!AP22 -> 130
B9: Plafondprijs (y-as) | C9: =+C19 -> -100000 | D9: =+C19 -> -100000 | H9: ='HULP-velden'!AE23 -> 499000 | J9: =+'HULP-velden'!AJ23 -> 69.5 | K9: =+'HULP-velden'!AK23 -> 79.5 | L9: =+'HULP-velden'!AL23 -> 89.5 | M9: =+'HULP-velden'!AM23 -> 99.5 | N9: =+'HULP-velden'!AN23 -> 109.5 | O9: =+'HULP-velden'!AO23 -> 119.5 | P9: =+'HULP-velden'!AP23 -> 129.5
B10: Punten voor Prijs | C10: ='HULP-velden'!H6 -> 500 | H10: ='HULP-velden'!AE24 -> 498000 | J10: =+'HULP-velden'!AJ24 -> 69 | K10: =+'HULP-velden'!AK24 -> 79 | L10: =+'HULP-velden'!AL24 -> 89 | M10: =+'HULP-velden'!AM24 -> 99 | N10: =+'HULP-velden'!AN24 -> 109 | O10: =+'HULP-velden'!AO24 -> 119 | P10: =+'HULP-velden'!AP24 -> 129
B11: Methode/Qref | C11: ='HULP-velden'!M15 -> 250 | D11: ='HULP-velden'!F7 -> 0 | H11: ='HULP-velden'!AE25 -> 497000 | J11: =+'HULP-velden'!AJ25 -> 68.5 | K11: =+'HULP-velden'!AK25 -> 78.5 | L11: =+'HULP-velden'!AL25 -> 88.5 | M11: =+'HULP-velden'!AM25 -> 98.5 | N11: =+'HULP-velden'!AN25 -> 108.5 | O11: =+'HULP-velden'!AO25 -> 118.5 | P11: =+'HULP-velden'!AP25 -> 128.5
B12: Qwensen | C12: ='HULP-velden'!C6 -> 500 | H12: ='HULP-velden'!AE26 -> 496000 | J12: =+'HULP-velden'!AJ26 -> 68 | K12: =+'HULP-velden'!AK26 -> 78 | L12: =+'HULP-velden'!AL26 -> 88 | M12: =+'HULP-velden'!AM26 -> 98 | N12: =+'HULP-velden'!AN26 -> 108 | O12: =+'HULP-velden'!AO26 -> 118 | P12: =+'HULP-velden'!AP26 -> 128
B13: Stappen | C13: =+'HULP-velden'!C7 -> 25 | H13: ='HULP-velden'!AE27 -> 495000 | J13: =+'HULP-velden'!AJ27 -> 67.5 | K13: =+'HULP-velden'!AK27 -> 77.5 | L13: =+'HULP-velden'!AL27 -> 87.5 | M13: =+'HULP-velden'!AM27 -> 97.5 | N13: =+'HULP-velden'!AN27 -> 107.5 | O13: =+'HULP-velden'!AO27 -> 117.5 | P13: =+'HULP-velden'!AP27 -> 127.5
H14: ='HULP-velden'!AE28 -> 494000 | J14: =+'HULP-velden'!AJ28 -> 67 | K14: =+'HULP-velden'!AK28 -> 77 | L14: =+'HULP-velden'!AL28 -> 87 | M14: =+'HULP-velden'!AM28 -> 97 | N14: =+'HULP-velden'!AN28 -> 107 | O14: =+'HULP-velden'!AO28 -> 117 | P14: =+'HULP-velden'!AP28 -> 127
B15: Q-score voorbeeld inschrijvig | C15: ='HULP-velden'!F12 -> 50 | H15: ='HULP-velden'!AE29 -> 493000 | J15: =+'HULP-velden'!AJ29 -> 66.5 | K15: =+'HULP-velden'!AK29 -> 76.5 | L15: =+'HULP-velden'!AL29 -> 86.5 | M15: =+'HULP-velden'!AM29 -> 96.5 | N15: =+'HULP-velden'!AN29 -> 106.5 | O15: =+'HULP-velden'!AO29 -> 116.5 | P15: =+'HULP-velden'!AP29 -> 126.5
B16: Wq | C16: =+'HULP-velden'!C10 -> 0.5 | D16: =+D6 -> 500 | H16: ='HULP-velden'!AE30 -> 492000 | J16: =+'HULP-velden'!AJ30 -> 66 | K16: =+'HULP-velden'!AK30 -> 76 | L16: =+'HULP-velden'!AL30 -> 86 | M16: =+'HULP-velden'!AM30 -> 96 | N16: =+'HULP-velden'!AN30 -> 106 | O16: =+'HULP-velden'!AO30 -> 116 | P16: =+'HULP-velden'!AP30 -> 126
B17: Wp | C17: =+'HULP-velden'!C11 -> 0.5 | D17: =D16/C16*C17 -> 500 | H17: ='HULP-velden'!AE31 -> 491000 | J17: =+'HULP-velden'!AJ31 -> 65.5 | K17: =+'HULP-velden'!AK31 -> 75.5 | L17: =+'HULP-velden'!AL31 -> 85.5 | M17: =+'HULP-velden'!AM31 -> 95.5 | N17: =+'HULP-velden'!AN31 -> 105.5 | O17: =+'HULP-velden'!AO31 -> 115.5 | P17: =+'HULP-velden'!AP31 -> 125.5
H18: ='HULP-velden'!AE32 -> 490000 | J18: =+'HULP-velden'!AJ32 -> 65 | K18: =+'HULP-velden'!AK32 -> 75 | L18: =+'HULP-velden'!AL32 -> 85 | M18: =+'HULP-velden'!AM32 -> 95 | N18: =+'HULP-velden'!AN32 -> 105 | O18: =+'HULP-velden'!AO32 -> 115 | P18: =+'HULP-velden'!AP32 -> 125
B19: Plafondprijs | C19: =+'HULP-velden'!C13 -> -100000 | H19: ='HULP-velden'!AE33 -> 489000 | J19: =+'HULP-velden'!AJ33 -> 64.5 | K19: =+'HULP-velden'!AK33 -> 74.5 | L19: =+'HULP-velden'!AL33 -> 84.5 | M19: =+'HULP-velden'!AM33 -> 94.5 | N19: =+'HULP-velden'!AN33 -> 104.5 | O19: =+'HULP-velden'!AO33 -> 114.5 | P19: =+'HULP-velden'!AP33 -> 124.5
B20: Ondergrens | C20: =+'HULP-velden'!C14 -> 300000 | D20: =+C20 -> 300000 | H20: ='HULP-velden'!AE34 -> 488000 | J20: =+'HULP-velden'!AJ34 -> 64 | K20: =+'HULP-velden'!AK34 -> 74 | L20: =+'HULP-velden'!AL34 -> 84 | M20: =+'HULP-velden'!AM34 -> 94 | N20: =+'HULP-velden'!AN34 -> 104 | O20: =+'HULP-velden'!AO34 -> 114 | P20: =+'HULP-velden'!AP34 -> 124
B21: Bovengrens | C21: =+'HULP-velden'!C17 -> 500000 | D21: =+C21 -> 500000 | H21: ='HULP-velden'!AE35 -> 487000 | J21: =+'HULP-velden'!AJ35 -> 63.5 | K21: =+'HULP-velden'!AK35 -> 73.5 | L21: =+'HULP-velden'!AL35 -> 83.5 | M21: =+'HULP-velden'!AM35 -> 93.5 | N21: =+'HULP-velden'!AN35 -> 103.5 | O21: =+'HULP-velden'!AO35 -> 113.5 | P21: =+'HULP-velden'!AP35 -> 123.5
B22: LAQ | C22: =+'HULP-velden'!C15 -> -1000 | D22: =Dashboard!H22 -> 0 | H22: ='HULP-velden'!AE36 -> 486000 | J22: =+'HULP-velden'!AJ36 -> 63 | K22: =+'HULP-velden'!AK36 -> 73 | L22: =+'HULP-velden'!AL36 -> 83 | M22: =+'HULP-velden'!AM36 -> 93 | N22: =+'HULP-velden'!AN36 -> 103 | O22: =+'HULP-velden'!AO36 -> 113 | P22: =+'HULP-velden'!AP36 -> 123
B23: n-factor | C23: =Dashboard!H16 -> 1 | H23: ='HULP-velden'!AE37 -> 485000 | J23: =+'HULP-velden'!AJ37 -> 62.5 | K23: =+'HULP-velden'!AK37 -> 72.5 | L23: =+'HULP-velden'!AL37 -> 82.5 | M23: =+'HULP-velden'!AM37 -> 92.5 | N23: =+'HULP-velden'!AN37 -> 102.5 | O23: =+'HULP-velden'!AO37 -> 112.5 | P23: =+'HULP-velden'!AP37 -> 122.5
H24: ='HULP-velden'!AE38 -> 484000 | J24: =+'HULP-velden'!AJ38 -> 62 | K24: =+'HULP-velden'!AK38 -> 72 | L24: =+'HULP-velden'!AL38 -> 82 | M24: =+'HULP-velden'!AM38 -> 92 | N24: =+'HULP-velden'!AN38 -> 102 | O24: =+'HULP-velden'!AO38 -> 112 | P24: =+'HULP-velden'!AP38 -> 122
B25: Prijs voorbeeld inschrijving | C25: =+'HULP-velden'!C8 -> 400000 | H25: ='HULP-velden'!AE39 -> 483000 | J25: =+'HULP-velden'!AJ39 -> 61.5 | K25: =+'HULP-velden'!AK39 -> 71.5 | L25: =+'HULP-velden'!AL39 -> 81.5 | M25: =+'HULP-velden'!AM39 -> 91.5 | N25: =+'HULP-velden'!AN39 -> 101.5 | O25: =+'HULP-velden'!AO39 -> 111.5 | P25: =+'HULP-velden'!AP39 -> 121.5
B26: Score kwaliteit voorbeeld inschrijving | C26: ='HULP-velden'!C165 -> 250 | H26: ='HULP-velden'!AE40 -> 482000 | J26: =+'HULP-velden'!AJ40 -> 61 | K26: =+'HULP-velden'!AK40 -> 71 | L26: =+'HULP-velden'!AL40 -> 81 | M26: =+'HULP-velden'!AM40 -> 91 | N26: =+'HULP-velden'!AN40 -> 101 | O26: =+'HULP-velden'!AO40 -> 111 | P26: =+'HULP-velden'!AP40 -> 121
B27: Score prijs voorbeeld inschrijving | C27: ='HULP-velden'!C164 -> 250 | H27: ='HULP-velden'!AE41 -> 481000 | J27: =+'HULP-velden'!AJ41 -> 60.5 | K27: =+'HULP-velden'!AK41 -> 70.5 | L27: =+'HULP-velden'!AL41 -> 80.5 | M27: =+'HULP-velden'!AM41 -> 90.5 | N27: =+'HULP-velden'!AN41 -> 100.5 | O27: =+'HULP-velden'!AO41 -> 110.5 | P27: =+'HULP-velden'!AP41 -> 120.5
B28: BPK-Score voorbeeld | C28: ='HULP-velden'!C163 -> 500 | H28: ='HULP-velden'!AE42 -> 480000 | J28: =+'HULP-velden'!AJ42 -> 60 | K28: =+'HULP-velden'!AK42 -> 70 | L28: =+'HULP-velden'!AL42 -> 80 | M28: =+'HULP-velden'!AM42 -> 90 | N28: =+'HULP-velden'!AN42 -> 100 | O28: =+'HULP-velden'!AO42 -> 110 | P28: =+'HULP-velden'!AP42 -> 120
H29: ='HULP-velden'!AE43 -> 479000 | J29: =+'HULP-velden'!AJ43 -> 59.5 | K29: =+'HULP-velden'!AK43 -> 69.5 | L29: =+'HULP-velden'!AL43 -> 79.5 | M29: =+'HULP-velden'!AM43 -> 89.5 | N29: =+'HULP-velden'!AN43 -> 99.5 | O29: =+'HULP-velden'!AO43 -> 109.5 | P29: =+'HULP-velden'!AP43 -> 119.5
H30: ='HULP-velden'!AE44 -> 478000 | J30: =+'HULP-velden'!AJ44 -> 59 | K30: =+'HULP-velden'!AK44 -> 69 | L30: =+'HULP-velden'!AL44 -> 79 | M30: =+'HULP-velden'!AM44 -> 89 | N30: =+'HULP-velden'!AN44 -> 99 | O30: =+'HULP-velden'!AO44 -> 109 | P30: =+'HULP-velden'!AP44 -> 119
H31: ='HULP-velden'!AE45 -> 477000 | J31: =+'HULP-velden'!AJ45 -> 58.5 | K31: =+'HULP-velden'!AK45 -> 68.5 | L31: =+'HULP-velden'!AL45 -> 78.5 | M31: =+'HULP-velden'!AM45 -> 88.5 | N31: =+'HULP-velden'!AN45 -> 98.5 | O31: =+'HULP-velden'!AO45 -> 108.5 | P31: =+'HULP-velden'!AP45 -> 118.5
H32: ='HULP-velden'!AE46 -> 476000 | J32: =+'HULP-velden'!AJ46 -> 58 | K32: =+'HULP-velden'!AK46 -> 68 | L32: =+'HULP-velden'!AL46 -> 78 | M32: =+'HULP-velden'!AM46 -> 88 | N32: =+'HULP-velden'!AN46 -> 98 | O32: =+'HULP-velden'!AO46 -> 108 | P32: =+'HULP-velden'!AP46 -> 118
H33: ='HULP-velden'!AE47 -> 475000 | J33: =+'HULP-velden'!AJ47 -> 57.5 | K33: =+'HULP-velden'!AK47 -> 67.5 | L33: =+'HULP-velden'!AL47 -> 77.5 | M33: =+'HULP-velden'!AM47 -> 87.5 | N33: =+'HULP-velden'!AN47 -> 97.5 | O33: =+'HULP-velden'!AO47 -> 107.5 | P33: =+'HULP-velden'!AP47 -> 117.5
B34: Naam | C34: =Dashboard!E6 ->  | H34: ='HULP-velden'!AE48 -> 474000 | J34: =+'HULP-velden'!AJ48 -> 57 | K34: =+'HULP-velden'!AK48 -> 67 | L34: =+'HULP-velden'!AL48 -> 77 | M34: =+'HULP-velden'!AM48 -> 87 | N34: =+'HULP-velden'!AN48 -> 97 | O34: =+'HULP-velden'!AO48 -> 107 | P34: =+'HULP-velden'!AP48 -> 117
B35: Kenmerk | C35: =Dashboard!E7 ->  | H35: ='HULP-velden'!AE49 -> 473000 | J35: =+'HULP-velden'!AJ49 -> 56.5 | K35: =+'HULP-velden'!AK49 -> 66.5 | L35: =+'HULP-velden'!AL49 -> 76.5 | M35: =+'HULP-velden'!AM49 -> 86.5 | N35: =+'HULP-velden'!AN49 -> 96.5 | O35: =+'HULP-velden'!AO49 -> 106.5 | P35: =+'HULP-velden'!AP49 -> 116.5
H36: ='HULP-velden'!AE50 -> 472000 | J36: =+'HULP-velden'!AJ50 -> 56 | K36: =+'HULP-velden'!AK50 -> 66 | L36: =+'HULP-velden'!AL50 -> 76 | M36: =+'HULP-velden'!AM50 -> 86 | N36: =+'HULP-velden'!AN50 -> 96 | O36: =+'HULP-velden'!AO50 -> 106 | P36: =+'HULP-velden'!AP50 -> 116
H37: ='HULP-velden'!AE51 -> 471000 | J37: =+'HULP-velden'!AJ51 -> 55.5 | K37: =+'HULP-velden'!AK51 -> 65.5 | L37: =+'HULP-velden'!AL51 -> 75.5 | M37: =+'HULP-velden'!AM51 -> 85.5 | N37: =+'HULP-velden'!AN51 -> 95.5 | O37: =+'HULP-velden'!AO51 -> 105.5 | P37: =+'HULP-velden'!AP51 -> 115.5
B38: Ten behoeve van grafiek | H38: ='HULP-velden'!AE52 -> 470000 | J38: =+'HULP-velden'!AJ52 -> 55 | K38: =+'HULP-velden'!AK52 -> 65 | L38: =+'HULP-velden'!AL52 -> 75 | M38: =+'HULP-velden'!AM52 -> 85 | N38: =+'HULP-velden'!AN52 -> 95 | O38: =+'HULP-velden'!AO52 -> 105 | P38: =+'HULP-velden'!AP52 -> 115
B39: Onder-lijn (x-as) | D39: ='HULP-velden'!D104 -> 280000 | H39: ='HULP-velden'!AE53 -> 469000 | J39: =+'HULP-velden'!AJ53 -> 54.5 | K39: =+'HULP-velden'!AK53 -> 64.5 | L39: =+'HULP-velden'!AL53 -> 74.5 | M39: =+'HULP-velden'!AM53 -> 84.5 | N39: =+'HULP-velden'!AN53 -> 94.5 | O39: =+'HULP-velden'!AO53 -> 104.5 | P39: =+'HULP-velden'!AP53 -> 114.5
B40: Qmax | C40: =+'HULP-velden'!C20 -> 100 | D40: =+'HULP-velden'!D20 -> 100 | H40: ='HULP-velden'!AE54 -> 468000 | J40: =+'HULP-velden'!AJ54 -> 54 | K40: =+'HULP-velden'!AK54 -> 64 | L40: =+'HULP-velden'!AL54 -> 74 | M40: =+'HULP-velden'!AM54 -> 84 | N40: =+'HULP-velden'!AN54 -> 94 | O40: =+'HULP-velden'!AO54 -> 104 | P40: =+'HULP-velden'!AP54 -> 114
B41: Bovenlijn | C41: =+'HULP-velden'!C21 -> 0 | D41: =+'HULP-velden'!D21 -> 520000 | H41: ='HULP-velden'!AE55 -> 467000 | J41: =+'HULP-velden'!AJ55 -> 53.5 | K41: =+'HULP-velden'!AK55 -> 63.5 | L41: =+'HULP-velden'!AL55 -> 73.5 | M41: =+'HULP-velden'!AM55 -> 83.5 | N41: =+'HULP-velden'!AN55 -> 93.5 | O41: =+'HULP-velden'!AO55 -> 103.5 | P41: =+'HULP-velden'!AP55 -> 113.5
B42: Referentie | C42: ='HULP-velden'!M15 -> 250 | D42: =+'HULP-velden'!M14 -> 400000 | H42: ='HULP-velden'!AE56 -> 466000 | J42: =+'HULP-velden'!AJ56 -> 53 | K42: =+'HULP-velden'!AK56 -> 63 | L42: =+'HULP-velden'!AL56 -> 73 | M42: =+'HULP-velden'!AM56 -> 83 | N42: =+'HULP-velden'!AN56 -> 93 | O42: =+'HULP-velden'!AO56 -> 103 | P42: =+'HULP-velden'!AP56 -> 113
B43: Qknockout Prijs | C43: ='HULP-velden'!C23 -> 0 | D43: ='HULP-velden'!D23 -> 100 | H43: ='HULP-velden'!AE57 -> 465000 | J43: =+'HULP-velden'!AJ57 -> 52.5 | K43: =+'HULP-velden'!AK57 -> 62.5 | L43: =+'HULP-velden'!AL57 -> 72.5 | M43: =+'HULP-velden'!AM57 -> 82.5 | N43: =+'HULP-velden'!AN57 -> 92.5 | O43: =+'HULP-velden'!AO57 -> 102.5 | P43: =+'HULP-velden'!AP57 -> 112.5
C44: =+'HULP-velden'!C13 -> -100000 | D44: =+C44 -> -100000 | H44: ='HULP-velden'!AE58 -> 464000 | J44: =+'HULP-velden'!AJ58 -> 52 | K44: =+'HULP-velden'!AK58 -> 62 | L44: =+'HULP-velden'!AL58 -> 72 | M44: =+'HULP-velden'!AM58 -> 82 | N44: =+'HULP-velden'!AN58 -> 92 | O44: =+'HULP-velden'!AO58 -> 102 | P44: =+'HULP-velden'!AP58 -> 112
B45: Vergelijkingswaarde x 1.000 | C45: 0 | D45: =+'HULP-velden'!D21 -> 520000 | H45: ='HULP-velden'!AE59 -> 463000 | J45: =+'HULP-velden'!AJ59 -> 51.5 | K45: =+'HULP-velden'!AK59 -> 61.5 | L45: =+'HULP-velden'!AL59 -> 71.5 | M45: =+'HULP-velden'!AM59 -> 81.5 | N45: =+'HULP-velden'!AN59 -> 91.5 | O45: =+'HULP-velden'!AO59 -> 101.5 | P45: =+'HULP-velden'!AP59 -> 111.5
B46: Qkncokout Kwaliteit | C46: ='HULP-velden'!C26 -> -1000 | D46: ='HULP-velden'!D26 -> -1000 | H46: ='HULP-velden'!AE60 -> 462000 | J46: =+'HULP-velden'!AJ60 -> 51 | K46: =+'HULP-velden'!AK60 -> 61 | L46: =+'HULP-velden'!AL60 -> 71 | M46: =+'HULP-velden'!AM60 -> 81 | N46: =+'HULP-velden'!AN60 -> 91 | O46: =+'HULP-velden'!AO60 -> 101 | P46: =+'HULP-velden'!AP60 -> 111
B47: Qmin | C47: ='HULP-velden'!C28 -> 0 | D47: ='HULP-velden'!D28 -> 0 | H47: ='HULP-velden'!AE61 -> 461000 | J47: =+'HULP-velden'!AJ61 -> 50.5 | K47: =+'HULP-velden'!AK61 -> 60.5 | L47: =+'HULP-velden'!AL61 -> 70.5 | M47: =+'HULP-velden'!AM61 -> 80.5 | N47: =+'HULP-velden'!AN61 -> 90.5 | O47: =+'HULP-velden'!AO61 -> 100.5 | P47: =+'HULP-velden'!AP61 -> 110.5
B48: Punten bij Qmin | C48: =+C47 -> 0 | D48: 0 | H48: ='HULP-velden'!AE62 -> 460000 | J48: =+'HULP-velden'!AJ62 -> 50 | K48: =+'HULP-velden'!AK62 -> 60 | L48: =+'HULP-velden'!AL62 -> 70 | M48: =+'HULP-velden'!AM62 -> 80 | N48: =+'HULP-velden'!AN62 -> 90 | O48: =+'HULP-velden'!AO62 -> 100 | P48: =+'HULP-velden'!AP62 -> 110
B49: Punten Bij Qmax | C49: =C12 -> 500 | D49: 0 | H49: ='HULP-velden'!AE63 -> 459000 | J49: =+'HULP-velden'!AJ63 -> 49.5 | K49: =+'HULP-velden'!AK63 -> 59.5 | L49: =+'HULP-velden'!AL63 -> 69.5 | M49: =+'HULP-velden'!AM63 -> 79.5 | N49: =+'HULP-velden'!AN63 -> 89.5 | O49: =+'HULP-velden'!AO63 -> 99.5 | P49: =+'HULP-velden'!AP63 -> 109.5
B50: Waarde bij Qmin | C50: ='HULP-velden'!C29 -> 0 | H50: ='HULP-velden'!AE64 -> 458000 | J50: =+'HULP-velden'!AJ64 -> 49 | K50: =+'HULP-velden'!AK64 -> 59 | L50: =+'HULP-velden'!AL64 -> 69 | M50: =+'HULP-velden'!AM64 -> 79 | N50: =+'HULP-velden'!AN64 -> 89 | O50: =+'HULP-velden'!AO64 -> 99 | P50: =+'HULP-velden'!AP64 -> 109
B51: Waarde bij Qmax | C51: ='HULP-velden'!C30 -> 500 | H51: ='HULP-velden'!AE65 -> 457000 | J51: =+'HULP-velden'!AJ65 -> 48.5 | K51: =+'HULP-velden'!AK65 -> 58.5 | L51: =+'HULP-velden'!AL65 -> 68.5 | M51: =+'HULP-velden'!AM65 -> 78.5 | N51: =+'HULP-velden'!AN65 -> 88.5 | O51: =+'HULP-velden'!AO65 -> 98.5 | P51: =+'HULP-velden'!AP65 -> 108.5
B52: LAQ | C52: ='HULP-velden'!C26 -> -1000 | D52: ='HULP-velden'!D26 -> -1000 | H52: ='HULP-velden'!AE66 -> 456000 | J52: =+'HULP-velden'!AJ66 -> 48 | K52: =+'HULP-velden'!AK66 -> 58 | L52: =+'HULP-velden'!AL66 -> 68 | M52: =+'HULP-velden'!AM66 -> 78 | N52: =+'HULP-velden'!AN66 -> 88 | O52: =+'HULP-velden'!AO66 -> 98 | P52: =+'HULP-velden'!AP66 -> 108
B53: Tekst | C53: ='HULP-velden'!G15 -> LAQ = | H53: ='HULP-velden'!AE67 -> 455000 | J53: =+'HULP-velden'!AJ67 -> 47.5 | K53: =+'HULP-velden'!AK67 -> 57.5 | L53: =+'HULP-velden'!AL67 -> 67.5 | M53: =+'HULP-velden'!AM67 -> 77.5 | N53: =+'HULP-velden'!AN67 -> 87.5 | O53: =+'HULP-velden'!AO67 -> 97.5 | P53: =+'HULP-velden'!AP67 -> 107.5
B54: Plafondprijs | C54: ='HULP-velden'!C13 -> -100000 | D54: =+C54 -> -100000 | H54: ='HULP-velden'!AE68 -> 454000 | J54: =+'HULP-velden'!AJ68 -> 47 | K54: =+'HULP-velden'!AK68 -> 57 | L54: =+'HULP-velden'!AL68 -> 67 | M54: =+'HULP-velden'!AM68 -> 77 | N54: =+'HULP-velden'!AN68 -> 87 | O54: =+'HULP-velden'!AO68 -> 97 | P54: =+'HULP-velden'!AP68 -> 107
B55: Tekst | C55: ='HULP-velden'!G16 -> Plafondprijs; -€ 100 | H55: ='HULP-velden'!AE69 -> 453000 | J55: =+'HULP-velden'!AJ69 -> 46.5 | K55: =+'HULP-velden'!AK69 -> 56.5 | L55: =+'HULP-velden'!AL69 -> 66.5 | M55: =+'HULP-velden'!AM69 -> 76.5 | N55: =+'HULP-velden'!AN69 -> 86.5 | O55: =+'HULP-velden'!AO69 -> 96.5 | P55: =+'HULP-velden'!AP69 -> 106.5
H56: ='HULP-velden'!AE70 -> 452000 | J56: =+'HULP-velden'!AJ70 -> 46 | K56: =+'HULP-velden'!AK70 -> 56 | L56: =+'HULP-velden'!AL70 -> 66 | M56: =+'HULP-velden'!AM70 -> 76 | N56: =+'HULP-velden'!AN70 -> 86 | O56: =+'HULP-velden'!AO70 -> 96 | P56: =+'HULP-velden'!AP70 -> 106
H57: ='HULP-velden'!AE71 -> 451000 | J57: =+'HULP-velden'!AJ71 -> 45.5 | K57: =+'HULP-velden'!AK71 -> 55.5 | L57: =+'HULP-velden'!AL71 -> 65.5 | M57: =+'HULP-velden'!AM71 -> 75.5 | N57: =+'HULP-velden'!AN71 -> 85.5 | O57: =+'HULP-velden'!AO71 -> 95.5 | P57: =+'HULP-velden'!AP71 -> 105.5
H58: ='HULP-velden'!AE72 -> 450000 | J58: =+'HULP-velden'!AJ72 -> 45 | K58: =+'HULP-velden'!AK72 -> 55 | L58: =+'HULP-velden'!AL72 -> 65 | M58: =+'HULP-velden'!AM72 -> 75 | N58: =+'HULP-velden'!AN72 -> 85 | O58: =+'HULP-velden'!AO72 -> 95 | P58: =+'HULP-velden'!AP72 -> 105
B59: Ten behoeve van de grafiek Evaluatie | H59: ='HULP-velden'!AE73 -> 449000 | J59: =+'HULP-velden'!AJ73 -> 44.5 | K59: =+'HULP-velden'!AK73 -> 54.5 | L59: =+'HULP-velden'!AL73 -> 64.5 | M59: =+'HULP-velden'!AM73 -> 74.5 | N59: =+'HULP-velden'!AN73 -> 84.5 | O59: =+'HULP-velden'!AO73 -> 94.5 | P59: =+'HULP-velden'!AP73 -> 104.5
C60: Vergelijkingswaarde | D60: Q-score | E60: in % | F60: Score | G60: Rang | H60: ='HULP-velden'!AE74 -> 448000 | J60: =+'HULP-velden'!AJ74 -> 44 | K60: =+'HULP-velden'!AK74 -> 54 | L60: =+'HULP-velden'!AL74 -> 64 | M60: =+'HULP-velden'!AM74 -> 74 | N60: =+'HULP-velden'!AN74 -> 84 | O60: =+'HULP-velden'!AO74 -> 94 | P60: =+'HULP-velden'!AP74 -> 104
B61: ='HULP-velden'!D51 ->  | C61: ='HULP-velden'!E51 ->  | D61: ='HULP-velden'!F51 ->  | E61: =IF(D61="","",D61/$C$12*100) ->  | F61: =IF(D61="","",'HULP-velden'!H51) ->  | G61: =IF(D61="","",'HULP-velden'!K51) ->  | H61: ='HULP-velden'!AE75 -> 447000 | J61: =+'HULP-velden'!AJ75 -> 43.5 | K61: =+'HULP-velden'!AK75 -> 53.5 | L61: =+'HULP-velden'!AL75 -> 63.5 | M61: =+'HULP-velden'!AM75 -> 73.5 | N61: =+'HULP-velden'!AN75 -> 83.5 | O61: =+'HULP-velden'!AO75 -> 93.5 | P61: =+'HULP-velden'!AP75 -> 103.5
B62: ='HULP-velden'!D52 ->  | C62: ='HULP-velden'!E52 ->  | D62: ='HULP-velden'!F52 ->  | E62: =IF(D62="","",D62/$C$12*100) ->  | F62: =IF(D62="","",'HULP-velden'!H52) ->  | G62: =IF(D62="","",'HULP-velden'!K52) ->  | H62: ='HULP-velden'!AE76 -> 446000 | J62: =+'HULP-velden'!AJ76 -> 43 | K62: =+'HULP-velden'!AK76 -> 53 | L62: =+'HULP-velden'!AL76 -> 63 | M62: =+'HULP-velden'!AM76 -> 73 | N62: =+'HULP-velden'!AN76 -> 83 | O62: =+'HULP-velden'!AO76 -> 93 | P62: =+'HULP-velden'!AP76 -> 103
B63: ='HULP-velden'!D53 ->  | C63: ='HULP-velden'!E53 ->  | D63: ='HULP-velden'!F53 ->  | E63: =IF(D63="","",D63/$C$12*100) ->  | F63: =IF(D63="","",'HULP-velden'!H53) ->  | G63: =IF(D63="","",'HULP-velden'!K53) ->  | H63: ='HULP-velden'!AE77 -> 445000 | J63: =+'HULP-velden'!AJ77 -> 42.5 | K63: =+'HULP-velden'!AK77 -> 52.5 | L63: =+'HULP-velden'!AL77 -> 62.5 | M63: =+'HULP-velden'!AM77 -> 72.5 | N63: =+'HULP-velden'!AN77 -> 82.5 | O63: =+'HULP-velden'!AO77 -> 92.5 | P63: =+'HULP-velden'!AP77 -> 102.5
B64: ='HULP-velden'!D54 ->  | C64: ='HULP-velden'!E54 ->  | D64: ='HULP-velden'!F54 ->  | F64: =IF(D64="","",'HULP-velden'!H54) ->  | G64: =IF(D64="","",'HULP-velden'!K54) ->  | H64: ='HULP-velden'!AE78 -> 444000 | J64: =+'HULP-velden'!AJ78 -> 42 | K64: =+'HULP-velden'!AK78 -> 52 | L64: =+'HULP-velden'!AL78 -> 62 | M64: =+'HULP-velden'!AM78 -> 72 | N64: =+'HULP-velden'!AN78 -> 82 | O64: =+'HULP-velden'!AO78 -> 92 | P64: =+'HULP-velden'!AP78 -> 102
B65: ='HULP-velden'!D55 ->  | C65: ='HULP-velden'!E55 ->  | D65: ='HULP-velden'!F55 ->  | F65: =IF(D65="","",'HULP-velden'!H55) ->  | G65: =IF(D65="","",'HULP-velden'!K55) ->  | H65: ='HULP-velden'!AE79 -> 443000 | J65: =+'HULP-velden'!AJ79 -> 41.5 | K65: =+'HULP-velden'!AK79 -> 51.5 | L65: =+'HULP-velden'!AL79 -> 61.5 | M65: =+'HULP-velden'!AM79 -> 71.5 | N65: =+'HULP-velden'!AN79 -> 81.5 | O65: =+'HULP-velden'!AO79 -> 91.5 | P65: =+'HULP-velden'!AP79 -> 101.5
B66: ='HULP-velden'!D56 ->  | C66: ='HULP-velden'!E56 ->  | D66: ='HULP-velden'!F56 ->  | F66: =IF(D66="","",'HULP-velden'!H56) ->  | G66: =IF(D66="","",'HULP-velden'!K56) ->  | H66: ='HULP-velden'!AE80 -> 442000 | J66: =+'HULP-velden'!AJ80 -> 41 | K66: =+'HULP-velden'!AK80 -> 51 | L66: =+'HULP-velden'!AL80 -> 61 | M66: =+'HULP-velden'!AM80 -> 71 | N66: =+'HULP-velden'!AN80 -> 81 | O66: =+'HULP-velden'!AO80 -> 91 | P66: =+'HULP-velden'!AP80 -> 101
B67: ='HULP-velden'!D57 ->  | C67: ='HULP-velden'!E57 ->  | D67: ='HULP-velden'!F57 ->  | F67: =IF(D67="","",'HULP-velden'!H57) ->  | G67: =IF(D67="","",'HULP-velden'!K57) ->  | H67: ='HULP-velden'!AE81 -> 441000 | J67: =+'HULP-velden'!AJ81 -> 40.5 | K67: =+'HULP-velden'!AK81 -> 50.5 | L67: =+'HULP-velden'!AL81 -> 60.5 | M67: =+'HULP-velden'!AM81 -> 70.5 | N67: =+'HULP-velden'!AN81 -> 80.5 | O67: =+'HULP-velden'!AO81 -> 90.5 | P67: =+'HULP-velden'!AP81 -> 100.5
B68: ='HULP-velden'!D58 ->  | C68: ='HULP-velden'!E58 ->  | D68: ='HULP-velden'!F58 ->  | F68: =IF(D68="","",'HULP-velden'!H58) ->  | G68: =IF(D68="","",'HULP-velden'!K58) ->  | H68: ='HULP-velden'!AE82 -> 440000 | J68: =+'HULP-velden'!AJ82 -> 40 | K68: =+'HULP-velden'!AK82 -> 50 | L68: =+'HULP-velden'!AL82 -> 60 | M68: =+'HULP-velden'!AM82 -> 70 | N68: =+'HULP-velden'!AN82 -> 80 | O68: =+'HULP-velden'!AO82 -> 90 | P68: =+'HULP-velden'!AP82 -> 100
B69: ='HULP-velden'!D59 ->  | C69: ='HULP-velden'!E59 ->  | D69: ='HULP-velden'!F59 ->  | F69: =IF(D69="","",'HULP-velden'!H59) ->  | G69: =IF(D69="","",'HULP-velden'!K59) ->  | H69: ='HULP-velden'!AE83 -> 439000 | J69: =+'HULP-velden'!AJ83 -> 39.5 | K69: =+'HULP-velden'!AK83 -> 49.5 | L69: =+'HULP-velden'!AL83 -> 59.5 | M69: =+'HULP-velden'!AM83 -> 69.5 | N69: =+'HULP-velden'!AN83 -> 79.5 | O69: =+'HULP-velden'!AO83 -> 89.5 | P69: =+'HULP-velden'!AP83 -> 99.5
B70: ='HULP-velden'!D60 ->  | C70: ='HULP-velden'!E60 ->  | D70: ='HULP-velden'!F60 ->  | F70: =IF(D70="","",'HULP-velden'!H60) ->  | G70: =IF(D70="","",'HULP-velden'!K60) ->  | H70: ='HULP-velden'!AE84 -> 438000 | J70: =+'HULP-velden'!AJ84 -> 39 | K70: =+'HULP-velden'!AK84 -> 49 | L70: =+'HULP-velden'!AL84 -> 59 | M70: =+'HULP-velden'!AM84 -> 69 | N70: =+'HULP-velden'!AN84 -> 79 | O70: =+'HULP-velden'!AO84 -> 89 | P70: =+'HULP-velden'!AP84 -> 99
B71: ='HULP-velden'!D61 ->  | C71: ='HULP-velden'!E61 ->  | D71: ='HULP-velden'!F61 ->  | F71: =IF(D71="","",'HULP-velden'!H61) ->  | G71: =IF(D71="","",'HULP-velden'!K61) ->  | H71: ='HULP-velden'!AE85 -> 437000 | J71: =+'HULP-velden'!AJ85 -> 38.5 | K71: =+'HULP-velden'!AK85 -> 48.5 | L71: =+'HULP-velden'!AL85 -> 58.5 | M71: =+'HULP-velden'!AM85 -> 68.5 | N71: =+'HULP-velden'!AN85 -> 78.5 | O71: =+'HULP-velden'!AO85 -> 88.5 | P71: =+'HULP-velden'!AP85 -> 98.5
B72: ='HULP-velden'!D62 ->  | C72: ='HULP-velden'!E62 ->  | D72: ='HULP-velden'!F62 ->  | F72: =IF(D72="","",'HULP-velden'!H62) ->  | G72: =IF(D72="","",'HULP-velden'!K62) ->  | H72: ='HULP-velden'!AE86 -> 436000 | J72: =+'HULP-velden'!AJ86 -> 38 | K72: =+'HULP-velden'!AK86 -> 48 | L72: =+'HULP-velden'!AL86 -> 58 | M72: =+'HULP-velden'!AM86 -> 68 | N72: =+'HULP-velden'!AN86 -> 78 | O72: =+'HULP-velden'!AO86 -> 88 | P72: =+'HULP-velden'!AP86 -> 98
B73: ='HULP-velden'!D63 -> Referentie | C73: ='HULP-velden'!E63 -> 400000 | D73: ='HULP-velden'!F63 -> 250 | E73: 50 | F73: =IF(D73="","",'HULP-velden'!H63) -> 500 | H73: ='HULP-velden'!AE87 -> 435000 | J73: =+'HULP-velden'!AJ87 -> 37.5 | K73: =+'HULP-velden'!AK87 -> 47.5 | L73: =+'HULP-velden'!AL87 -> 57.5 | M73: =+'HULP-velden'!AM87 -> 67.5 | N73: =+'HULP-velden'!AN87 -> 77.5 | O73: =+'HULP-velden'!AO87 -> 87.5 | P73: =+'HULP-velden'!AP87 -> 97.5
H74: ='HULP-velden'!AE88 -> 434000 | J74: =+'HULP-velden'!AJ88 -> 37 | K74: =+'HULP-velden'!AK88 -> 47 | L74: =+'HULP-velden'!AL88 -> 57 | M74: =+'HULP-velden'!AM88 -> 67 | N74: =+'HULP-velden'!AN88 -> 77 | O74: =+'HULP-velden'!AO88 -> 87 | P74: =+'HULP-velden'!AP88 -> 97
H75: ='HULP-velden'!AE89 -> 433000 | J75: =+'HULP-velden'!AJ89 -> 36.5 | K75: =+'HULP-velden'!AK89 -> 46.5 | L75: =+'HULP-velden'!AL89 -> 56.5 | M75: =+'HULP-velden'!AM89 -> 66.5 | N75: =+'HULP-velden'!AN89 -> 76.5 | O75: =+'HULP-velden'!AO89 -> 86.5 | P75: =+'HULP-velden'!AP89 -> 96.5
H76: ='HULP-velden'!AE90 -> 432000 | J76: =+'HULP-velden'!AJ90 -> 36 | K76: =+'HULP-velden'!AK90 -> 46 | L76: =+'HULP-velden'!AL90 -> 56 | M76: =+'HULP-velden'!AM90 -> 66 | N76: =+'HULP-velden'!AN90 -> 76 | O76: =+'HULP-velden'!AO90 -> 86 | P76: =+'HULP-velden'!AP90 -> 96
H77: ='HULP-velden'!AE91 -> 431000 | J77: =+'HULP-velden'!AJ91 -> 35.5 | K77: =+'HULP-velden'!AK91 -> 45.5 | L77: =+'HULP-velden'!AL91 -> 55.5 | M77: =+'HULP-velden'!AM91 -> 65.5 | N77: =+'HULP-velden'!AN91 -> 75.5 | O77: =+'HULP-velden'!AO91 -> 85.5 | P77: =+'HULP-velden'!AP91 -> 95.5
H78: ='HULP-velden'!AE92 -> 430000 | J78: =+'HULP-velden'!AJ92 -> 35 | K78: =+'HULP-velden'!AK92 -> 45 | L78: =+'HULP-velden'!AL92 -> 55 | M78: =+'HULP-velden'!AM92 -> 65 | N78: =+'HULP-velden'!AN92 -> 75 | O78: =+'HULP-velden'!AO92 -> 85 | P78: =+'HULP-velden'!AP92 -> 95
H79: ='HULP-velden'!AE93 -> 429000 | J79: =+'HULP-velden'!AJ93 -> 34.5 | K79: =+'HULP-velden'!AK93 -> 44.5 | L79: =+'HULP-velden'!AL93 -> 54.5 | M79: =+'HULP-velden'!AM93 -> 64.5 | N79: =+'HULP-velden'!AN93 -> 74.5 | O79: =+'HULP-velden'!AO93 -> 84.5 | P79: =+'HULP-velden'!AP93 -> 94.5
H80: ='HULP-velden'!AE94 -> 428000 | J80: =+'HULP-velden'!AJ94 -> 34 | K80: =+'HULP-velden'!AK94 -> 44 | L80: =+'HULP-velden'!AL94 -> 54 | M80: =+'HULP-velden'!AM94 -> 64 | N80: =+'HULP-velden'!AN94 -> 74 | O80: =+'HULP-velden'!AO94 -> 84 | P80: =+'HULP-velden'!AP94 -> 94
H81: ='HULP-velden'!AE95 -> 427000 | J81: =+'HULP-velden'!AJ95 -> 33.5 | K81: =+'HULP-velden'!AK95 -> 43.5 | L81: =+'HULP-velden'!AL95 -> 53.5 | M81: =+'HULP-velden'!AM95 -> 63.5 | N81: =+'HULP-velden'!AN95 -> 73.5 | O81: =+'HULP-velden'!AO95 -> 83.5 | P81: =+'HULP-velden'!AP95 -> 93.5
H82: ='HULP-velden'!AE96 -> 426000 | J82: =+'HULP-velden'!AJ96 -> 33 | K82: =+'HULP-velden'!AK96 -> 43 | L82: =+'HULP-velden'!AL96 -> 53 | M82: =+'HULP-velden'!AM96 -> 63 | N82: =+'HULP-velden'!AN96 -> 73 | O82: =+'HULP-velden'!AO96 -> 83 | P82: =+'HULP-velden'!AP96 -> 93
H83: ='HULP-velden'!AE97 -> 425000 | J83: =+'HULP-velden'!AJ97 -> 32.5 | K83: =+'HULP-velden'!AK97 -> 42.5 | L83: =+'HULP-velden'!AL97 -> 52.5 | M83: =+'HULP-velden'!AM97 -> 62.5 | N83: =+'HULP-velden'!AN97 -> 72.5 | O83: =+'HULP-velden'!AO97 -> 82.5 | P83: =+'HULP-velden'!AP97 -> 92.5
H84: ='HULP-velden'!AE98 -> 424000 | J84: =+'HULP-velden'!AJ98 -> 32 | K84: =+'HULP-velden'!AK98 -> 42 | L84: =+'HULP-velden'!AL98 -> 52 | M84: =+'HULP-velden'!AM98 -> 62 | N84: =+'HULP-velden'!AN98 -> 72 | O84: =+'HULP-velden'!AO98 -> 82 | P84: =+'HULP-velden'!AP98 -> 92
H85: ='HULP-velden'!AE99 -> 423000 | J85: =+'HULP-velden'!AJ99 -> 31.5 | K85: =+'HULP-velden'!AK99 -> 41.5 | L85: =+'HULP-velden'!AL99 -> 51.5 | M85: =+'HULP-velden'!AM99 -> 61.5 | N85: =+'HULP-velden'!AN99 -> 71.5 | O85: =+'HULP-velden'!AO99 -> 81.5 | P85: =+'HULP-velden'!AP99 -> 91.5
H86: ='HULP-velden'!AE100 -> 422000 | J86: =+'HULP-velden'!AJ100 -> 31 | K86: =+'HULP-velden'!AK100 -> 41 | L86: =+'HULP-velden'!AL100 -> 51 | M86: =+'HULP-velden'!AM100 -> 61 | N86: =+'HULP-velden'!AN100 -> 71 | O86: =+'HULP-velden'!AO100 -> 81 | P86: =+'HULP-velden'!AP100 -> 91
H87: ='HULP-velden'!AE101 -> 421000 | J87: =+'HULP-velden'!AJ101 -> 30.5 | K87: =+'HULP-velden'!AK101 -> 40.5 | L87: =+'HULP-velden'!AL101 -> 50.5 | M87: =+'HULP-velden'!AM101 -> 60.5 | N87: =+'HULP-velden'!AN101 -> 70.5 | O87: =+'HULP-velden'!AO101 -> 80.5 | P87: =+'HULP-velden'!AP101 -> 90.5
H88: ='HULP-velden'!AE102 -> 420000 | J88: =+'HULP-velden'!AJ102 -> 30 | K88: =+'HULP-velden'!AK102 -> 40 | L88: =+'HULP-velden'!AL102 -> 50 | M88: =+'HULP-velden'!AM102 -> 60 | N88: =+'HULP-velden'!AN102 -> 70 | O88: =+'HULP-velden'!AO102 -> 80 | P88: =+'HULP-velden'!AP102 -> 90
H89: ='HULP-velden'!AE103 -> 419000 | J89: =+'HULP-velden'!AJ103 -> 29.5 | K89: =+'HULP-velden'!AK103 -> 39.5 | L89: =+'HULP-velden'!AL103 -> 49.5 | M89: =+'HULP-velden'!AM103 -> 59.5 | N89: =+'HULP-velden'!AN103 -> 69.5 | O89: =+'HULP-velden'!AO103 -> 79.5 | P89: =+'HULP-velden'!AP103 -> 89.5
H90: ='HULP-velden'!AE104 -> 418000 | J90: =+'HULP-velden'!AJ104 -> 29 | K90: =+'HULP-velden'!AK104 -> 39 | L90: =+'HULP-velden'!AL104 -> 49 | M90: =+'HULP-velden'!AM104 -> 59 | N90: =+'HULP-velden'!AN104 -> 69 | O90: =+'HULP-velden'!AO104 -> 79 | P90: =+'HULP-velden'!AP104 -> 89
H91: ='HULP-velden'!AE105 -> 417000 | J91: =+'HULP-velden'!AJ105 -> 28.5 | K91: =+'HULP-velden'!AK105 -> 38.5 | L91: =+'HULP-velden'!AL105 -> 48.5 | M91: =+'HULP-velden'!AM105 -> 58.5 | N91: =+'HULP-velden'!AN105 -> 68.5 | O91: =+'HULP-velden'!AO105 -> 78.5 | P91: =+'HULP-velden'!AP105 -> 88.5
H92: ='HULP-velden'!AE106 -> 416000 | J92: =+'HULP-velden'!AJ106 -> 28 | K92: =+'HULP-velden'!AK106 -> 38 | L92: =+'HULP-velden'!AL106 -> 48 | M92: =+'HULP-velden'!AM106 -> 58 | N92: =+'HULP-velden'!AN106 -> 68 | O92: =+'HULP-velden'!AO106 -> 78 | P92: =+'HULP-velden'!AP106 -> 88
H93: ='HULP-velden'!AE107 -> 415000 | J93: =+'HULP-velden'!AJ107 -> 27.5 | K93: =+'HULP-velden'!AK107 -> 37.5 | L93: =+'HULP-velden'!AL107 -> 47.5 | M93: =+'HULP-velden'!AM107 -> 57.5 | N93: =+'HULP-velden'!AN107 -> 67.5 | O93: =+'HULP-velden'!AO107 -> 77.5 | P93: =+'HULP-velden'!AP107 -> 87.5
H94: ='HULP-velden'!AE108 -> 414000 | J94: =+'HULP-velden'!AJ108 -> 27 | K94: =+'HULP-velden'!AK108 -> 37 | L94: =+'HULP-velden'!AL108 -> 47 | M94: =+'HULP-velden'!AM108 -> 57 | N94: =+'HULP-velden'!AN108 -> 67 | O94: =+'HULP-velden'!AO108 -> 77 | P94: =+'HULP-velden'!AP108 -> 87
H95: ='HULP-velden'!AE109 -> 413000 | J95: =+'HULP-velden'!AJ109 -> 26.5 | K95: =+'HULP-velden'!AK109 -> 36.5 | L95: =+'HULP-velden'!AL109 -> 46.5 | M95: =+'HULP-velden'!AM109 -> 56.5 | N95: =+'HULP-velden'!AN109 -> 66.5 | O95: =+'HULP-velden'!AO109 -> 76.5 | P95: =+'HULP-velden'!AP109 -> 86.5
H96: ='HULP-velden'!AE110 -> 412000 | J96: =+'HULP-velden'!AJ110 -> 26 | K96: =+'HULP-velden'!AK110 -> 36 | L96: =+'HULP-velden'!AL110 -> 46 | M96: =+'HULP-velden'!AM110 -> 56 | N96: =+'HULP-velden'!AN110 -> 66 | O96: =+'HULP-velden'!AO110 -> 76 | P96: =+'HULP-velden'!AP110 -> 86
H97: ='HULP-velden'!AE111 -> 411000 | J97: =+'HULP-velden'!AJ111 -> 25.5 | K97: =+'HULP-velden'!AK111 -> 35.5 | L97: =+'HULP-velden'!AL111 -> 45.5 | M97: =+'HULP-velden'!AM111 -> 55.5 | N97: =+'HULP-velden'!AN111 -> 65.5 | O97: =+'HULP-velden'!AO111 -> 75.5 | P97: =+'HULP-velden'!AP111 -> 85.5
H98: ='HULP-velden'!AE112 -> 410000 | J98: =+'HULP-velden'!AJ112 -> 25 | K98: =+'HULP-velden'!AK112 -> 35 | L98: =+'HULP-velden'!AL112 -> 45 | M98: =+'HULP-velden'!AM112 -> 55 | N98: =+'HULP-velden'!AN112 -> 65 | O98: =+'HULP-velden'!AO112 -> 75 | P98: =+'HULP-velden'!AP112 -> 85
H99: ='HULP-velden'!AE113 -> 409000 | J99: =+'HULP-velden'!AJ113 -> 24.5 | K99: =+'HULP-velden'!AK113 -> 34.5 | L99: =+'HULP-velden'!AL113 -> 44.5 | M99: =+'HULP-velden'!AM113 -> 54.5 | N99: =+'HULP-velden'!AN113 -> 64.5 | O99: =+'HULP-velden'!AO113 -> 74.5 | P99: =+'HULP-velden'!AP113 -> 84.5
H100: ='HULP-velden'!AE114 -> 408000 | J100: =+'HULP-velden'!AJ114 -> 24 | K100: =+'HULP-velden'!AK114 -> 34 | L100: =+'HULP-velden'!AL114 -> 44 | M100: =+'HULP-velden'!AM114 -> 54 | N100: =+'HULP-velden'!AN114 -> 64 | O100: =+'HULP-velden'!AO114 -> 74 | P100: =+'HULP-velden'!AP114 -> 84
H101: ='HULP-velden'!AE115 -> 407000 | J101: =+'HULP-velden'!AJ115 -> 23.5 | K101: =+'HULP-velden'!AK115 -> 33.5 | L101: =+'HULP-velden'!AL115 -> 43.5 | M101: =+'HULP-velden'!AM115 -> 53.5 | N101: =+'HULP-velden'!AN115 -> 63.5 | O101: =+'HULP-velden'!AO115 -> 73.5 | P101: =+'HULP-velden'!AP115 -> 83.5
H102: ='HULP-velden'!AE116 -> 406000 | J102: =+'HULP-velden'!AJ116 -> 23 | K102: =+'HULP-velden'!AK116 -> 33 | L102: =+'HULP-velden'!AL116 -> 43 | M102: =+'HULP-velden'!AM116 -> 53 | N102: =+'HULP-velden'!AN116 -> 63 | O102: =+'HULP-velden'!AO116 -> 73 | P102: =+'HULP-velden'!AP116 -> 83
H103: ='HULP-velden'!AE117 -> 405000 | J103: =+'HULP-velden'!AJ117 -> 22.5 | K103: =+'HULP-velden'!AK117 -> 32.5 | L103: =+'HULP-velden'!AL117 -> 42.5 | M103: =+'HULP-velden'!AM117 -> 52.5 | N103: =+'HULP-velden'!AN117 -> 62.5 | O103: =+'HULP-velden'!AO117 -> 72.5 | P103: =+'HULP-velden'!AP117 -> 82.5
H104: ='HULP-velden'!AE118 -> 404000 | J104: =+'HULP-velden'!AJ118 -> 22 | K104: =+'HULP-velden'!AK118 -> 32 | L104: =+'HULP-velden'!AL118 -> 42 | M104: =+'HULP-velden'!AM118 -> 52 | N104: =+'HULP-velden'!AN118 -> 62 | O104: =+'HULP-velden'!AO118 -> 72 | P104: =+'HULP-velden'!AP118 -> 82
H105: ='HULP-velden'!AE119 -> 403000 | J105: =+'HULP-velden'!AJ119 -> 21.5 | K105: =+'HULP-velden'!AK119 -> 31.5 | L105: =+'HULP-velden'!AL119 -> 41.5 | M105: =+'HULP-velden'!AM119 -> 51.5 | N105: =+'HULP-velden'!AN119 -> 61.5 | O105: =+'HULP-velden'!AO119 -> 71.5 | P105: =+'HULP-velden'!AP119 -> 81.5
H106: ='HULP-velden'!AE120 -> 402000 | J106: =+'HULP-velden'!AJ120 -> 21 | K106: =+'HULP-velden'!AK120 -> 31 | L106: =+'HULP-velden'!AL120 -> 41 | M106: =+'HULP-velden'!AM120 -> 51 | N106: =+'HULP-velden'!AN120 -> 61 | O106: =+'HULP-velden'!AO120 -> 71 | P106: =+'HULP-velden'!AP120 -> 81
H107: ='HULP-velden'!AE121 -> 401000 | J107: =+'HULP-velden'!AJ121 -> 20.5 | K107: =+'HULP-velden'!AK121 -> 30.5 | L107: =+'HULP-velden'!AL121 -> 40.5 | M107: =+'HULP-velden'!AM121 -> 50.5 | N107: =+'HULP-velden'!AN121 -> 60.5 | O107: =+'HULP-velden'!AO121 -> 70.5 | P107: =+'HULP-velden'!AP121 -> 80.5
H108: ='HULP-velden'!AE122 -> 400000 | J108: =+'HULP-velden'!AJ122 -> 20 | K108: =+'HULP-velden'!AK122 -> 30 | L108: =+'HULP-velden'!AL122 -> 40 | M108: =+'HULP-velden'!AM122 -> 50 | N108: =+'HULP-velden'!AN122 -> 60 | O108: =+'HULP-velden'!AO122 -> 70 | P108: =+'HULP-velden'!AP122 -> 80
H109: ='HULP-velden'!AE123 -> 399000 | J109: =+'HULP-velden'!AJ123 -> 19.5 | K109: =+'HULP-velden'!AK123 -> 29.5 | L109: =+'HULP-velden'!AL123 -> 39.5 | M109: =+'HULP-velden'!AM123 -> 49.5 | N109: =+'HULP-velden'!AN123 -> 59.5 | O109: =+'HULP-velden'!AO123 -> 69.5 | P109: =+'HULP-velden'!AP123 -> 79.5
H110: ='HULP-velden'!AE124 -> 398000 | J110: =+'HULP-velden'!AJ124 -> 19 | K110: =+'HULP-velden'!AK124 -> 29 | L110: =+'HULP-velden'!AL124 -> 39 | M110: =+'HULP-velden'!AM124 -> 49 | N110: =+'HULP-velden'!AN124 -> 59 | O110: =+'HULP-velden'!AO124 -> 69 | P110: =+'HULP-velden'!AP124 -> 79
H111: ='HULP-velden'!AE125 -> 397000 | J111: =+'HULP-velden'!AJ125 -> 18.5 | K111: =+'HULP-velden'!AK125 -> 28.5 | L111: =+'HULP-velden'!AL125 -> 38.5 | M111: =+'HULP-velden'!AM125 -> 48.5 | N111: =+'HULP-velden'!AN125 -> 58.5 | O111: =+'HULP-velden'!AO125 -> 68.5 | P111: =+'HULP-velden'!AP125 -> 78.5
H112: ='HULP-velden'!AE126 -> 396000 | J112: =+'HULP-velden'!AJ126 -> 18 | K112: =+'HULP-velden'!AK126 -> 28 | L112: =+'HULP-velden'!AL126 -> 38 | M112: =+'HULP-velden'!AM126 -> 48 | N112: =+'HULP-velden'!AN126 -> 58 | O112: =+'HULP-velden'!AO126 -> 68 | P112: =+'HULP-velden'!AP126 -> 78
H113: ='HULP-velden'!AE127 -> 395000 | J113: =+'HULP-velden'!AJ127 -> 17.5 | K113: =+'HULP-velden'!AK127 -> 27.5 | L113: =+'HULP-velden'!AL127 -> 37.5 | M113: =+'HULP-velden'!AM127 -> 47.5 | N113: =+'HULP-velden'!AN127 -> 57.5 | O113: =+'HULP-velden'!AO127 -> 67.5 | P113: =+'HULP-velden'!AP127 -> 77.5
H114: ='HULP-velden'!AE128 -> 394000 | J114: =+'HULP-velden'!AJ128 -> 17 | K114: =+'HULP-velden'!AK128 -> 27 | L114: =+'HULP-velden'!AL128 -> 37 | M114: =+'HULP-velden'!AM128 -> 47 | N114: =+'HULP-velden'!AN128 -> 57 | O114: =+'HULP-velden'!AO128 -> 67 | P114: =+'HULP-velden'!AP128 -> 77
H115: ='HULP-velden'!AE129 -> 393000 | J115: =+'HULP-velden'!AJ129 -> 16.5 | K115: =+'HULP-velden'!AK129 -> 26.5 | L115: =+'HULP-velden'!AL129 -> 36.5 | M115: =+'HULP-velden'!AM129 -> 46.5 | N115: =+'HULP-velden'!AN129 -> 56.5 | O115: =+'HULP-velden'!AO129 -> 66.5 | P115: =+'HULP-velden'!AP129 -> 76.5
H116: ='HULP-velden'!AE130 -> 392000 | J116: =+'HULP-velden'!AJ130 -> 16 | K116: =+'HULP-velden'!AK130 -> 26 | L116: =+'HULP-velden'!AL130 -> 36 | M116: =+'HULP-velden'!AM130 -> 46 | N116: =+'HULP-velden'!AN130 -> 56 | O116: =+'HULP-velden'!AO130 -> 66 | P116: =+'HULP-velden'!AP130 -> 76
H117: ='HULP-velden'!AE131 -> 391000 | J117: =+'HULP-velden'!AJ131 -> 15.5 | K117: =+'HULP-velden'!AK131 -> 25.5 | L117: =+'HULP-velden'!AL131 -> 35.5 | M117: =+'HULP-velden'!AM131 -> 45.5 | N117: =+'HULP-velden'!AN131 -> 55.5 | O117: =+'HULP-velden'!AO131 -> 65.5 | P117: =+'HULP-velden'!AP131 -> 75.5
H118: ='HULP-velden'!AE132 -> 390000 | J118: =+'HULP-velden'!AJ132 -> 15 | K118: =+'HULP-velden'!AK132 -> 25 | L118: =+'HULP-velden'!AL132 -> 35 | M118: =+'HULP-velden'!AM132 -> 45 | N118: =+'HULP-velden'!AN132 -> 55 | O118: =+'HULP-velden'!AO132 -> 65 | P118: =+'HULP-velden'!AP132 -> 75
H119: ='HULP-velden'!AE133 -> 389000 | J119: =+'HULP-velden'!AJ133 -> 14.5 | K119: =+'HULP-velden'!AK133 -> 24.5 | L119: =+'HULP-velden'!AL133 -> 34.5 | M119: =+'HULP-velden'!AM133 -> 44.5 | N119: =+'HULP-velden'!AN133 -> 54.5 | O119: =+'HULP-velden'!AO133 -> 64.5 | P119: =+'HULP-velden'!AP133 -> 74.5
H120: ='HULP-velden'!AE134 -> 388000 | J120: =+'HULP-velden'!AJ134 -> 14 | K120: =+'HULP-velden'!AK134 -> 24 | L120: =+'HULP-velden'!AL134 -> 34 | M120: =+'HULP-velden'!AM134 -> 44 | N120: =+'HULP-velden'!AN134 -> 54 | O120: =+'HULP-velden'!AO134 -> 64 | P120: =+'HULP-velden'!AP134 -> 74
H121: ='HULP-velden'!AE135 -> 387000 | J121: =+'HULP-velden'!AJ135 -> 13.5 | K121: =+'HULP-velden'!AK135 -> 23.5 | L121: =+'HULP-velden'!AL135 -> 33.5 | M121: =+'HULP-velden'!AM135 -> 43.5 | N121: =+'HULP-velden'!AN135 -> 53.5 | O121: =+'HULP-velden'!AO135 -> 63.5 | P121: =+'HULP-velden'!AP135 -> 73.5
H122: ='HULP-velden'!AE136 -> 386000 | J122: =+'HULP-velden'!AJ136 -> 13 | K122: =+'HULP-velden'!AK136 -> 23 | L122: =+'HULP-velden'!AL136 -> 33 | M122: =+'HULP-velden'!AM136 -> 43 | N122: =+'HULP-velden'!AN136 -> 53 | O122: =+'HULP-velden'!AO136 -> 63 | P122: =+'HULP-velden'!AP136 -> 73
H123: ='HULP-velden'!AE137 -> 385000 | J123: =+'HULP-velden'!AJ137 -> 12.5 | K123: =+'HULP-velden'!AK137 -> 22.5 | L123: =+'HULP-velden'!AL137 -> 32.5 | M123: =+'HULP-velden'!AM137 -> 42.5 | N123: =+'HULP-velden'!AN137 -> 52.5 | O123: =+'HULP-velden'!AO137 -> 62.5 | P123: =+'HULP-velden'!AP137 -> 72.5
H124: ='HULP-velden'!AE138 -> 384000 | J124: =+'HULP-velden'!AJ138 -> 12 | K124: =+'HULP-velden'!AK138 -> 22 | L124: =+'HULP-velden'!AL138 -> 32 | M124: =+'HULP-velden'!AM138 -> 42 | N124: =+'HULP-velden'!AN138 -> 52 | O124: =+'HULP-velden'!AO138 -> 62 | P124: =+'HULP-velden'!AP138 -> 72
H125: ='HULP-velden'!AE139 -> 383000 | J125: =+'HULP-velden'!AJ139 -> 11.5 | K125: =+'HULP-velden'!AK139 -> 21.5 | L125: =+'HULP-velden'!AL139 -> 31.5 | M125: =+'HULP-velden'!AM139 -> 41.5 | N125: =+'HULP-velden'!AN139 -> 51.5 | O125: =+'HULP-velden'!AO139 -> 61.5 | P125: =+'HULP-velden'!AP139 -> 71.5
H126: ='HULP-velden'!AE140 -> 382000 | J126: =+'HULP-velden'!AJ140 -> 11 | K126: =+'HULP-velden'!AK140 -> 21 | L126: =+'HULP-velden'!AL140 -> 31 | M126: =+'HULP-velden'!AM140 -> 41 | N126: =+'HULP-velden'!AN140 -> 51 | O126: =+'HULP-velden'!AO140 -> 61 | P126: =+'HULP-velden'!AP140 -> 71
H127: ='HULP-velden'!AE141 -> 381000 | J127: =+'HULP-velden'!AJ141 -> 10.5 | K127: =+'HULP-velden'!AK141 -> 20.5 | L127: =+'HULP-velden'!AL141 -> 30.5 | M127: =+'HULP-velden'!AM141 -> 40.5 | N127: =+'HULP-velden'!AN141 -> 50.5 | O127: =+'HULP-velden'!AO141 -> 60.5 | P127: =+'HULP-velden'!AP141 -> 70.5
H128: ='HULP-velden'!AE142 -> 380000 | J128: =+'HULP-velden'!AJ142 -> 10 | K128: =+'HULP-velden'!AK142 -> 20 | L128: =+'HULP-velden'!AL142 -> 30 | M128: =+'HULP-velden'!AM142 -> 40 | N128: =+'HULP-velden'!AN142 -> 50 | O128: =+'HULP-velden'!AO142 -> 60 | P128: =+'HULP-velden'!AP142 -> 70
H129: ='HULP-velden'!AE143 -> 379000 | J129: =+'HULP-velden'!AJ143 -> 9.5 | K129: =+'HULP-velden'!AK143 -> 19.5 | L129: =+'HULP-velden'!AL143 -> 29.5 | M129: =+'HULP-velden'!AM143 -> 39.5 | N129: =+'HULP-velden'!AN143 -> 49.5 | O129: =+'HULP-velden'!AO143 -> 59.5 | P129: =+'HULP-velden'!AP143 -> 69.5
H130: ='HULP-velden'!AE144 -> 378000 | J130: =+'HULP-velden'!AJ144 -> 9 | K130: =+'HULP-velden'!AK144 -> 19 | L130: =+'HULP-velden'!AL144 -> 29 | M130: =+'HULP-velden'!AM144 -> 39 | N130: =+'HULP-velden'!AN144 -> 49 | O130: =+'HULP-velden'!AO144 -> 59 | P130: =+'HULP-velden'!AP144 -> 69
H131: ='HULP-velden'!AE145 -> 377000 | J131: =+'HULP-velden'!AJ145 -> 8.5 | K131: =+'HULP-velden'!AK145 -> 18.5 | L131: =+'HULP-velden'!AL145 -> 28.5 | M131: =+'HULP-velden'!AM145 -> 38.5 | N131: =+'HULP-velden'!AN145 -> 48.5 | O131: =+'HULP-velden'!AO145 -> 58.5 | P131: =+'HULP-velden'!AP145 -> 68.5
H132: ='HULP-velden'!AE146 -> 376000 | J132: =+'HULP-velden'!AJ146 -> 8 | K132: =+'HULP-velden'!AK146 -> 18 | L132: =+'HULP-velden'!AL146 -> 28 | M132: =+'HULP-velden'!AM146 -> 38 | N132: =+'HULP-velden'!AN146 -> 48 | O132: =+'HULP-velden'!AO146 -> 58 | P132: =+'HULP-velden'!AP146 -> 68
H133: ='HULP-velden'!AE147 -> 375000 | J133: =+'HULP-velden'!AJ147 -> 7.5 | K133: =+'HULP-velden'!AK147 -> 17.5 | L133: =+'HULP-velden'!AL147 -> 27.5 | M133: =+'HULP-velden'!AM147 -> 37.5 | N133: =+'HULP-velden'!AN147 -> 47.5 | O133: =+'HULP-velden'!AO147 -> 57.5 | P133: =+'HULP-velden'!AP147 -> 67.5
H134: ='HULP-velden'!AE148 -> 374000 | J134: =+'HULP-velden'!AJ148 -> 7 | K134: =+'HULP-velden'!AK148 -> 17 | L134: =+'HULP-velden'!AL148 -> 27 | M134: =+'HULP-velden'!AM148 -> 37 | N134: =+'HULP-velden'!AN148 -> 47 | O134: =+'HULP-velden'!AO148 -> 57 | P134: =+'HULP-velden'!AP148 -> 67
H135: ='HULP-velden'!AE149 -> 373000 | J135: =+'HULP-velden'!AJ149 -> 6.5 | K135: =+'HULP-velden'!AK149 -> 16.5 | L135: =+'HULP-velden'!AL149 -> 26.5 | M135: =+'HULP-velden'!AM149 -> 36.5 | N135: =+'HULP-velden'!AN149 -> 46.5 | O135: =+'HULP-velden'!AO149 -> 56.5 | P135: =+'HULP-velden'!AP149 -> 66.5
H136: ='HULP-velden'!AE150 -> 372000 | J136: =+'HULP-velden'!AJ150 -> 6 | K136: =+'HULP-velden'!AK150 -> 16 | L136: =+'HULP-velden'!AL150 -> 26 | M136: =+'HULP-velden'!AM150 -> 36 | N136: =+'HULP-velden'!AN150 -> 46 | O136: =+'HULP-velden'!AO150 -> 56 | P136: =+'HULP-velden'!AP150 -> 66
H137: ='HULP-velden'!AE151 -> 371000 | J137: =+'HULP-velden'!AJ151 -> 5.5 | K137: =+'HULP-velden'!AK151 -> 15.5 | L137: =+'HULP-velden'!AL151 -> 25.5 | M137: =+'HULP-velden'!AM151 -> 35.5 | N137: =+'HULP-velden'!AN151 -> 45.5 | O137: =+'HULP-velden'!AO151 -> 55.5 | P137: =+'HULP-velden'!AP151 -> 65.5
H138: ='HULP-velden'!AE152 -> 370000 | J138: =+'HULP-velden'!AJ152 -> 5 | K138: =+'HULP-velden'!AK152 -> 15 | L138: =+'HULP-velden'!AL152 -> 25 | M138: =+'HULP-velden'!AM152 -> 35 | N138: =+'HULP-velden'!AN152 -> 45 | O138: =+'HULP-velden'!AO152 -> 55 | P138: =+'HULP-velden'!AP152 -> 65
H139: ='HULP-velden'!AE153 -> 369000 | J139: =+'HULP-velden'!AJ153 -> 4.5 | K139: =+'HULP-velden'!AK153 -> 14.5 | L139: =+'HULP-velden'!AL153 -> 24.5 | M139: =+'HULP-velden'!AM153 -> 34.5 | N139: =+'HULP-velden'!AN153 -> 44.5 | O139: =+'HULP-velden'!AO153 -> 54.5 | P139: =+'HULP-velden'!AP153 -> 64.5
H140: ='HULP-velden'!AE154 -> 368000 | J140: =+'HULP-velden'!AJ154 -> 4 | K140: =+'HULP-velden'!AK154 -> 14 | L140: =+'HULP-velden'!AL154 -> 24 | M140: =+'HULP-velden'!AM154 -> 34 | N140: =+'HULP-velden'!AN154 -> 44 | O140: =+'HULP-velden'!AO154 -> 54 | P140: =+'HULP-velden'!AP154 -> 64
H141: ='HULP-velden'!AE155 -> 367000 | J141: =+'HULP-velden'!AJ155 -> 3.5 | K141: =+'HULP-velden'!AK155 -> 13.5 | L141: =+'HULP-velden'!AL155 -> 23.5 | M141: =+'HULP-velden'!AM155 -> 33.5 | N141: =+'HULP-velden'!AN155 -> 43.5 | O141: =+'HULP-velden'!AO155 -> 53.5 | P141: =+'HULP-velden'!AP155 -> 63.5
H142: ='HULP-velden'!AE156 -> 366000 | J142: =+'HULP-velden'!AJ156 -> 3 | K142: =+'HULP-velden'!AK156 -> 13 | L142: =+'HULP-velden'!AL156 -> 23 | M142: =+'HULP-velden'!AM156 -> 33 | N142: =+'HULP-velden'!AN156 -> 43 | O142: =+'HULP-velden'!AO156 -> 53 | P142: =+'HULP-velden'!AP156 -> 63
H143: ='HULP-velden'!AE157 -> 365000 | J143: =+'HULP-velden'!AJ157 -> 2.5 | K143: =+'HULP-velden'!AK157 -> 12.5 | L143: =+'HULP-velden'!AL157 -> 22.5 | M143: =+'HULP-velden'!AM157 -> 32.5 | N143: =+'HULP-velden'!AN157 -> 42.5 | O143: =+'HULP-velden'!AO157 -> 52.5 | P143: =+'HULP-velden'!AP157 -> 62.5
H144: ='HULP-velden'!AE158 -> 364000 | J144: =+'HULP-velden'!AJ158 -> 2 | K144: =+'HULP-velden'!AK158 -> 12 | L144: =+'HULP-velden'!AL158 -> 22 | M144: =+'HULP-velden'!AM158 -> 32 | N144: =+'HULP-velden'!AN158 -> 42 | O144: =+'HULP-velden'!AO158 -> 52 | P144: =+'HULP-velden'!AP158 -> 62
H145: ='HULP-velden'!AE159 -> 363000 | J145: =+'HULP-velden'!AJ159 -> 1.5 | K145: =+'HULP-velden'!AK159 -> 11.5 | L145: =+'HULP-velden'!AL159 -> 21.5 | M145: =+'HULP-velden'!AM159 -> 31.5 | N145: =+'HULP-velden'!AN159 -> 41.5 | O145: =+'HULP-velden'!AO159 -> 51.5 | P145: =+'HULP-velden'!AP159 -> 61.5
H146: ='HULP-velden'!AE160 -> 362000 | J146: =+'HULP-velden'!AJ160 -> 1 | K146: =+'HULP-velden'!AK160 -> 11 | L146: =+'HULP-velden'!AL160 -> 21 | M146: =+'HULP-velden'!AM160 -> 31 | N146: =+'HULP-velden'!AN160 -> 41 | O146: =+'HULP-velden'!AO160 -> 51 | P146: =+'HULP-velden'!AP160 -> 61
H147: ='HULP-velden'!AE161 -> 361000 | J147: =+'HULP-velden'!AJ161 -> 0.5 | K147: =+'HULP-velden'!AK161 -> 10.5 | L147: =+'HULP-velden'!AL161 -> 20.5 | M147: =+'HULP-velden'!AM161 -> 30.5 | N147: =+'HULP-velden'!AN161 -> 40.5 | O147: =+'HULP-velden'!AO161 -> 50.5 | P147: =+'HULP-velden'!AP161 -> 60.5
H148: ='HULP-velden'!AE162 -> 360000 | J148: =+'HULP-velden'!AJ162 -> 0 | K148: =+'HULP-velden'!AK162 -> 10 | L148: =+'HULP-velden'!AL162 -> 20 | M148: =+'HULP-velden'!AM162 -> 30 | N148: =+'HULP-velden'!AN162 -> 40 | O148: =+'HULP-velden'!AO162 -> 50 | P148: =+'HULP-velden'!AP162 -> 60
H149: ='HULP-velden'!AE163 -> 359000 | J149: =+'HULP-velden'!AJ163 -> -0.5 | K149: =+'HULP-velden'!AK163 -> 9.5 | L149: =+'HULP-velden'!AL163 -> 19.5 | M149: =+'HULP-velden'!AM163 -> 29.5 | N149: =+'HULP-velden'!AN163 -> 39.5 | O149: =+'HULP-velden'!AO163 -> 49.5 | P149: =+'HULP-velden'!AP163 -> 59.5
H150: ='HULP-velden'!AE164 -> 358000 | J150: =+'HULP-velden'!AJ164 -> -1 | K150: =+'HULP-velden'!AK164 -> 9 | L150: =+'HULP-velden'!AL164 -> 19 | M150: =+'HULP-velden'!AM164 -> 29 | N150: =+'HULP-velden'!AN164 -> 39 | O150: =+'HULP-velden'!AO164 -> 49 | P150: =+'HULP-velden'!AP164 -> 59
H151: ='HULP-velden'!AE165 -> 357000 | J151: =+'HULP-velden'!AJ165 -> -1.5 | K151: =+'HULP-velden'!AK165 -> 8.5 | L151: =+'HULP-velden'!AL165 -> 18.5 | M151: =+'HULP-velden'!AM165 -> 28.5 | N151: =+'HULP-velden'!AN165 -> 38.5 | O151: =+'HULP-velden'!AO165 -> 48.5 | P151: =+'HULP-velden'!AP165 -> 58.5
H152: ='HULP-velden'!AE167 -> 356000 | J152: =+'HULP-velden'!AJ167 -> -2 | K152: =+'HULP-velden'!AK167 -> 8 | L152: =+'HULP-velden'!AL167 -> 18 | M152: =+'HULP-velden'!AM167 -> 28 | N152: =+'HULP-velden'!AN167 -> 38 | O152: =+'HULP-velden'!AO167 -> 48 | P152: =+'HULP-velden'!AP167 -> 58
H153: ='HULP-velden'!AE168 -> 355000 | J153: =+'HULP-velden'!AJ168 -> -2.5 | K153: =+'HULP-velden'!AK168 -> 7.5 | L153: =+'HULP-velden'!AL168 -> 17.5 | M153: =+'HULP-velden'!AM168 -> 27.5 | N153: =+'HULP-velden'!AN168 -> 37.5 | O153: =+'HULP-velden'!AO168 -> 47.5 | P153: =+'HULP-velden'!AP168 -> 57.5
H154: ='HULP-velden'!AE169 -> 354000 | J154: =+'HULP-velden'!AJ169 -> -3 | K154: =+'HULP-velden'!AK169 -> 7 | L154: =+'HULP-velden'!AL169 -> 17 | M154: =+'HULP-velden'!AM169 -> 27 | N154: =+'HULP-velden'!AN169 -> 37 | O154: =+'HULP-velden'!AO169 -> 47 | P154: =+'HULP-velden'!AP169 -> 57
H155: ='HULP-velden'!AE170 -> 353000 | J155: =+'HULP-velden'!AJ170 -> -3.5 | K155: =+'HULP-velden'!AK170 -> 6.5 | L155: =+'HULP-velden'!AL170 -> 16.5 | M155: =+'HULP-velden'!AM170 -> 26.5 | N155: =+'HULP-velden'!AN170 -> 36.5 | O155: =+'HULP-velden'!AO170 -> 46.5 | P155: =+'HULP-velden'!AP170 -> 56.5
H156: ='HULP-velden'!AE171 -> 352000 | J156: =+'HULP-velden'!AJ171 -> -4 | K156: =+'HULP-velden'!AK171 -> 6 | L156: =+'HULP-velden'!AL171 -> 16 | M156: =+'HULP-velden'!AM171 -> 26 | N156: =+'HULP-velden'!AN171 -> 36 | O156: =+'HULP-velden'!AO171 -> 46 | P156: =+'HULP-velden'!AP171 -> 56
H157: ='HULP-velden'!AE172 -> 351000 | J157: =+'HULP-velden'!AJ172 -> -4.5 | K157: =+'HULP-velden'!AK172 -> 5.5 | L157: =+'HULP-velden'!AL172 -> 15.5 | M157: =+'HULP-velden'!AM172 -> 25.5 | N157: =+'HULP-velden'!AN172 -> 35.5 | O157: =+'HULP-velden'!AO172 -> 45.5 | P157: =+'HULP-velden'!AP172 -> 55.5
H158: ='HULP-velden'!AE173 -> 350000 | J158: =+'HULP-velden'!AJ173 -> -5 | K158: =+'HULP-velden'!AK173 -> 5 | L158: =+'HULP-velden'!AL173 -> 15 | M158: =+'HULP-velden'!AM173 -> 25 | N158: =+'HULP-velden'!AN173 -> 35 | O158: =+'HULP-velden'!AO173 -> 45 | P158: =+'HULP-velden'!AP173 -> 55
H159: ='HULP-velden'!AE174 -> 349000 | J159: =+'HULP-velden'!AJ174 -> -5.5 | K159: =+'HULP-velden'!AK174 -> 4.5 | L159: =+'HULP-velden'!AL174 -> 14.5 | M159: =+'HULP-velden'!AM174 -> 24.5 | N159: =+'HULP-velden'!AN174 -> 34.5 | O159: =+'HULP-velden'!AO174 -> 44.5 | P159: =+'HULP-velden'!AP174 -> 54.5
H160: ='HULP-velden'!AE175 -> 348000 | J160: =+'HULP-velden'!AJ175 -> -6 | K160: =+'HULP-velden'!AK175 -> 4 | L160: =+'HULP-velden'!AL175 -> 14 | M160: =+'HULP-velden'!AM175 -> 24 | N160: =+'HULP-velden'!AN175 -> 34 | O160: =+'HULP-velden'!AO175 -> 44 | P160: =+'HULP-velden'!AP175 -> 54
H161: ='HULP-velden'!AE176 -> 347000 | J161: =+'HULP-velden'!AJ176 -> -6.5 | K161: =+'HULP-velden'!AK176 -> 3.5 | L161: =+'HULP-velden'!AL176 -> 13.5 | M161: =+'HULP-velden'!AM176 -> 23.5 | N161: =+'HULP-velden'!AN176 -> 33.5 | O161: =+'HULP-velden'!AO176 -> 43.5 | P161: =+'HULP-velden'!AP176 -> 53.5
H162: ='HULP-velden'!AE177 -> 346000 | J162: =+'HULP-velden'!AJ177 -> -7 | K162: =+'HULP-velden'!AK177 -> 3 | L162: =+'HULP-velden'!AL177 -> 13 | M162: =+'HULP-velden'!AM177 -> 23 | N162: =+'HULP-velden'!AN177 -> 33 | O162: =+'HULP-velden'!AO177 -> 43 | P162: =+'HULP-velden'!AP177 -> 53
H163: ='HULP-velden'!AE178 -> 345000 | J163: =+'HULP-velden'!AJ178 -> -7.5 | K163: =+'HULP-velden'!AK178 -> 2.5 | L163: =+'HULP-velden'!AL178 -> 12.5 | M163: =+'HULP-velden'!AM178 -> 22.5 | N163: =+'HULP-velden'!AN178 -> 32.5 | O163: =+'HULP-velden'!AO178 -> 42.5 | P163: =+'HULP-velden'!AP178 -> 52.5
H164: ='HULP-velden'!AE179 -> 344000 | J164: =+'HULP-velden'!AJ179 -> -8 | K164: =+'HULP-velden'!AK179 -> 2 | L164: =+'HULP-velden'!AL179 -> 12 | M164: =+'HULP-velden'!AM179 -> 22 | N164: =+'HULP-velden'!AN179 -> 32 | O164: =+'HULP-velden'!AO179 -> 42 | P164: =+'HULP-velden'!AP179 -> 52
H165: ='HULP-velden'!AE180 -> 343000 | J165: =+'HULP-velden'!AJ180 -> -8.5 | K165: =+'HULP-velden'!AK180 -> 1.5 | L165: =+'HULP-velden'!AL180 -> 11.5 | M165: =+'HULP-velden'!AM180 -> 21.5 | N165: =+'HULP-velden'!AN180 -> 31.5 | O165: =+'HULP-velden'!AO180 -> 41.5 | P165: =+'HULP-velden'!AP180 -> 51.5
H166: ='HULP-velden'!AE181 -> 342000 | J166: =+'HULP-velden'!AJ181 -> -9 | K166: =+'HULP-velden'!AK181 -> 1 | L166: =+'HULP-velden'!AL181 -> 11 | M166: =+'HULP-velden'!AM181 -> 21 | N166: =+'HULP-velden'!AN181 -> 31 | O166: =+'HULP-velden'!AO181 -> 41 | P166: =+'HULP-velden'!AP181 -> 51
H167: ='HULP-velden'!AE182 -> 341000 | J167: =+'HULP-velden'!AJ182 -> -9.5 | K167: =+'HULP-velden'!AK182 -> 0.5 | L167: =+'HULP-velden'!AL182 -> 10.5 | M167: =+'HULP-velden'!AM182 -> 20.5 | N167: =+'HULP-velden'!AN182 -> 30.5 | O167: =+'HULP-velden'!AO182 -> 40.5 | P167: =+'HULP-velden'!AP182 -> 50.5
H168: ='HULP-velden'!AE183 -> 340000 | J168: =+'HULP-velden'!AJ183 -> -10 | K168: =+'HULP-velden'!AK183 -> 0 | L168: =+'HULP-velden'!AL183 -> 10 | M168: =+'HULP-velden'!AM183 -> 20 | N168: =+'HULP-velden'!AN183 -> 30 | O168: =+'HULP-velden'!AO183 -> 40 | P168: =+'HULP-velden'!AP183 -> 50
H169: ='HULP-velden'!AE184 -> 339000 | J169: =+'HULP-velden'!AJ184 -> -10.5 | K169: =+'HULP-velden'!AK184 -> -0.5 | L169: =+'HULP-velden'!AL184 -> 9.5 | M169: =+'HULP-velden'!AM184 -> 19.5 | N169: =+'HULP-velden'!AN184 -> 29.5 | O169: =+'HULP-velden'!AO184 -> 39.5 | P169: =+'HULP-velden'!AP184 -> 49.5
H170: ='HULP-velden'!AE185 -> 338000 | J170: =+'HULP-velden'!AJ185 -> -11 | K170: =+'HULP-velden'!AK185 -> -1 | L170: =+'HULP-velden'!AL185 -> 9 | M170: =+'HULP-velden'!AM185 -> 19 | N170: =+'HULP-velden'!AN185 -> 29 | O170: =+'HULP-velden'!AO185 -> 39 | P170: =+'HULP-velden'!AP185 -> 49
H171: ='HULP-velden'!AE186 -> 337000 | J171: =+'HULP-velden'!AJ186 -> -11.5 | K171: =+'HULP-velden'!AK186 -> -1.5 | L171: =+'HULP-velden'!AL186 -> 8.5 | M171: =+'HULP-velden'!AM186 -> 18.5 | N171: =+'HULP-velden'!AN186 -> 28.5 | O171: =+'HULP-velden'!AO186 -> 38.5 | P171: =+'HULP-velden'!AP186 -> 48.5
H172: ='HULP-velden'!AE187 -> 336000 | J172: =+'HULP-velden'!AJ187 -> -12 | K172: =+'HULP-velden'!AK187 -> -2 | L172: =+'HULP-velden'!AL187 -> 8 | M172: =+'HULP-velden'!AM187 -> 18 | N172: =+'HULP-velden'!AN187 -> 28 | O172: =+'HULP-velden'!AO187 -> 38 | P172: =+'HULP-velden'!AP187 -> 48
H173: ='HULP-velden'!AE188 -> 335000 | J173: =+'HULP-velden'!AJ188 -> -12.5 | K173: =+'HULP-velden'!AK188 -> -2.5 | L173: =+'HULP-velden'!AL188 -> 7.5 | M173: =+'HULP-velden'!AM188 -> 17.5 | N173: =+'HULP-velden'!AN188 -> 27.5 | O173: =+'HULP-velden'!AO188 -> 37.5 | P173: =+'HULP-velden'!AP188 -> 47.5
H174: ='HULP-velden'!AE189 -> 334000 | J174: =+'HULP-velden'!AJ189 -> -13 | K174: =+'HULP-velden'!AK189 -> -3 | L174: =+'HULP-velden'!AL189 -> 7 | M174: =+'HULP-velden'!AM189 -> 17 | N174: =+'HULP-velden'!AN189 -> 27 | O174: =+'HULP-velden'!AO189 -> 37 | P174: =+'HULP-velden'!AP189 -> 47
H175: ='HULP-velden'!AE190 -> 333000 | J175: =+'HULP-velden'!AJ190 -> -13.5 | K175: =+'HULP-velden'!AK190 -> -3.5 | L175: =+'HULP-velden'!AL190 -> 6.5 | M175: =+'HULP-velden'!AM190 -> 16.5 | N175: =+'HULP-velden'!AN190 -> 26.5 | O175: =+'HULP-velden'!AO190 -> 36.5 | P175: =+'HULP-velden'!AP190 -> 46.5
H176: ='HULP-velden'!AE191 -> 332000 | J176: =+'HULP-velden'!AJ191 -> -14 | K176: =+'HULP-velden'!AK191 -> -4 | L176: =+'HULP-velden'!AL191 -> 6 | M176: =+'HULP-velden'!AM191 -> 16 | N176: =+'HULP-velden'!AN191 -> 26 | O176: =+'HULP-velden'!AO191 -> 36 | P176: =+'HULP-velden'!AP191 -> 46
H177: ='HULP-velden'!AE192 -> 331000 | J177: =+'HULP-velden'!AJ192 -> -14.5 | K177: =+'HULP-velden'!AK192 -> -4.5 | L177: =+'HULP-velden'!AL192 -> 5.5 | M177: =+'HULP-velden'!AM192 -> 15.5 | N177: =+'HULP-velden'!AN192 -> 25.5 | O177: =+'HULP-velden'!AO192 -> 35.5 | P177: =+'HULP-velden'!AP192 -> 45.5
H178: ='HULP-velden'!AE193 -> 330000 | J178: =+'HULP-velden'!AJ193 -> -15 | K178: =+'HULP-velden'!AK193 -> -5 | L178: =+'HULP-velden'!AL193 -> 5 | M178: =+'HULP-velden'!AM193 -> 15 | N178: =+'HULP-velden'!AN193 -> 25 | O178: =+'HULP-velden'!AO193 -> 35 | P178: =+'HULP-velden'!AP193 -> 45
H179: ='HULP-velden'!AE194 -> 329000 | J179: =+'HULP-velden'!AJ194 -> -15.5 | K179: =+'HULP-velden'!AK194 -> -5.5 | L179: =+'HULP-velden'!AL194 -> 4.5 | M179: =+'HULP-velden'!AM194 -> 14.5 | N179: =+'HULP-velden'!AN194 -> 24.5 | O179: =+'HULP-velden'!AO194 -> 34.5 | P179: =+'HULP-velden'!AP194 -> 44.5
H180: ='HULP-velden'!AE195 -> 328000 | J180: =+'HULP-velden'!AJ195 -> -16 | K180: =+'HULP-velden'!AK195 -> -6 | L180: =+'HULP-velden'!AL195 -> 4 | M180: =+'HULP-velden'!AM195 -> 14 | N180: =+'HULP-velden'!AN195 -> 24 | O180: =+'HULP-velden'!AO195 -> 34 | P180: =+'HULP-velden'!AP195 -> 44
H181: ='HULP-velden'!AE196 -> 327000 | J181: =+'HULP-velden'!AJ196 -> -16.5 | K181: =+'HULP-velden'!AK196 -> -6.5 | L181: =+'HULP-velden'!AL196 -> 3.5 | M181: =+'HULP-velden'!AM196 -> 13.5 | N181: =+'HULP-velden'!AN196 -> 23.5 | O181: =+'HULP-velden'!AO196 -> 33.5 | P181: =+'HULP-velden'!AP196 -> 43.5
H182: ='HULP-velden'!AE197 -> 326000 | J182: =+'HULP-velden'!AJ197 -> -17 | K182: =+'HULP-velden'!AK197 -> -7 | L182: =+'HULP-velden'!AL197 -> 3 | M182: =+'HULP-velden'!AM197 -> 13 | N182: =+'HULP-velden'!AN197 -> 23 | O182: =+'HULP-velden'!AO197 -> 33 | P182: =+'HULP-velden'!AP197 -> 43
H183: ='HULP-velden'!AE198 -> 325000 | J183: =+'HULP-velden'!AJ198 -> -17.5 | K183: =+'HULP-velden'!AK198 -> -7.5 | L183: =+'HULP-velden'!AL198 -> 2.5 | M183: =+'HULP-velden'!AM198 -> 12.5 | N183: =+'HULP-velden'!AN198 -> 22.5 | O183: =+'HULP-velden'!AO198 -> 32.5 | P183: =+'HULP-velden'!AP198 -> 42.5
H184: ='HULP-velden'!AE199 -> 324000 | J184: =+'HULP-velden'!AJ199 -> -18 | K184: =+'HULP-velden'!AK199 -> -8 | L184: =+'HULP-velden'!AL199 -> 2 | M184: =+'HULP-velden'!AM199 -> 12 | N184: =+'HULP-velden'!AN199 -> 22 | O184: =+'HULP-velden'!AO199 -> 32 | P184: =+'HULP-velden'!AP199 -> 42
H185: ='HULP-velden'!AE200 -> 323000 | J185: =+'HULP-velden'!AJ200 -> -18.5 | K185: =+'HULP-velden'!AK200 -> -8.5 | L185: =+'HULP-velden'!AL200 -> 1.5 | M185: =+'HULP-velden'!AM200 -> 11.5 | N185: =+'HULP-velden'!AN200 -> 21.5 | O185: =+'HULP-velden'!AO200 -> 31.5 | P185: =+'HULP-velden'!AP200 -> 41.5
H186: ='HULP-velden'!AE201 -> 322000 | J186: =+'HULP-velden'!AJ201 -> -19 | K186: =+'HULP-velden'!AK201 -> -9 | L186: =+'HULP-velden'!AL201 -> 1 | M186: =+'HULP-velden'!AM201 -> 11 | N186: =+'HULP-velden'!AN201 -> 21 | O186: =+'HULP-velden'!AO201 -> 31 | P186: =+'HULP-velden'!AP201 -> 41
H187: ='HULP-velden'!AE202 -> 321000 | J187: =+'HULP-velden'!AJ202 -> -19.5 | K187: =+'HULP-velden'!AK202 -> -9.5 | L187: =+'HULP-velden'!AL202 -> 0.5 | M187: =+'HULP-velden'!AM202 -> 10.5 | N187: =+'HULP-velden'!AN202 -> 20.5 | O187: =+'HULP-velden'!AO202 -> 30.5 | P187: =+'HULP-velden'!AP202 -> 40.5
H188: ='HULP-velden'!AE203 -> 320000 | J188: =+'HULP-velden'!AJ203 -> -20 | K188: =+'HULP-velden'!AK203 -> -10 | L188: =+'HULP-velden'!AL203 -> 0 | M188: =+'HULP-velden'!AM203 -> 10 | N188: =+'HULP-velden'!AN203 -> 20 | O188: =+'HULP-velden'!AO203 -> 30 | P188: =+'HULP-velden'!AP203 -> 40
H189: ='HULP-velden'!AE204 -> 319000 | J189: =+'HULP-velden'!AJ204 -> -20.5 | K189: =+'HULP-velden'!AK204 -> -10.5 | L189: =+'HULP-velden'!AL204 -> -0.5 | M189: =+'HULP-velden'!AM204 -> 9.5 | N189: =+'HULP-velden'!AN204 -> 19.5 | O189: =+'HULP-velden'!AO204 -> 29.5 | P189: =+'HULP-velden'!AP204 -> 39.5
H190: ='HULP-velden'!AE205 -> 318000 | J190: =+'HULP-velden'!AJ205 -> -21 | K190: =+'HULP-velden'!AK205 -> -11 | L190: =+'HULP-velden'!AL205 -> -1 | M190: =+'HULP-velden'!AM205 -> 9 | N190: =+'HULP-velden'!AN205 -> 19 | O190: =+'HULP-velden'!AO205 -> 29 | P190: =+'HULP-velden'!AP205 -> 39
H191: ='HULP-velden'!AE206 -> 317000 | J191: =+'HULP-velden'!AJ206 -> -21.5 | K191: =+'HULP-velden'!AK206 -> -11.5 | L191: =+'HULP-velden'!AL206 -> -1.5 | M191: =+'HULP-velden'!AM206 -> 8.5 | N191: =+'HULP-velden'!AN206 -> 18.5 | O191: =+'HULP-velden'!AO206 -> 28.5 | P191: =+'HULP-velden'!AP206 -> 38.5
H192: ='HULP-velden'!AE207 -> 316000 | J192: =+'HULP-velden'!AJ207 -> -22 | K192: =+'HULP-velden'!AK207 -> -12 | L192: =+'HULP-velden'!AL207 -> -2 | M192: =+'HULP-velden'!AM207 -> 8 | N192: =+'HULP-velden'!AN207 -> 18 | O192: =+'HULP-velden'!AO207 -> 28 | P192: =+'HULP-velden'!AP207 -> 38
H193: ='HULP-velden'!AE208 -> 315000 | J193: =+'HULP-velden'!AJ208 -> -22.5 | K193: =+'HULP-velden'!AK208 -> -12.5 | L193: =+'HULP-velden'!AL208 -> -2.5 | M193: =+'HULP-velden'!AM208 -> 7.5 | N193: =+'HULP-velden'!AN208 -> 17.5 | O193: =+'HULP-velden'!AO208 -> 27.5 | P193: =+'HULP-velden'!AP208 -> 37.5
H194: ='HULP-velden'!AE209 -> 314000 | J194: =+'HULP-velden'!AJ209 -> -23 | K194: =+'HULP-velden'!AK209 -> -13 | L194: =+'HULP-velden'!AL209 -> -3 | M194: =+'HULP-velden'!AM209 -> 7 | N194: =+'HULP-velden'!AN209 -> 17 | O194: =+'HULP-velden'!AO209 -> 27 | P194: =+'HULP-velden'!AP209 -> 37
H195: ='HULP-velden'!AE210 -> 313000 | J195: =+'HULP-velden'!AJ210 -> -23.5 | K195: =+'HULP-velden'!AK210 -> -13.5 | L195: =+'HULP-velden'!AL210 -> -3.5 | M195: =+'HULP-velden'!AM210 -> 6.5 | N195: =+'HULP-velden'!AN210 -> 16.5 | O195: =+'HULP-velden'!AO210 -> 26.5 | P195: =+'HULP-velden'!AP210 -> 36.5
H196: ='HULP-velden'!AE211 -> 312000 | J196: =+'HULP-velden'!AJ211 -> -24 | K196: =+'HULP-velden'!AK211 -> -14 | L196: =+'HULP-velden'!AL211 -> -4 | M196: =+'HULP-velden'!AM211 -> 6 | N196: =+'HULP-velden'!AN211 -> 16 | O196: =+'HULP-velden'!AO211 -> 26 | P196: =+'HULP-velden'!AP211 -> 36
H197: ='HULP-velden'!AE212 -> 311000 | J197: =+'HULP-velden'!AJ212 -> -24.5 | K197: =+'HULP-velden'!AK212 -> -14.5 | L197: =+'HULP-velden'!AL212 -> -4.5 | M197: =+'HULP-velden'!AM212 -> 5.5 | N197: =+'HULP-velden'!AN212 -> 15.5 | O197: =+'HULP-velden'!AO212 -> 25.5 | P197: =+'HULP-velden'!AP212 -> 35.5
H198: ='HULP-velden'!AE213 -> 310000 | J198: =+'HULP-velden'!AJ213 -> -25 | K198: =+'HULP-velden'!AK213 -> -15 | L198: =+'HULP-velden'!AL213 -> -5 | M198: =+'HULP-velden'!AM213 -> 5 | N198: =+'HULP-velden'!AN213 -> 15 | O198: =+'HULP-velden'!AO213 -> 25 | P198: =+'HULP-velden'!AP213 -> 35
H199: ='HULP-velden'!AE214 -> 309000 | J199: =+'HULP-velden'!AJ214 -> -25.5 | K199: =+'HULP-velden'!AK214 -> -15.5 | L199: =+'HULP-velden'!AL214 -> -5.5 | M199: =+'HULP-velden'!AM214 -> 4.5 | N199: =+'HULP-velden'!AN214 -> 14.5 | O199: =+'HULP-velden'!AO214 -> 24.5 | P199: =+'HULP-velden'!AP214 -> 34.5
H200: ='HULP-velden'!AE215 -> 308000 | J200: =+'HULP-velden'!AJ215 -> -26 | K200: =+'HULP-velden'!AK215 -> -16 | L200: =+'HULP-velden'!AL215 -> -6 | M200: =+'HULP-velden'!AM215 -> 4 | N200: =+'HULP-velden'!AN215 -> 14 | O200: =+'HULP-velden'!AO215 -> 24 | P200: =+'HULP-velden'!AP215 -> 34
H201: ='HULP-velden'!AE216 -> 307000 | J201: =+'HULP-velden'!AJ216 -> -26.5 | K201: =+'HULP-velden'!AK216 -> -16.5 | L201: =+'HULP-velden'!AL216 -> -6.5 | M201: =+'HULP-velden'!AM216 -> 3.5 | N201: =+'HULP-velden'!AN216 -> 13.5 | O201: =+'HULP-velden'!AO216 -> 23.5 | P201: =+'HULP-velden'!AP216 -> 33.5
H202: ='HULP-velden'!AE217 -> 306000 | J202: =+'HULP-velden'!AJ217 -> -27 | K202: =+'HULP-velden'!AK217 -> -17 | L202: =+'HULP-velden'!AL217 -> -7 | M202: =+'HULP-velden'!AM217 -> 3 | N202: =+'HULP-velden'!AN217 -> 13 | O202: =+'HULP-velden'!AO217 -> 23 | P202: =+'HULP-velden'!AP217 -> 33
... 6 more rows
